Ref No,Fund Type,Dept,Cost Centre Description    ,Description    ,Creditor Name    ,GL Code Net Amount,Payment date        
2,Revenue,CCHD,Bed Purchasing - Frenchay Hospital,Residential Homes,.,4073.09, 09-Jul-2013
3,Revenue,CCHD,Bed Purchasing - Under 65s PWLD - South,Residential Homes,.,2194, 09-Jul-2013
4,Revenue,CCHD,Supporting People Programme,Grants to Voluntary Bodies,1625 Independent People,17380, 01-Jul-2013
5,Revenue,CCHD,Home Care - Elderly - South,Other Small Contracts,3 Trees Community Support Ltd,95.52, 03-Jul-2013
6,Revenue,CCHD,Home Care - Elderly - North,Other Small Contracts,3 Trees Community Support Ltd,2913.36, 03-Jul-2013
7,Revenue,CCHD,Day Care - North,Private & Voluntary Day Care,3 Trees Community Support Ltd,47.76, 03-Jul-2013
8,Revenue,CCHD,Home Care - Elderly - South,Other Small Contracts,3 Trees Community Support Ltd,95.52, 23-Jul-2013
9,Revenue,CCHD,Home Care - Elderly - North,Other Small Contracts,3 Trees Community Support Ltd,2722.32, 23-Jul-2013
10,Revenue,CCHD,Day Care - North,Private & Voluntary Day Care,3 Trees Community Support Ltd,47.76, 23-Jul-2013
11,Revenue,CCHD,Home Care - Elderly - South,Other Small Contracts,3 Trees Community Support Ltd,95.52, 16-Jul-2013
12,Revenue,CCHD,Home Care - Elderly - North,Other Small Contracts,3 Trees Community Support Ltd,2901.42, 16-Jul-2013
13,Revenue,CCHD,Day Care - North,Private & Voluntary Day Care,3 Trees Community Support Ltd,31.84, 16-Jul-2013
14,Revenue,CCHD,Home Care - Elderly - South,Other Small Contracts,3 Trees Community Support Ltd,95.52, 26-Jul-2013
15,Revenue,CCHD,Home Care - Elderly - North,Other Small Contracts,3 Trees Community Support Ltd,2977.04, 26-Jul-2013
16,Revenue,CCHD,Day Care - North,Private & Voluntary Day Care,3 Trees Community Support Ltd,47.76, 26-Jul-2013
17,Revenue,CCHD,Home Care - Elderly - South,Other Small Contracts,3 Trees Community Support Ltd,95.52, 30-Jul-2013
18,Revenue,CCHD,Home Care - Elderly - North,Other Small Contracts,3 Trees Community Support Ltd,2977.04, 30-Jul-2013
19,Revenue,CCHD,Day Care - North,Private & Voluntary Day Care,3 Trees Community Support Ltd,47.76, 30-Jul-2013
20,Revenue,CCHD,Supported Living - South,Private & Voluntary Home Care,3 Trees Community Support Ltd,606.2, 12-Jul-2013
21,Revenue,CCHD,Supported Living - South,Private & Voluntary Home Care,3 Trees Community Support Ltd,2315.01, 23-Jul-2013
22,Revenue,CCHD,Supported Living - South,Private & Voluntary Home Care,3 Trees Community Support Ltd,2817.1, 12-Jul-2013
23,Revenue,CCHD,Purchase of Non-Res Care - North,Private & Voluntary Day Care,3 Trees Community Support Ltd,1662.1, 11-Jul-2013
24,Revenue,CCHD,Purchase of Non-Res Care - North,Private & Voluntary Day Care,3 Trees Community Support Ltd,1706.36, 15-Jul-2013
25,Revenue,CCHD,Supported Living - North,Private & Voluntary Home Care,3 Trees Community Support Ltd,9541, 16-Jul-2013
26,Revenue,CCHD,Purchase of Non-Res Care - North,Private & Voluntary Day Care,3 Trees Community Support Ltd,1341.29, 15-Jul-2013
27,Revenue,CCHD,Purchase of Non-Res Care - North,Private & Voluntary Day Care,3 Trees Community Support Ltd,7405.71, 15-Jul-2013
28,Revenue,CCHD,Purchase of Non-Res Care - South,Private & Voluntary Day Care,3 Trees Community Support Ltd,3130.78, 12-Jul-2013
29,Revenue,CCHD,Supported Living - North,Private & Voluntary Home Care,3 Trees Community Support Ltd,9843.15, 12-Jul-2013
30,Revenue,CCHD,Purchase of Non-Res Care - North,Private & Voluntary Day Care,3 Trees Community Support Ltd,4207.29, 18-Jul-2013
31,Revenue,CCHD,Alexandra Way,Prop.Serv. General Repairs,A E Horder (Contracting) Limited,2094.66, 30-Jul-2013
32,Revenue,CCHD,Direct Payments - Phys Dis - North,Grants to Voluntary Bodies,A4E Management Limited,22857.93, 05-Jul-2013
33,Revenue,CCHD,Bed Purchasing - Frenchay Hospital,Nursing Homes,Aabletone Nursing Home,834.76, 09-Jul-2013
34,Revenue,CCHD,Home Care - Elderly - South,Other Small Contracts,Abacus Care (Western) Ltd,830.13, 30-Jul-2013
35,Revenue,CCHD,Home Care - Elderly - North,Other Small Contracts,Abacus Care (Western) Ltd,995.25, 30-Jul-2013
36,Revenue,CCHD,Home Care - Elderly - South,Other Small Contracts,Abacus Care (Western) Ltd,759.92, 30-Jul-2013
37,Revenue,CCHD,Home Care - Elderly - North,Other Small Contracts,Abacus Care (Western) Ltd,995.25, 30-Jul-2013
38,Revenue,CCHD,Home Care - Elderly - South,Other Small Contracts,Abacus Care (Western) Ltd,838.39, 30-Jul-2013
39,Revenue,CCHD,Home Care - Elderly - North,Other Small Contracts,Abacus Care (Western) Ltd,995.25, 30-Jul-2013
40,Revenue,CCHD,Bed Purchasing - Winter resillience,Administrative & Support Staff Pay,Able 2 Occupational Therapy Services Ltd,7574, 03-Jul-2013
41,Revenue,CCHD,Day Care - North,Private & Voluntary Day Care,About Me Care and Support Limited,1295.28, 08-Jul-2013
42,Revenue,CCHD,Day Care - South,Private & Voluntary Day Care,About Me Care and Support Limited,1409.79, 05-Jul-2013
43,Revenue,CCHD,Day Care - South,Private & Voluntary Day Care,About Me Care and Support Limited,759.63, 05-Jul-2013
44,Revenue,CCHD,Bed purchasing - Under 65s PWLD - North,Residential Homes,Acorn Care Providers,5744.4, 09-Jul-2013
45,Revenue,CCHD,Day Care - North,Private & Voluntary Day Care,Action on Hearing Loss,601.2, 16-Jul-2013
46,Revenue,CCHD,Day Care - North,Private & Voluntary Day Care,Action on Hearing Loss,583.26, 16-Jul-2013
47,Revenue,CCHD,Day Care - North,Private & Voluntary Day Care,Action on Hearing Loss,601.2, 16-Jul-2013
48,Revenue,CCHD,Day Care - North,Private & Voluntary Day Care,Action on Hearing Loss,601.2, 23-Jul-2013
49,Revenue,CCHD,Day Care - North,Private & Voluntary Day Care,Action on Hearing Loss,515.96, 29-Jul-2013
50,Revenue,CCHD,Section 117 Placements MH Younger,Private & Voluntary Day Care,Adolphus Care Ltd,4087.02, 05-Jul-2013
51,Revenue,CCHD,Section 117 Placements MH Younger,Private & Voluntary Day Care,Adolphus Care Ltd,4087.02, 12-Jul-2013
52,Revenue,CCHD,Section 117 Placements MH Younger,Private & Voluntary Day Care,Adolphus Care Ltd,4087.02, 29-Jul-2013
53,Revenue,CCHD,Alexandra Way,Furniture & Fittings Loose,Advanced Aerials,795, 02-Jul-2013
54,Revenue,CCHD,Alexandra Way,Furniture & Fittings Loose,Advanced Aerials,680, 22-Jul-2013
55,Revenue,CCHD,Tenancy Start Up Scheme,Other Supplies & Services,Affinity Property Limited,1300, 10-Jul-2013
56,Revenue,CCHD,Day Care - North,Private & Voluntary Day Care,Age UK South Gloucestershire,1022.16, 29-Jul-2013
57,Revenue,CCHD,Day Care - North,Private & Voluntary Day Care,Age UK South Gloucestershire,681.44, 29-Jul-2013
58,Revenue,CCHD,Day Care - South,Private & Voluntary Day Care,Age UK South Gloucestershire,1087.16, 19-Jul-2013
59,Revenue,CCHD,Day Care - South,Private & Voluntary Day Care,Age UK South Gloucestershire,1022.16, 19-Jul-2013
60,Revenue,CCHD,Home Care - Elderly - South,Other Small Contracts,Agincare UK Limited,738.99, 19-Jul-2013
61,Revenue,CCHD,Home Care - Elderly - North,Other Small Contracts,Agincare UK Limited,89.93, 19-Jul-2013
62,Revenue,CCHD,Day Care - South,Private & Voluntary Day Care,Agincare UK Limited,101.66, 19-Jul-2013
63,Revenue,CCHD,Elderly MH Day Care North,Private & Voluntary Day Care,Agincare UK Limited,117.3, 19-Jul-2013
64,Revenue,CCHD,S117 Placements PCT,Residential Homes,Alexandra House,6875.64, 09-Jul-2013
65,Revenue,CCHD,Section 117 Placements MH Younger,Residential Homes,Alexandra House,6400.88, 09-Jul-2013
66,Revenue,CCHD,Day Care - South,Private & Voluntary Day Care,Alzheimers Society,577.68, 11-Jul-2013
67,Revenue,CCHD,Bed Purchasing - Elderly S117- North,Private & Voluntary Day Care,Alzheimers Society,577.68, 11-Jul-2013
68,Revenue,CCHD,Elderly MH Day Care South,Private & Voluntary Day Care,Alzheimers Society,577.68, 11-Jul-2013
69,Revenue,CCHD,Elderly MH Day Care North,Private & Voluntary Day Care,Alzheimers Society,577.68, 11-Jul-2013
70,Revenue,CCHD,Elderly MH Day Care North,Private & Voluntary Day Care,Alzheimers Society,866.52, 11-Jul-2013
71,Revenue,CCHD,Bed Purchasing - Southmead Hospital,Nursing Homes,Ambleside Nusing Ho!,1425.36, 09-Jul-2013
72,Revenue,CCHD,Bed Purchasing - Frenchay Hospital,Residential Homes,Anbridge Care Home,822.44, 09-Jul-2013
73,Revenue,CCHD,Bed Purchasing - Elderly - North,Nursing Homes,Annabel House,1401.52, 09-Jul-2013
74,Revenue,CCHD,Bed purchasing - Under 65s PWLD - North,Residential Homes,Ark Care Homes Ltd,10163.76, 09-Jul-2013
75,Revenue,CCHD,Bed Purchasing - Elderly - South,Residential Homes,Ashbourne House Care Home Limited,1107.96, 09-Jul-2013
76,Revenue,CCHD,Home Care - Elderly - South,Other Small Contracts,Ashley Commercial Finance Ltd,300.24, 30-Jul-2013
77,Revenue,CCHD,Home Care - Elderly - North,Other Small Contracts,Ashley Commercial Finance Ltd,2164.23, 30-Jul-2013
78,Revenue,CCHD,Home Care - Elderly - South,Other Small Contracts,Ashley Commercial Finance Ltd,187.65, 30-Jul-2013
79,Revenue,CCHD,Home Care - Elderly - North,Other Small Contracts,Ashley Commercial Finance Ltd,2322.69, 30-Jul-2013
80,Revenue,CCHD,Home Care - Elderly - South,Other Small Contracts,Ashley Commercial Finance Ltd,587.97, 30-Jul-2013
81,Revenue,CCHD,Home Care - Elderly - North,Other Small Contracts,Ashley Commercial Finance Ltd,2426.94, 30-Jul-2013
82,Revenue,CCHD,Home Care - Elderly - South,Other Small Contracts,Ashley Commercial Finance Ltd,750.6, 30-Jul-2013
83,Revenue,CCHD,Home Care - Elderly - North,Other Small Contracts,Ashley Commercial Finance Ltd,2839.77, 30-Jul-2013
84,Revenue,CCHD,Day Care - North,Private & Voluntary Day Care,Ashley Commercial Finance Ltd,25.02, 30-Jul-2013
85,Revenue,CCHD,Bed and Breakfast,Bed & Breakfast,Ashley Guest Houses Limited,818, 03-Jul-2013
86,Revenue,CCHD,Bed and Breakfast,Bed & Breakfast,Ashley Guest Houses Limited,1008, 24-Jul-2013
87,Revenue,CCHD,Bed and Breakfast,Bed & Breakfast,Ashley Guest Houses Limited,808, 17-Jul-2013
88,Revenue,CCHD,Bed purchasing - Under 65s PWLD - North,Residential Homes,Aspects 2 Limited,6265.24, 09-Jul-2013
89,Revenue,CCHD,Supporting People Programme,Grants to Voluntary Bodies,Aspects and Milestones Trust,3172.58, 01-Jul-2013
90,Revenue,CCHD,Supporting People Programme,Grants to Voluntary Bodies,Aspects and Milestones Trust,1590.58, 01-Jul-2013
91,Revenue,CCHD,Supporting People Programme,Grants to Voluntary Bodies,Aspects and Milestones Trust,1937.33, 01-Jul-2013
92,Revenue,CCHD,Supporting People Programme,Grants to Voluntary Bodies,Aspects and Milestones Trust,2414.33, 01-Jul-2013
93,Revenue,CCHD,Supported Living - South,Private & Voluntary Home Care,Aspirations Support Bristol Limited,5106.79, 09-Jul-2013
94,Revenue,CCHD,Supported Living - South,Private & Voluntary Home Care,Aspirations Support Bristol Limited,3984.52, 08-Jul-2013
95,Revenue,CCHD,Supported Living - South,Private & Voluntary Home Care,Aspirations Support Bristol Limited,5687.85, 08-Jul-2013
96,Revenue,CCHD,Purchase of Non-Res Care - South,Private & Voluntary Day Care,Aspirations Support Bristol Limited,2499.48, 09-Jul-2013
97,Revenue,CCHD,Supported Living - South,Private & Voluntary Home Care,Aspirations Support Bristol Limited,515.84, 09-Jul-2013
98,Revenue,CCHD,Research & Conferences,Other Supplies & Services,Assoc of Directors of Adult Social Services,1582, 02-Jul-2013
99,Revenue,CCHD,Bed Purchasing - Under 65s PWLD - South,Residential Homes,Autism Specialised Care Homes,5584.12, 09-Jul-2013
100,Revenue,CCHD,Purchase of Non-Res Care - North,Private & Voluntary Day Care,Avon Autistic Foundation Limited,3378.04, 24-Jul-2013
101,Revenue,CCHD,Purchase of Non-Res Care - North,Private & Voluntary Day Care,Avon Autistic Foundation Limited,2301.6, 24-Jul-2013
102,Revenue,CCHD,Bed Purchasing - Southmead Hospital,Nursing Homes,Bamfield Lodge,1906.5, 05-Jul-2013
103,Revenue,CCHD,Better Support for Older People,Other Supplies & Services,Barberry,600, 01-Jul-2013
104,Revenue,CCHD,Bed Purchasing - Frenchay Hospital,Nursing Homes,Bayview Nursing & Residential Home,1369.04, 09-Jul-2013
105,Revenue,CCHD,Bed Purchasing - Elderly - North,Residential Homes,Beaufort House,1801.76, 09-Jul-2013
106,Revenue,CCHD,Bed purchasing - Elderly MH - North,Residential Homes,Beaufort House,1427.44, 09-Jul-2013
107,Revenue,CCHD,Bed Purchasing - Elderly S117- North,Residential Homes,Beaufort House,2322.08, 09-Jul-2013
108,Revenue,CCHD,Bed purchasing - Elderly MH - North,Residential Homes,Beaufort House,1383.68, 09-Jul-2013
109,Revenue,CCHD,Bed Purchasing - Elderly - North,Residential Homes,Beaufort House,1836.08, 09-Jul-2013
110,Revenue,CCHD,Bed Purchasing - Frenchay Hospital,Residential Homes,Beaufort House,1285.32, 09-Jul-2013
111,Revenue,CCHD,Bed Purchasing - Elderly - North,Residential Homes,Beaufort House,1726.68, 09-Jul-2013
112,Revenue,CCHD,Bed purchasing - Elderly MH - North,Residential Homes,Beaufort House,1018.44, 09-Jul-2013
113,Revenue,CCHD,Bed purchasing - Elderly MH - North,Residential Homes,Beaufort House,1684.12, 09-Jul-2013
114,Revenue,CCHD,Bed Purchasing - Elderly - North,Residential Homes,Beaufort House,1519.32, 09-Jul-2013
115,Revenue,CCHD,Bed purchasing - Elderly PWLD - South,Residential Homes,Bedrock Lodge,2909.4, 09-Jul-2013
116,Revenue,CCHD,Section 117 Placements MH Younger,Residential Homes,Bedrock Lodge,1837.68, 09-Jul-2013
117,Revenue,CCHD,South Glos Users in South Glos Homes,Nursing Homes,Beech House,2779.61, 09-Jul-2013
118,Revenue,CCHD,Bed Purchasing - Frenchay Hospital,Nursing Homes,Beech House,1700.88, 09-Jul-2013
119,Revenue,CCHD,South Glos Users in South Glos Homes,Nursing Homes,Beech House,1317.48, 09-Jul-2013
120,Revenue,CCHD,Bed Purchasing - Elderly - North,Nursing Homes,Beech House,693.56, 09-Jul-2013
121,Revenue,CCHD,Bed Purchasing - Elderly - North,Nursing Homes,Beech House,2095.68, 09-Jul-2013
122,Revenue,CCHD,Bed Purchasing - Elderly - North,Nursing Homes,Beech House,725.16, 09-Jul-2013
123,Revenue,CCHD,Bed Purchasing - Southmead Hospital,Nursing Homes,Beech House,2305.76, 09-Jul-2013
124,Revenue,CCHD,Bed Purchasing - Elderly - North,Nursing Homes,Beech House,2220.52, 09-Jul-2013
125,Revenue,CCHD,Bed Purchasing - Frenchay Hospital,Residential Homes,Belmont View,1352.08, 09-Jul-2013
126,Revenue,CCHD,Tenancy Start Up Scheme,Other Supplies & Services,Besley Hill,1255, 03-Jul-2013
127,Revenue,CCHD,Bed Purchasing - Elderly - North,Nursing Homes,Blossom Field,3802.28, 09-Jul-2013
128,Revenue,CCHD,Bed purchasing - Elderly MH - North,Nursing Homes,Blossom Field,1995.29, 09-Jul-2013
129,Revenue,CCHD,Bed purchasing - Elderly MH - North,Nursing Homes,Blossom Field,1042.16, 09-Jul-2013
130,Revenue,CCHD,Bed purchasing - Elderly MH - North,Nursing Homes,Blossom Field,1543.39, 09-Jul-2013
131,Revenue,CCHD,Bed Purchasing - Elderly - North,Nursing Homes,Blossom Field,6462.94, 09-Jul-2013
132,Revenue,CCHD,Bed Purchasing - Elderly - North,Nursing Homes,Blossom Field,2182.3, 09-Jul-2013
133,Revenue,CCHD,Bed purchasing - Elderly MH - North,Nursing Homes,Blossom Field,967.91, 09-Jul-2013
134,Revenue,CCHD,South Glos Users in South Glos Homes,Nursing Homes,Blossom Field,1317.48, 09-Jul-2013
135,Revenue,CCHD,South Glos Users in South Glos Homes,Nursing Homes,Blossom Field,1413.1, 09-Jul-2013
136,Revenue,CCHD,South Glos Users in South Glos Homes,Nursing Homes,Blossom Field,1317.48, 09-Jul-2013
137,Revenue,CCHD,Bed Purchasing - Elderly - North,Nursing Homes,Blossom Field,1096.6, 09-Jul-2013
138,Revenue,CCHD,Bed purchasing - Elderly MH - North,Nursing Homes,Blossom Field,1400.04, 09-Jul-2013
139,Revenue,CCHD,Bed Purchasing - Elderly - South,Nursing Homes,Blossom Field,1884.56, 09-Jul-2013
140,Revenue,CCHD,South Glos Users in South Glos Homes,Nursing Homes,Blossom Fields,1273.68, 08-Jul-2013
141,Revenue,CCHD,Bed purchasing - Elderly MH - North,Nursing Homes,Blossom Fields,903.56, 08-Jul-2013
142,Revenue,CCHD,Training - Adult Services,Training Expenses,Bob Dawson,1125, 22-Jul-2013
143,Revenue,CCHD,Bed purchasing - Under 65s PWLD - North,Residential Homes,Bradbury House,8632.8, 09-Jul-2013
144,Revenue,CCHD,Home Care - Elderly - South,Other Small Contracts,Bradley House Home Care Services,58.94, 16-Jul-2013
145,Revenue,CCHD,Home Care - Elderly - North,Other Small Contracts,Bradley House Home Care Services,926.2, 16-Jul-2013
146,Revenue,CCHD,Day Care - North,Private & Voluntary Day Care,Bradley House Home Care Services,101.04, 16-Jul-2013
147,Revenue,CCHD,Home Care - Elderly - South,Other Small Contracts,Bradley House Home Care Services,58.94, 16-Jul-2013
148,Revenue,CCHD,Home Care - Elderly - North,Other Small Contracts,Bradley House Home Care Services,926.2, 16-Jul-2013
149,Revenue,CCHD,Day Care - North,Private & Voluntary Day Care,Bradley House Home Care Services,101.04, 16-Jul-2013
150,Revenue,CCHD,Home Care - Elderly - South,Other Small Contracts,Bradley House Home Care Services,101.04, 16-Jul-2013
151,Revenue,CCHD,Home Care - Elderly - North,Other Small Contracts,Bradley House Home Care Services,905.15, 16-Jul-2013
152,Revenue,CCHD,Day Care - North,Private & Voluntary Day Care,Bradley House Home Care Services,101.04, 16-Jul-2013
153,Revenue,CCHD,Home Care - Elderly - North,Other Small Contracts,Bradley House Home Care Services,955.67, 26-Jul-2013
154,Revenue,CCHD,Day Care - North,Private & Voluntary Day Care,Bradley House Home Care Services,101.04, 26-Jul-2013
155,Revenue,CCHD,Woodleaze,"Provisions (Food, etc)",Brake Bros,712.07, 01-Jul-2013
156,Revenue,CCHD,Woodleaze,"Provisions (Food, etc)",Brake Bros,610.45, 01-Jul-2013
157,Revenue,CCHD,Alexandra Way,"Provisions (Food, etc)",Brake Bros,547.41, 17-Jul-2013
158,Revenue,CCHD,Woodleaze,"Provisions (Food, etc)",Brake Bros,592.96, 11-Jul-2013
159,Revenue,CCHD,Alexandra Way,"Provisions (Food, etc)",Brake Bros,492.61, 17-Jul-2013
160,Revenue,CCHD,Woodleaze,"Provisions (Food, etc)",Brake Bros,682.65, 01-Jul-2013
161,Revenue,CCHD,Woodleaze,"Provisions (Food, etc)",Brake Bros,1167.32, 01-Jul-2013
162,Revenue,CCHD,Woodleaze,"Provisions (Food, etc)",Brake Bros,519.96, 01-Jul-2013
163,Revenue,CCHD,Woodleaze,"Provisions (Food, etc)",Brake Bros,994.4, 01-Jul-2013
164,Revenue,CCHD,Alexandra Way,"Provisions (Food, etc)",Brake Bros,496.66, 17-Jul-2013
165,Revenue,CCHD,Woodleaze,"Provisions (Food, etc)",Brake Bros,569.31, 22-Jul-2013
166,Revenue,CCHD,Woodleaze,"Provisions (Food, etc)",Brake Bros,759.19, 30-Jul-2013
167,Revenue,CCHD,Bed Purchasing - Elderly - North,Residential Homes,Bridge House Care Home,1246, 09-Jul-2013
168,Revenue,CCHD,Bed Purchasing - Elderly - North,Residential Homes,Bridge House Care Home,1485.04, 09-Jul-2013
169,Revenue,CCHD,Bed Purchasing - Elderly - North,Residential Homes,Bridge House Care Home,1150.56, 09-Jul-2013
170,Revenue,CCHD,Bed Purchasing - Elderly - North,Residential Homes,Bridge House Care Home,1444.96, 09-Jul-2013
171,Revenue,CCHD,Supported Living - North,Private & Voluntary Home Care,Bristol Houses UK Limited,1285.53, 17-Jul-2013
172,Revenue,CCHD,Supported Living - North,Private & Voluntary Home Care,Bristol Houses UK Limited,1056.57, 17-Jul-2013
173,Revenue,CCHD,Day Care - North,Private & Voluntary Day Care,Bristol Houses UK Limited,1514.48, 17-Jul-2013
174,Revenue,CCHD,Supported Living - North,Private & Voluntary Home Care,Bristol Houses UK Limited,845.28, 17-Jul-2013
175,Revenue,CCHD,Day Care - North,Private & Voluntary Day Care,Bristol Houses UK Limited,2368.55, 17-Jul-2013
176,Revenue,CCHD,Day Care - North,Private & Voluntary Day Care,Bristol Houses UK Limited,2394.96, 29-Jul-2013
177,Revenue,CCHD,Supported Living - North,Private & Voluntary Home Care,Bristol Houses UK Limited,605.6, 17-Jul-2013
178,Revenue,CCHD,Supported Living - North,Private & Voluntary Home Care,Bristol Houses UK Limited,968.96, 17-Jul-2013
179,Revenue,CCHD,Younger MH non-res purchasing,Private & Voluntary Day Care,Bristol Houses UK Limited,726.72, 17-Jul-2013
180,Revenue,CCHD,Bed and Breakfast,Bed & Breakfast,Bristol Housing & Support Limited,1820, 24-Jul-2013
181,Revenue,CCHD,Woodleaze,Water Charges,Bristol Wessex Billing Services Limited,4053.86, 31-Jul-2013
182,Revenue,CCHD,Supporting People Programme,Grants to Voluntary Bodies,Bromford Housing Group,14050.25, 01-Jul-2013
183,Revenue,CCHD,Bed Purchasing - Elderly - North,Residential Homes,Brook Lane Residential Home,910.08, 09-Jul-2013
184,Revenue,CCHD,Home Care - Elderly - North,Private & Voluntary Home Care,Brunelcare,15809.01, 01-Jul-2013
185,Revenue,CCHD,Home Care - Elderly - North,Private & Voluntary Home Care,Brunelcare,15809.01, 08-Jul-2013
186,Revenue,CCHD,Home Care - Elderly - North,Private & Voluntary Home Care,Brunelcare,15809.01, 15-Jul-2013
187,Revenue,CCHD,Home Care - Elderly - North,Private & Voluntary Home Care,Brunelcare,15809.01, 22-Jul-2013
188,Revenue,CCHD,Home Care - Elderly - North,Private & Voluntary Home Care,Brunelcare,15809.01, 29-Jul-2013
189,Revenue,CCHD,Bed Purchasing - Elderly - South,Nursing Homes,Brunelcare,10376.29, 08-Jul-2013
190,Revenue,CCHD,Bed Purchasing - Elderly - North,Nursing Homes,Brunelcare,4555.9, 08-Jul-2013
191,Revenue,CCHD,Bed Purchasing - Frenchay Hospital,Nursing Homes,Brunelcare,7553.08, 08-Jul-2013
192,Revenue,CCHD,Bed Purchasing - Southmead Hospital,Nursing Homes,Brunelcare,10523.28, 08-Jul-2013
193,Revenue,CCHD,South Glos Users in South Glos Homes,Nursing Homes,Brunelcare,10015.93, 08-Jul-2013
194,Revenue,CCHD,Bed Purchasing - Elderly MH - South,Nursing Homes,Brunelcare,8143.13, 08-Jul-2013
195,Revenue,CCHD,Bed purchasing - Elderly S117 - South,Nursing Homes,Brunelcare,1632.53, 08-Jul-2013
196,Revenue,CCHD,Bed purchasing - Elderly MH - North,Nursing Homes,Brunelcare,2084.08, 08-Jul-2013
197,Revenue,CCHD,Bed Purchasing - Elderly S117- North,Nursing Homes,Brunelcare,2341.32, 08-Jul-2013
198,Revenue,CCHD,Bed Purchasing - Elderly - South,Nursing Homes,Brunelcare,10210.48, 08-Jul-2013
199,Revenue,CCHD,Bed Purchasing - Elderly - North,Nursing Homes,Brunelcare,2960.04, 08-Jul-2013
200,Revenue,CCHD,Bed Purchasing - Frenchay Hospital,Nursing Homes,Brunelcare,4880.68, 08-Jul-2013
201,Revenue,CCHD,Bed Purchasing - Southmead Hospital,Nursing Homes,Brunelcare,10308.38, 08-Jul-2013
202,Revenue,CCHD,South Glos Users in South Glos Homes,Nursing Homes,Brunelcare,8773.64, 08-Jul-2013
203,Revenue,CCHD,Bed Purchasing - Elderly MH - South,Nursing Homes,Brunelcare,7874.47, 08-Jul-2013
204,Revenue,CCHD,Bed purchasing - Elderly S117 - South,Nursing Homes,Brunelcare,1651.34, 08-Jul-2013
205,Revenue,CCHD,Bed purchasing - Elderly MH - North,Nursing Homes,Brunelcare,1882.4, 08-Jul-2013
206,Revenue,CCHD,Bed Purchasing - Elderly S117- North,Nursing Homes,Brunelcare,2114.74, 08-Jul-2013
207,Revenue,CCHD,Bed Purchasing - Elderly - South,Nursing Homes,Brunelcare,14108.39, 11-Jul-2013
208,Revenue,CCHD,Bed Purchasing - Elderly - North,Nursing Homes,Brunelcare,5601.56, 11-Jul-2013
209,Revenue,CCHD,Bed Purchasing - Frenchay Hospital,Nursing Homes,Brunelcare,3985.24, 11-Jul-2013
210,Revenue,CCHD,Bed Purchasing - Southmead Hospital,Nursing Homes,Brunelcare,9697.42, 11-Jul-2013
211,Revenue,CCHD,South Glos Users in South Glos Homes,Nursing Homes,Brunelcare,10435.2, 11-Jul-2013
212,Revenue,CCHD,Bed Purchasing - Elderly MH - South,Nursing Homes,Brunelcare,8131.43, 11-Jul-2013
213,Revenue,CCHD,Bed purchasing - Elderly S117 - South,Nursing Homes,Brunelcare,1828.27, 11-Jul-2013
214,Revenue,CCHD,Bed purchasing - Elderly MH - North,Nursing Homes,Brunelcare,1602.7, 11-Jul-2013
215,Revenue,CCHD,Bed Purchasing - Elderly S117- North,Nursing Homes,Brunelcare,2341.32, 11-Jul-2013
216,Revenue,CCHD,Bed Purchasing - Elderly - South,Nursing Homes,Brunelcare,13030.9, 11-Jul-2013
217,Revenue,CCHD,Bed Purchasing - Elderly - North,Nursing Homes,Brunelcare,6053.46, 11-Jul-2013
218,Revenue,CCHD,Bed Purchasing - Frenchay Hospital,Nursing Homes,Brunelcare,3916.98, 11-Jul-2013
219,Revenue,CCHD,Bed Purchasing - Southmead Hospital,Nursing Homes,Brunelcare,8684.2, 11-Jul-2013
220,Revenue,CCHD,South Glos Users in South Glos Homes,Nursing Homes,Brunelcare,10524.16, 11-Jul-2013
221,Revenue,CCHD,Bed Purchasing - Elderly MH - South,Nursing Homes,Brunelcare,8013.05, 11-Jul-2013
222,Revenue,CCHD,Bed purchasing - Elderly S117 - South,Nursing Homes,Brunelcare,1809.17, 11-Jul-2013
223,Revenue,CCHD,Bed purchasing - Elderly MH - North,Nursing Homes,Brunelcare,1558.52, 11-Jul-2013
224,Revenue,CCHD,Bed Purchasing - Elderly S117- North,Nursing Homes,Brunelcare,2324.33, 11-Jul-2013
225,Revenue,CCHD,Bed Purchasing - Elderly - South,Nursing Homes,Brunelcare,11931.21, 11-Jul-2013
226,Revenue,CCHD,Bed Purchasing - Elderly - North,Nursing Homes,Brunelcare,4946.01, 11-Jul-2013
227,Revenue,CCHD,Bed Purchasing - Frenchay Hospital,Nursing Homes,Brunelcare,6142.75, 11-Jul-2013
228,Revenue,CCHD,Bed Purchasing - Southmead Hospital,Nursing Homes,Brunelcare,9556.75, 11-Jul-2013
229,Revenue,CCHD,South Glos Users in South Glos Homes,Nursing Homes,Brunelcare,9928.15, 11-Jul-2013
230,Revenue,CCHD,Bed Purchasing - Elderly MH - South,Nursing Homes,Brunelcare,8269.3, 11-Jul-2013
231,Revenue,CCHD,Bed purchasing - Elderly S117 - South,Nursing Homes,Brunelcare,1882.01, 11-Jul-2013
232,Revenue,CCHD,Bed purchasing - Elderly MH - North,Nursing Homes,Brunelcare,1612.84, 11-Jul-2013
233,Revenue,CCHD,Bed Purchasing - Elderly S117- North,Nursing Homes,Brunelcare,2420.21, 11-Jul-2013
234,Revenue,CCHD,Elderly MH Day Care South,Private & Voluntary Day Care,Brunelcare,600, 05-Jul-2013
235,Revenue,CCHD,Home Care - Elderly - South,Other Small Contracts,Brunelcare,3333.36, 24-Jul-2013
236,Revenue,CCHD,Home Care - Elderly - North,Other Small Contracts,Brunelcare,4502.44, 24-Jul-2013
237,Revenue,CCHD,Day Care - South,Private & Voluntary Day Care,Brunelcare,73.44, 24-Jul-2013
238,Revenue,CCHD,Day Care - North,Private & Voluntary Day Care,Brunelcare,89.76, 24-Jul-2013
239,Revenue,CCHD,Home care - Elderly MH - North,Other Small Contracts,Brunelcare,159.12, 24-Jul-2013
240,Revenue,CCHD,Home Care - Elderly - South,Other Small Contracts,Brunelcare,3531.53, 24-Jul-2013
241,Revenue,CCHD,Home Care - Elderly - North,Other Small Contracts,Brunelcare,4616.72, 24-Jul-2013
242,Revenue,CCHD,Day Care - South,Private & Voluntary Day Care,Brunelcare,73.44, 24-Jul-2013
243,Revenue,CCHD,Day Care - North,Private & Voluntary Day Care,Brunelcare,77.52, 24-Jul-2013
244,Revenue,CCHD,Home care - Elderly MH - North,Other Small Contracts,Brunelcare,163.2, 24-Jul-2013
245,Revenue,CCHD,Home Care - Elderly - South,Other Small Contracts,Brunelcare,3027.36, 30-Jul-2013
246,Revenue,CCHD,Home Care - Elderly - North,Other Small Contracts,Brunelcare,4445.2, 30-Jul-2013
247,Revenue,CCHD,Day Care - South,Private & Voluntary Day Care,Brunelcare,73.44, 30-Jul-2013
248,Revenue,CCHD,Day Care - North,Private & Voluntary Day Care,Brunelcare,81.6, 30-Jul-2013
249,Revenue,CCHD,Home care - Elderly MH - North,Other Small Contracts,Brunelcare,126.48, 30-Jul-2013
250,Revenue,CCHD,Home Care - Elderly - South,Other Small Contracts,Brunelcare,2786.64, 31-Jul-2013
251,Revenue,CCHD,Home Care - Elderly - North,Other Small Contracts,Brunelcare,4525.79, 31-Jul-2013
252,Revenue,CCHD,Day Care - South,Private & Voluntary Day Care,Brunelcare,77.52, 31-Jul-2013
253,Revenue,CCHD,Day Care - North,Private & Voluntary Day Care,Brunelcare,81.6, 31-Jul-2013
254,Revenue,CCHD,Home care - Elderly MH - North,Other Small Contracts,Brunelcare,155.04, 31-Jul-2013
255,Revenue,CCHD,Home Care - Elderly - North,Private & Voluntary Home Care,Brunelcare,10939.92, 15-Jul-2013
256,Revenue,CCHD,Complaints and FOI,Other Transport Costs,BSI Management Systems,1814, 19-Jul-2013
257,Revenue,CCHD,Information Systems - Software,Computer Equipment - Purchase,BT Global Services Solutions,978.04, 09-Jul-2013
258,Revenue,CCHD,Woodleaze,Cleaning & Domestic Services,Bunzl Cleaning & Hygiene Supplies,1041.36, 01-Jul-2013
259,Revenue,CCHD,Bed purchasing - Phys Dis - North,Nursing Homes,Bupa Care Services  Bridge House,5851.68, 09-Jul-2013
260,Revenue,CCHD,South Glos Users in all other LA Homes,Nursing Homes,Bupa Care Services  Bridge House,604.4, 09-Jul-2013
261,Revenue,CCHD,Bed purchasing - Elderly MH - North,Residential Homes,Bupa Care Services  Bridge House,1900, 09-Jul-2013
262,Revenue,CCHD,Bed Purchasing - Frenchay Hospital,Nursing Homes,Bupa Care Services  Bridge House,5437.59, 09-Jul-2013
263,Revenue,CCHD,Supported Living - North,Private & Voluntary Home Care,Camphill Communities Thornbury Limited,2290.92, 03-Jul-2013
264,Revenue,CCHD,Supported Living - North,Private & Voluntary Home Care,Camphill Communities Thornbury Limited,2049.76, 03-Jul-2013
265,Revenue,CCHD,Supported Living - North,Private & Voluntary Home Care,Camphill Communities Thornbury Limited,2016.48, 03-Jul-2013
266,Revenue,CCHD,Supported Living - North,Private & Voluntary Home Care,Camphill Communities Thornbury Limited,2132.92, 10-Jul-2013
267,Revenue,CCHD,Supported Living - North,Private & Voluntary Home Care,Camphill Communities Thornbury Limited,2016.48, 11-Jul-2013
268,Revenue,CCHD,Supported Living - North,Private & Voluntary Home Care,Camphill Communities Thornbury Limited,2237.32, 11-Jul-2013
269,Revenue,CCHD,Supported Living - North,Private & Voluntary Home Care,Camphill Communities Thornbury Limited,1792.96, 11-Jul-2013
270,Revenue,CCHD,Supported Living - North,Private & Voluntary Home Care,Camphill Communities Thornbury Limited,2303.08, 11-Jul-2013
271,Revenue,CCHD,Supported Living - North,Private & Voluntary Home Care,Camphill Communities Thornbury Limited,2203.08, 11-Jul-2013
272,Revenue,CCHD,Supported Living - North,Private & Voluntary Home Care,Camphill Communities Thornbury Limited,2450.96, 10-Jul-2013
273,Revenue,CCHD,Supported Living - North,Private & Voluntary Home Care,Camphill Communities Thornbury Limited,1753.08, 24-Jul-2013
274,Revenue,CCHD,Supported Living - North,Private & Voluntary Home Care,Camphill Communities Thornbury Limited,2498.76, 24-Jul-2013
275,Revenue,CCHD,Supported Living - North,Private & Voluntary Home Care,Camphill Communities Thornbury Limited,2597.48, 24-Jul-2013
276,Revenue,CCHD,Supported Living - North,Private & Voluntary Home Care,Camphill Communities Thornbury Limited,1822.24, 26-Jul-2013
277,Revenue,CCHD,Supported Living - North,Private & Voluntary Home Care,Camphill Communities Thornbury Limited,2290.92, 31-Jul-2013
278,Revenue,CCHD,Supported Living - North,Private & Voluntary Home Care,Camphill Communities Thornbury Limited,2049.76, 31-Jul-2013
279,Revenue,CCHD,Supported Living - North,Private & Voluntary Home Care,Camphill Communities Thornbury Limited,2016.48, 31-Jul-2013
280,Revenue,CCHD,Bed purchasing - Under 65s PWLD - North,Residential Homes,Camphill Devon Community,1951.97, 09-Jul-2013
281,Revenue,CCHD,Supported Living - South,Private & Voluntary Home Care,Camphill Village Trust,1449.11, 15-Jul-2013
282,Revenue,CCHD,Supported Living - South,Private & Voluntary Home Care,Camphill Village Trust,1449.11, 19-Jul-2013
283,Revenue,CCHD,Bed Purchasing - Elderly S117- North,Residential Homes,Canjayor,5585.71, 09-Jul-2013
284,Revenue,CCHD,Bed Purchasing - PWLD S 117 Placements,Residential Homes,Care Community Ltd,7536.4, 09-Jul-2013
285,Revenue,CCHD,Home Care - Elderly - North,Other Small Contracts,Care Horizons Limited,2976.08, 03-Jul-2013
286,Revenue,CCHD,Day Care - South,Private & Voluntary Day Care,Care Horizons Limited,359.16, 03-Jul-2013
287,Revenue,CCHD,Home Care - Elderly - North,Other Small Contracts,Care Horizons Limited,2980.48, 12-Jul-2013
288,Revenue,CCHD,Day Care - South,Private & Voluntary Day Care,Care Horizons Limited,354.77, 12-Jul-2013
289,Revenue,CCHD,Home Care - Elderly - North,Other Small Contracts,Care Horizons Limited,2965.11, 26-Jul-2013
290,Revenue,CCHD,Day Care - South,Private & Voluntary Day Care,Care Horizons Limited,367.92, 26-Jul-2013
291,Revenue,CCHD,Supported Living - North,Private & Voluntary Home Care,Care Horizons Limited,5471.97, 15-Jul-2013
292,Revenue,CCHD,Purchase of Non-Res Care - North,Private & Voluntary Day Care,Care Horizons Limited,1554.81, 15-Jul-2013
293,Revenue,CCHD,Purchase of Non-Res Care - North,Private & Voluntary Day Care,Care Horizons Limited,1068.03, 15-Jul-2013
294,Revenue,CCHD,Purchase of Non-Res Care - North,Private & Voluntary Day Care,Care Horizons Limited,1051.11, 15-Jul-2013
295,Revenue,CCHD,Purchase of Non-Res Care - North,Private & Voluntary Day Care,Care Horizons Limited,1243.97, 15-Jul-2013
296,Revenue,CCHD,Supported Living - South,Private & Voluntary Home Care,Care Horizons Limited,1797.17, 15-Jul-2013
297,Revenue,CCHD,Supported Living - North,Private & Voluntary Home Care,Care Horizons Limited,5368.42, 31-Jul-2013
298,Revenue,CCHD,Electronic Home Care Monitoring,Other Supplies & Services,Care Monitoring 2000 Limited,11735.75, 15-Jul-2013
299,Revenue,CCHD,Home Care - Elderly - South,Other Small Contracts,Care UK,5477.34, 05-Jul-2013
300,Revenue,CCHD,Home Care - Elderly - North,Other Small Contracts,Care UK,2165.46, 05-Jul-2013
301,Revenue,CCHD,Day Care - South,Private & Voluntary Day Care,Care UK,270.2, 05-Jul-2013
302,Revenue,CCHD,Day Care - North,Private & Voluntary Day Care,Care UK,652.34, 05-Jul-2013
303,Revenue,CCHD,Home care - Elderly MH - North,Other Small Contracts,Care UK,579, 05-Jul-2013
304,Revenue,CCHD,Elderly MH Day Care North,Private & Voluntary Day Care,Care UK,135.1, 05-Jul-2013
305,Revenue,CCHD,Home Care - Elderly - South,Other Small Contracts,Care UK,5496.64, 19-Jul-2013
306,Revenue,CCHD,Home Care - Elderly - North,Other Small Contracts,Care UK,2099.84, 19-Jul-2013
307,Revenue,CCHD,Day Care - South,Private & Voluntary Day Care,Care UK,270.2, 19-Jul-2013
308,Revenue,CCHD,Day Care - North,Private & Voluntary Day Care,Care UK,648.48, 19-Jul-2013
309,Revenue,CCHD,Home care - Elderly MH - North,Other Small Contracts,Care UK,579, 19-Jul-2013
310,Revenue,CCHD,Elderly MH Day Care North,Private & Voluntary Day Care,Care UK,138.96, 19-Jul-2013
311,Revenue,CCHD,Home Care - Elderly - South,Other Small Contracts,Care UK,5550.95, 23-Jul-2013
312,Revenue,CCHD,Home Care - Elderly - North,Other Small Contracts,Care UK,2143.35, 23-Jul-2013
313,Revenue,CCHD,Day Care - South,Private & Voluntary Day Care,Care UK,270.2, 23-Jul-2013
314,Revenue,CCHD,Day Care - North,Private & Voluntary Day Care,Care UK,524.96, 23-Jul-2013
315,Revenue,CCHD,Home care - Elderly MH - North,Other Small Contracts,Care UK,582.86, 23-Jul-2013
316,Revenue,CCHD,Elderly MH Day Care North,Private & Voluntary Day Care,Care UK,131.24, 23-Jul-2013
317,Revenue,CCHD,Home Care - Elderly - North,Other Small Contracts,Carers R Us (Bristol) Limited,571.28, 05-Jul-2013
318,Revenue,CCHD,Home Care - Elderly - North,Other Small Contracts,Carers R Us (Bristol) Limited,571.28, 05-Jul-2013
319,Revenue,CCHD,Home Care - Elderly - North,Other Small Contracts,Carers R Us (Bristol) Limited,586.72, 30-Jul-2013
320,Revenue,CCHD,Home Care - Elderly - North,Other Small Contracts,Carers R Us (Bristol) Limited,586.72, 31-Jul-2013
321,Revenue,CCHD,Home Care - Elderly - North,Other Small Contracts,Carers R Us (Bristol) Limited,575.14, 31-Jul-2013
322,Revenue,CCHD,Home Care - Elderly - North,Other Small Contracts,Carers R Us (Bristol) Limited,579, 31-Jul-2013
323,Revenue,CCHD,Home Care - Elderly - South,Other Small Contracts,Carewatch (Bristol),939.25, 30-Jul-2013
324,Revenue,CCHD,Home Care - Elderly - North,Other Small Contracts,Carewatch (Bristol),1262.25, 30-Jul-2013
325,Revenue,CCHD,Home Care - Elderly - South,Other Small Contracts,Carewatch (Bristol),981.75, 30-Jul-2013
326,Revenue,CCHD,Home Care - Elderly - North,Other Small Contracts,Carewatch (Bristol),1181.5, 30-Jul-2013
327,Revenue,CCHD,Home Care - Elderly - South,Other Small Contracts,Carewatch (Bristol),892.5, 30-Jul-2013
328,Revenue,CCHD,Home Care - Elderly - North,Other Small Contracts,Carewatch (Bristol),1198.5, 30-Jul-2013
329,Revenue,CCHD,Home Care - Elderly - South,Other Small Contracts,Carewatch (Bristol),918, 30-Jul-2013
330,Revenue,CCHD,Home Care - Elderly - North,Other Small Contracts,Carewatch (Bristol),1249.5, 30-Jul-2013
331,Revenue,CCHD,Elderly MH Day Care South,Private & Voluntary Day Care,Caring Home Healthcare Group Limited,2400, 05-Jul-2013
332,Revenue,CCHD,Home Care - Elderly - South,Other Small Contracts,Cash Friday at Lloyds TSB,101.4, 12-Jul-2013
333,Revenue,CCHD,Home Care - Elderly - North,Other Small Contracts,Cash Friday at Lloyds TSB,920.4, 12-Jul-2013
334,Revenue,CCHD,Home Care - Elderly - South,Other Small Contracts,Cash Friday at Lloyds TSB,101.4, 12-Jul-2013
335,Revenue,CCHD,Home Care - Elderly - North,Other Small Contracts,Cash Friday at Lloyds TSB,920.4, 12-Jul-2013
336,Revenue,CCHD,Home Care - Elderly - South,Other Small Contracts,Cash Friday at Lloyds TSB,101.4, 12-Jul-2013
337,Revenue,CCHD,Home Care - Elderly - North,Other Small Contracts,Cash Friday at Lloyds TSB,920.4, 12-Jul-2013
338,Revenue,CCHD,Home Care - Elderly - South,Other Small Contracts,Cash Friday at Lloyds TSB,101.4, 19-Jul-2013
339,Revenue,CCHD,Home Care - Elderly - North,Other Small Contracts,Cash Friday at Lloyds TSB,932.1, 19-Jul-2013
340,Revenue,CCHD,Home Care - Elderly - South,Other Small Contracts,Cash Friday at Lloyds TSB,101.4, 31-Jul-2013
341,Revenue,CCHD,Home Care - Elderly - North,Other Small Contracts,Cash Friday at Lloyds TSB,924.3, 31-Jul-2013
342,Revenue,CCHD,Home Care - Elderly - South,Other Small Contracts,Cash Friday at Lloyds TSB,101.4, 31-Jul-2013
343,Revenue,CCHD,Home Care - Elderly - North,Other Small Contracts,Cash Friday at Lloyds TSB,904.8, 31-Jul-2013
344,Revenue,CCHD,Home Care - Elderly - South,Other Small Contracts,Cash Friday at Lloyds TSB,101.4, 10-Jul-2013
345,Revenue,CCHD,Home Care - Elderly - North,Other Small Contracts,Cash Friday at Lloyds TSB,990.6, 10-Jul-2013
346,Revenue,CCHD,Bed Purchasing - Frenchay Hospital,Residential Homes,Centenary Care Homes Ltd,1246, 09-Jul-2013
347,Revenue,CCHD,Bed Purchasing - Elderly - South,Residential Homes,Cepen Lodge Care Home,2176.28, 09-Jul-2013
348,Revenue,CCHD,Bed Purchasing - Southmead Hospital,Residential Homes,Charlton House Residential Home,1385.36, 09-Jul-2013
349,Revenue,CCHD,Home Care - Elderly - South,Other Small Contracts,Cherish Able Care Limited,5495.36, 08-Jul-2013
350,Revenue,CCHD,Home Care - Elderly - South,Other Small Contracts,Cherish Able Care Limited,5657.6, 12-Jul-2013
351,Revenue,CCHD,Home Care - Elderly - South,Other Small Contracts,Cherish Able Care Limited,5383.04, 19-Jul-2013
352,Revenue,CCHD,Home Care - Elderly - South,Other Small Contracts,Cherish Able Care Limited,4975.36, 26-Jul-2013
353,Revenue,CCHD,Bed purchasing -S28A  Under 65 - North,Residential Homes,Chescombe Lodge,8569.72, 09-Jul-2013
354,Revenue,CCHD,Bed Purchasing - Under 65s PWLD - South,Residential Homes,Chosen Court,6910.16, 09-Jul-2013
355,Revenue,CCHD,Bed Purchasing - PWLD S 117 Placements,Residential Homes,Chosen Court,8801.84, 09-Jul-2013
356,Revenue,CCHD,Bed Purchasing - Under 65s PWLD - South,Residential Homes,Chosen Court,5375.48, 09-Jul-2013
357,Revenue,CCHD,Bed purchasing - Under 65s PWLD - North,Residential Homes,Church House,10354.44, 09-Jul-2013
358,Revenue,CCHD,Bed purchasing - Under 65s PWLD - North,Residential Homes,Church House,5816.84, 09-Jul-2013
359,Revenue,CCHD,Tenancy Start Up Scheme,Other Supplies & Services,Individual,620, 22-Jul-2013
360,Revenue,CCHD,Bed Purchasing - Elderly - South,Residential Homes,Cleeve Lodge,1603.16, 09-Jul-2013
361,Revenue,CCHD,Bed Purchasing - Southmead Hospital,Residential Homes,Cleeve Lodge,1435.24, 09-Jul-2013
362,Revenue,CCHD,Bed Purchasing - Elderly - North,Residential Homes,Cleeve Lodge,1105.92, 09-Jul-2013
363,Revenue,CCHD,Bed Purchasing - Elderly - South,Residential Homes,Cleeve Lodge,1775.52, 09-Jul-2013
364,Revenue,CCHD,Bed Purchasing - Elderly - South,Residential Homes,Cleeve Lodge,1764.48, 09-Jul-2013
365,Revenue,CCHD,Bed Purchasing - Elderly - South,Residential Homes,Cleeve Lodge,2258.44, 09-Jul-2013
366,Revenue,CCHD,Bed Purchasing - Elderly - North,Residential Homes,Cleeve Lodge,3037.89, 09-Jul-2013
367,Revenue,CCHD,Bed Purchasing - Elderly - South,Residential Homes,Cleeve Lodge,1779.92, 09-Jul-2013
368,Revenue,CCHD,Bed Purchasing - Elderly - South,Residential Homes,Cleeve Lodge,3173.83, 09-Jul-2013
369,Revenue,CCHD,Bed Purchasing - Elderly - South,Residential Homes,Cleeve Lodge,1627.33, 09-Jul-2013
370,Revenue,CCHD,Bed Purchasing - Elderly - South,Residential Homes,Collingwood Residential Home,1298.48, 09-Jul-2013
371,Revenue,CCHD,Bed Purchasing - Elderly - South,Residential Homes,Collingwood Residential Home,1403.68, 09-Jul-2013
372,Revenue,CCHD,Bed Purchasing - Elderly - South,Residential Homes,Collingwood Residential Home,1421, 09-Jul-2013
373,Revenue,CCHD,Bed Purchasing - Elderly - South,Residential Homes,Collingwood Residential Home,1089.96, 09-Jul-2013
374,Revenue,CCHD,Bed Purchasing - Elderly - South,Residential Homes,Collingwood Residential Home,1334.28, 09-Jul-2013
375,Revenue,CCHD,Bed Purchasing - Elderly MH - South,Residential Homes,Collingwood Residential Home,1306.28, 09-Jul-2013
376,Revenue,CCHD,Bed Purchasing - Elderly - South,Residential Homes,Collingwood Residential Home,1156.52, 09-Jul-2013
377,Revenue,CCHD,Bed Purchasing - Elderly - South,Residential Homes,Collingwood Residential Home,1268.04, 09-Jul-2013
378,Revenue,CCHD,Bed Purchasing - Elderly - South,Residential Homes,Collingwood Residential Home,1405.32, 09-Jul-2013
379,Revenue,CCHD,Bed and Breakfast,Bed & Breakfast,Connolly & Callaghan Limited,665, 19-Jul-2013
380,Revenue,CCHD,Bed and Breakfast,Bed & Breakfast,Connolly & Callaghan Limited,665, 19-Jul-2013
381,Revenue,CCHD,Bed and Breakfast,Bed & Breakfast,Connolly & Callaghan Limited,546, 19-Jul-2013
382,Revenue,CCHD,Bed and Breakfast,Bed & Breakfast,Connolly & Callaghan Limited,476, 19-Jul-2013
383,Revenue,CCHD,Bed and Breakfast,Bed & Breakfast,Connolly & Callaghan Limited,665, 19-Jul-2013
384,Revenue,CCHD,Bed and Breakfast,Bed & Breakfast,Connolly & Callaghan Limited,546, 19-Jul-2013
385,Revenue,CCHD,Bed and Breakfast,Bed & Breakfast,Connolly & Callaghan Limited,441, 19-Jul-2013
386,Revenue,CCHD,Bed and Breakfast,Bed & Breakfast,Connolly & Callaghan Limited,741, 19-Jul-2013
387,Revenue,CCHD,Bed and Breakfast,Bed & Breakfast,Connolly & Callaghan Limited,476, 19-Jul-2013
388,Revenue,CCHD,Bed and Breakfast,Bed & Breakfast,Connolly & Callaghan Limited,665, 19-Jul-2013
389,Revenue,CCHD,Bed and Breakfast,Bed & Breakfast,Connolly & Callaghan Limited,441, 19-Jul-2013
390,Revenue,CCHD,Bed and Breakfast,Bed & Breakfast,Connolly & Callaghan Limited,441, 19-Jul-2013
391,Revenue,CCHD,Bed and Breakfast,Bed & Breakfast,Connolly & Callaghan Limited,476, 19-Jul-2013
392,Revenue,CCHD,Bed and Breakfast,Bed & Breakfast,Connolly & Callaghan Limited,546, 19-Jul-2013
393,Revenue,CCHD,Bed and Breakfast,Bed & Breakfast,Connolly & Callaghan Limited,665, 19-Jul-2013
394,Revenue,CCHD,Bed and Breakfast,Bed & Breakfast,Connolly & Callaghan Limited,441, 19-Jul-2013
395,Revenue,CCHD,Bed and Breakfast,Bed & Breakfast,Connolly & Callaghan Limited,441, 19-Jul-2013
396,Revenue,CCHD,Bed and Breakfast,Bed & Breakfast,Connolly & Callaghan Limited,665, 19-Jul-2013
397,Revenue,CCHD,Bed and Breakfast,Bed & Breakfast,Connolly & Callaghan Limited,441, 19-Jul-2013
398,Revenue,CCHD,Bed and Breakfast,Bed & Breakfast,Connolly & Callaghan Limited,546, 19-Jul-2013
399,Revenue,CCHD,Bed and Breakfast,Bed & Breakfast,Connolly & Callaghan Limited,616, 19-Jul-2013
400,Revenue,CCHD,Bed and Breakfast,Bed & Breakfast,Connolly & Callaghan Limited,441, 01-Jul-2013
401,Revenue,CCHD,Bed and Breakfast,Bed & Breakfast,Connolly & Callaghan Limited,476, 01-Jul-2013
402,Revenue,CCHD,Bed and Breakfast,Bed & Breakfast,Connolly & Callaghan Limited,441, 24-Jul-2013
403,Revenue,CCHD,Bed and Breakfast,Bed & Breakfast,Connolly & Callaghan Limited,441, 19-Jul-2013
404,Revenue,CCHD,Bed and Breakfast,Bed & Breakfast,Connolly & Callaghan Limited,441, 24-Jul-2013
405,Revenue,CCHD,Bed and Breakfast,Bed & Breakfast,Connolly & Callaghan Limited,441, 24-Jul-2013
406,Revenue,CCHD,Bed and Breakfast,Bed & Breakfast,Connolly & Callaghan Limited,441, 26-Jul-2013
407,Revenue,CCHD,Bed and Breakfast,Bed & Breakfast,Connolly & Callaghan Limited,441, 24-Jul-2013
408,Revenue,CCHD,Bed and Breakfast,Bed & Breakfast,Connolly & Callaghan Limited,476, 30-Jul-2013
409,Revenue,CCHD,Bed and Breakfast,Bed & Breakfast,Connolly & Callaghan Limited,546, 26-Jul-2013
410,Revenue,CCHD,Bed and Breakfast,Bed & Breakfast,Connolly & Callaghan Limited,441, 24-Jul-2013
411,Revenue,CCHD,Bed Purchasing - Frenchay Hospital,Residential Homes,Coombs Wood House,962.96, 09-Jul-2013
412,Revenue,CCHD,Bed purchasing -S28A  Under 65 - North,Residential Homes,Cream Ii Ltd  Longrun House,7924.8, 09-Jul-2013
413,Revenue,CCHD,Bed Purchasing - Under 65s PWLD - South,Residential Homes,Cream Ii Ltd  Longrun House,5546.44, 09-Jul-2013
414,Revenue,CCHD,Bed purchasing -S28A  Under 65 - North,Residential Homes,Creedy Court,9157.32, 09-Jul-2013
415,Revenue,CCHD,Bed Purchasing - S28A - Over 65- North,Residential Homes,Creedy Court,7616.76, 09-Jul-2013
416,Revenue,CCHD,Brokerage and Information Service,Grants to Voluntary Bodies,D H I,9210.08, 26-Jul-2013
417,Revenue,CCHD,Tenancy Start Up Scheme,Other Supplies & Services,D W Smith and Co,1625, 04-Jul-2013
418,Revenue,CCHD,Purchase of Non-Res Care - South,Private & Voluntary Day Care,Daneswood,5831.88, 04-Jul-2013
419,Revenue,CCHD,Purchase of Non-Res Care - South,Private & Voluntary Home Care,Daneswood,5071.2, 31-Jul-2013
420,Revenue,CCHD,Bed Purchasing - Under 65s PWLD - South,Residential Homes,Daneswood,10848.44, 09-Jul-2013
421,Revenue,CCHD,Bed purchasing - Under 65s PWLD - North,Residential Homes,Daneswood,8986.84, 09-Jul-2013
422,Revenue,CCHD,Learning Difficulties PSL,Other Supplies & Services,Individual,2016.44, 22-Jul-2013
423,Revenue,CCHD,Training - Adult Services,Training Expenses,Dennis Casling,550, 09-Jul-2013
424,Revenue,CCHD,Purchase of Non-Res Care - North,Private & Voluntary Day Care,Design 4 Life Ltd,1551.6, 19-Jul-2013
425,Revenue,CCHD,Purchase of Non-Res Care - North,Private & Voluntary Day Care,Design 4 Life Ltd,1486.16, 19-Jul-2013
426,Revenue,CCHD,Purchase of Non-Res Care - North,Private & Voluntary Day Care,Design 4 Life Ltd,1012.85, 25-Jul-2013
427,Revenue,CCHD,Bed Purchasing - Under 65s PWLD - South,Residential Homes,Devon & Cornwall Autistic Community Trus,8668.84, 09-Jul-2013
428,Revenue,CCHD,Day Care - South,Private & Voluntary Day Care,Dhek Bhal,835.6, 23-Jul-2013
429,Revenue,CCHD,Day Care - South,Private & Voluntary Day Care,Dhek Bhal,668.48, 24-Jul-2013
430,Revenue,CCHD,Bed Purchasing - Under 65s PWLD - South,Residential Homes,Dimensions (Uk),4808.36, 09-Jul-2013
431,Revenue,CCHD,Supported Living - South,Private & Voluntary Home Care,Dimensions (UK) Ltd,7748.4, 18-Jul-2013
432,Revenue,CCHD,Supported Living - South,Private & Voluntary Home Care,Dimensions (UK) Ltd,8006.68, 18-Jul-2013
433,Revenue,CCHD,Home Care - Elderly - South,Other Small Contracts,DoCare Ltd,4525.23, 16-Jul-2013
434,Revenue,CCHD,Home Care - Elderly - North,Other Small Contracts,DoCare Ltd,7014.34, 16-Jul-2013
435,Revenue,CCHD,Day Care - North,Private & Voluntary Day Care,DoCare Ltd,168.12, 16-Jul-2013
436,Revenue,CCHD,Home Care - Elderly - South,Other Small Contracts,DoCare Ltd,4249.7, 16-Jul-2013
437,Revenue,CCHD,Home Care - Elderly - North,Other Small Contracts,DoCare Ltd,7037.69, 16-Jul-2013
438,Revenue,CCHD,Day Care - North,Private & Voluntary Day Care,DoCare Ltd,168.12, 16-Jul-2013
439,Revenue,CCHD,Home Care - Elderly - South,Other Small Contracts,DoCare Ltd,4305.74, 16-Jul-2013
440,Revenue,CCHD,Home Care - Elderly - North,Other Small Contracts,DoCare Ltd,7187.13, 16-Jul-2013
441,Revenue,CCHD,Day Care - North,Private & Voluntary Day Care,DoCare Ltd,168.12, 16-Jul-2013
442,Revenue,CCHD,Home Care - Elderly - South,Other Small Contracts,DoCare Ltd,4025.54, 10-Jul-2013
443,Revenue,CCHD,Home Care - Elderly - North,Other Small Contracts,DoCare Ltd,7836.26, 10-Jul-2013
444,Revenue,CCHD,Day Care - North,Private & Voluntary Day Care,DoCare Ltd,172.79, 10-Jul-2013
445,Revenue,CCHD,Home Care - Elderly - South,Other Small Contracts,DoCare Ltd,4548.58, 16-Jul-2013
446,Revenue,CCHD,Home Care - Elderly - North,Other Small Contracts,DoCare Ltd,7747.53, 16-Jul-2013
447,Revenue,CCHD,Day Care - North,Private & Voluntary Day Care,DoCare Ltd,172.79, 16-Jul-2013
448,Revenue,CCHD,Tenancy Start Up Scheme,Other Supplies & Services,Dovetail Properties,1390, 11-Jul-2013
449,Revenue,CCHD,Bed Purchasing - Under 65s PWLD - South,Residential Homes,Dudbridge House,6546.16, 09-Jul-2013
450,Revenue,CCHD,Bed Purchasing - Elderly - South,Nursing Homes,Dunkirk Memorial House,1158.8, 09-Jul-2013
451,Revenue,CCHD,MH Purchasing - Younger,Residential Homes,Dunraven House,1826.8, 09-Jul-2013
452,Revenue,CCHD,Bed and Breakfast,Bed & Breakfast,E J Bartlett,651, 15-Jul-2013
453,Revenue,CCHD,Bed and Breakfast,Bed & Breakfast,E J Bartlett,651, 15-Jul-2013
454,Revenue,CCHD,Bed and Breakfast,Bed & Breakfast,E J Bartlett,868, 15-Jul-2013
455,Revenue,CCHD,Bed and Breakfast,Bed & Breakfast,E J Bartlett,434, 15-Jul-2013
456,Revenue,CCHD,Bed and Breakfast,Bed & Breakfast,E J Bartlett,1193.5, 15-Jul-2013
457,Revenue,CCHD,Bed and Breakfast,Bed & Breakfast,E J Bartlett,651, 12-Jul-2013
458,Revenue,CCHD,Bed and Breakfast,Bed & Breakfast,E J Bartlett,651, 17-Jul-2013
459,Revenue,CCHD,Bed and Breakfast,Bed & Breakfast,E J Bartlett,651, 16-Jul-2013
460,Revenue,CCHD,Bed and Breakfast,Bed & Breakfast,E J Bartlett,868, 16-Jul-2013
461,Revenue,CCHD,Bed and Breakfast,Bed & Breakfast,E J Bartlett,434, 16-Jul-2013
462,Revenue,CCHD,Bed and Breakfast,Bed & Breakfast,E J Bartlett,759.5, 16-Jul-2013
463,Revenue,CCHD,Bed and Breakfast,Bed & Breakfast,E J Bartlett,759.5, 23-Jul-2013
464,Revenue,CCHD,Bed and Breakfast,Bed & Breakfast,E J Bartlett,651, 23-Jul-2013
465,Revenue,CCHD,Bed and Breakfast,Bed & Breakfast,E J Bartlett,465, 23-Jul-2013
466,Revenue,CCHD,Bed and Breakfast,Bed & Breakfast,E J Bartlett,434, 23-Jul-2013
467,Revenue,CCHD,Bed purchasing - Under 65s PWLD - North,Residential Homes,East Court,2180.72, 09-Jul-2013
468,Revenue,CCHD,Bed Purchasing - Southmead Hospital,Residential Homes,Edgecumbe Lodge,1246, 09-Jul-2013
469,Revenue,CCHD,Bed Purchasing - Elderly - South,Residential Homes,Edgecumbe Lodge,1052.16, 09-Jul-2013
470,Revenue,CCHD,Bed Purchasing - Elderly - North,Residential Homes,Edgecumbe Lodge,1000, 09-Jul-2013
471,Revenue,CCHD,Bed Purchasing - Elderly - South,Residential Homes,Edgecumbe Lodge,1312.64, 09-Jul-2013
472,Revenue,CCHD,Bed Purchasing - Elderly - South,Residential Homes,Edgecumbe Lodge,1405.12, 09-Jul-2013
473,Revenue,CCHD,Bed Purchasing - Elderly - South,Residential Homes,Edgecumbe Lodge,991.96, 09-Jul-2013
474,Revenue,CCHD,Bed Purchasing - Elderly - South,Residential Homes,Edgecumbe Lodge,1276.24, 09-Jul-2013
475,Revenue,CCHD,Bed Purchasing - Elderly - South,Residential Homes,Edgecumbe Lodge,1223.16, 09-Jul-2013
476,Revenue,CCHD,Bed Purchasing - Elderly MH - South,Residential Homes,Edgecumbe Lodge,1151.68, 09-Jul-2013
477,Revenue,CCHD,Bed Purchasing - Southmead Hospital,Residential Homes,Edgemont House Ltd,1414, 09-Jul-2013
478,Revenue,CCHD,Bed Purchasing - Frenchay Hospital,Residential Homes,Edgemont House Ltd,1940, 09-Jul-2013
479,Revenue,CCHD,Bed Purchasing - Elderly - South,Residential Homes,Edgemont House Ltd,1246, 09-Jul-2013
480,Revenue,CCHD,Bed Purchasing - Elderly - South,Residential Homes,Edgemont House Ltd,1246, 09-Jul-2013
481,Revenue,CCHD,Bed Purchasing - Elderly - South,Residential Homes,Edgemont House Ltd,1412.04, 09-Jul-2013
482,Revenue,CCHD,Bed Purchasing - Elderly - South,Residential Homes,Edgemont House Ltd,1260.96, 09-Jul-2013
483,Revenue,CCHD,Bed Purchasing - Elderly - South,Nursing Homes,Edgemont View Nursing Home,1427.52, 09-Jul-2013
484,Revenue,CCHD,Bed Purchasing - Frenchay Hospital,Nursing Homes,Edgemont View Nursing Home,676, 09-Jul-2013
485,Revenue,CCHD,Bed Purchasing - Elderly - South,Nursing Homes,Edgemont View Nursing Home,1302, 09-Jul-2013
486,Revenue,CCHD,Bed Purchasing - Elderly - South,Nursing Homes,Edgemont View Nursing Home,769.96, 09-Jul-2013
487,Revenue,CCHD,Bed Purchasing - Elderly - South,Nursing Homes,Edgemont View Nursing Home,575.8, 09-Jul-2013
488,Revenue,CCHD,Bed Purchasing - Elderly - South,Nursing Homes,Edgemont View Nursing Home,1613.52, 09-Jul-2013
489,Revenue,CCHD,Bed Purchasing - Elderly - South,Nursing Homes,Edgemont View Nursing Home,1177.24, 09-Jul-2013
490,Revenue,CCHD,Supporting People Programme,Grants to Voluntary Bodies,Elim Housing Association Limited,4945.25, 01-Jul-2013
491,Revenue,CCHD,Home Care - Elderly - South,Other Small Contracts,Elite Home Care Ltd,4006.81, 16-Jul-2013
492,Revenue,CCHD,Home care - Elderly MH - North,Other Small Contracts,Elite Home Care Ltd,161.69, 16-Jul-2013
493,Revenue,CCHD,Home Care - Elderly - South,Other Small Contracts,Elite Home Care Ltd,4116.06, 11-Jul-2013
494,Revenue,CCHD,Home care - Elderly MH - North,Other Small Contracts,Elite Home Care Ltd,166.06, 11-Jul-2013
495,Revenue,CCHD,Home Care - Elderly - South,Other Small Contracts,Elite Home Care Ltd,4290.86, 11-Jul-2013
496,Revenue,CCHD,Home care - Elderly MH - North,Other Small Contracts,Elite Home Care Ltd,157.32, 11-Jul-2013
497,Revenue,CCHD,Home Care - Elderly - South,Other Small Contracts,Elite Home Care Ltd,3976.22, 11-Jul-2013
498,Revenue,CCHD,Home care - Elderly MH - North,Other Small Contracts,Elite Home Care Ltd,152.95, 11-Jul-2013
499,Revenue,CCHD,Home Care - Elderly - South,Other Small Contracts,Elite Home Care Ltd,4382.63, 31-Jul-2013
500,Revenue,CCHD,Home care - Elderly MH - North,Other Small Contracts,Elite Home Care Ltd,157.32, 31-Jul-2013
501,Revenue,CCHD,Home Care - Elderly - South,Other Small Contracts,Elite Home Care Ltd,4146.65, 31-Jul-2013
502,Revenue,CCHD,Home care - Elderly MH - North,Other Small Contracts,Elite Home Care Ltd,157.32, 31-Jul-2013
503,Revenue,CCHD,Bed Purchasing - Elderly - South,Residential Homes,Elmbridge Residential Home Ltd,1317.56, 09-Jul-2013
504,Revenue,CCHD,Bed Purchasing - Frenchay Hospital,Nursing Homes,Elmwood Nursing Home,2223.88, 09-Jul-2013
505,Revenue,CCHD,Younger MH non-res purchasing,Private & Voluntary Day Care,Enham,638.72, 10-Jul-2013
506,Revenue,CCHD,Bed Purchasing - Southmead Hospital,Nursing Homes,Epworth House,1335, 09-Jul-2013
507,Revenue,CCHD,Tenancy Start Up Scheme,Other Supplies & Services,Essential Property Management,1470, 04-Jul-2013
508,Revenue,CCHD,Home Care - Elderly - South,Other Small Contracts,Everycare (Bristol) Ltd,4244.24, 05-Jul-2013
509,Revenue,CCHD,Home Care - Elderly - North,Other Small Contracts,Everycare (Bristol) Ltd,2565.2, 05-Jul-2013
510,Revenue,CCHD,Day Care - South,Private & Voluntary Day Care,Everycare (Bristol) Ltd,101.76, 05-Jul-2013
511,Revenue,CCHD,Home Care - Elderly - South,Other Small Contracts,Everycare (Bristol) Ltd,4430.8, 05-Jul-2013
512,Revenue,CCHD,Home Care - Elderly - North,Other Small Contracts,Everycare (Bristol) Ltd,2836.56, 05-Jul-2013
513,Revenue,CCHD,Day Care - South,Private & Voluntary Day Care,Everycare (Bristol) Ltd,97.52, 05-Jul-2013
514,Revenue,CCHD,Home Care - Elderly - South,Other Small Contracts,Everycare (Bristol) Ltd,4290.88, 19-Jul-2013
515,Revenue,CCHD,Home Care - Elderly - North,Other Small Contracts,Everycare (Bristol) Ltd,2895.92, 19-Jul-2013
516,Revenue,CCHD,Day Care - South,Private & Voluntary Day Care,Everycare (Bristol) Ltd,93.28, 19-Jul-2013
517,Revenue,CCHD,Home Care - Elderly - South,Other Small Contracts,Everycare (Bristol) Ltd,4269.68, 19-Jul-2013
518,Revenue,CCHD,Home Care - Elderly - North,Other Small Contracts,Everycare (Bristol) Ltd,3141.84, 19-Jul-2013
519,Revenue,CCHD,Day Care - South,Private & Voluntary Day Care,Everycare (Bristol) Ltd,63.6, 19-Jul-2013
520,Revenue,CCHD,Home Care - Elderly - South,Other Small Contracts,Everycare (Bristol) Ltd,4371.44, 23-Jul-2013
521,Revenue,CCHD,Home Care - Elderly - North,Other Small Contracts,Everycare (Bristol) Ltd,2980.72, 23-Jul-2013
522,Revenue,CCHD,Day Care - South,Private & Voluntary Day Care,Everycare (Bristol) Ltd,101.76, 23-Jul-2013
523,Revenue,CCHD,Bed Purchasing - Elderly MH - South,Residential Homes,Exmouth House,1397.88, 09-Jul-2013
524,Revenue,CCHD,Bed Purchasing - Southmead Hospital,Residential Homes,Fairfield House Care Home,3004.86, 09-Jul-2013
525,Revenue,CCHD,Bed Purchasing - Elderly - South,Nursing Homes,Fairview Court,1180.4, 09-Jul-2013
526,Revenue,CCHD,Bed purchasing - Elderly MH - North,Nursing Homes,Fairview Court,1595.96, 09-Jul-2013
527,Revenue,CCHD,Bed Purchasing - Elderly MH - South,Nursing Homes,Fairview Court,1850.48, 09-Jul-2013
528,Revenue,CCHD,South Glos Users in South Glos Homes,Nursing Homes,Fairview Court,972.43, 09-Jul-2013
529,Revenue,CCHD,Bed Purchasing - Southmead Hospital,Nursing Homes,Fairview Court,1023.72, 09-Jul-2013
530,Revenue,CCHD,Bed Purchasing - Elderly - South,Nursing Homes,Fairview Court,8976.44, 09-Jul-2013
531,Revenue,CCHD,Bed Purchasing - Elderly - South,Nursing Homes,Fairview Court,1817.24, 09-Jul-2013
532,Revenue,CCHD,Bed Purchasing - Elderly MH - South,Residential Homes,Fairview Court,1414, 09-Jul-2013
533,Revenue,CCHD,Bed Purchasing - Elderly - South,Residential Homes,Fairview Court,2648.56, 09-Jul-2013
534,Revenue,CCHD,Bed Purchasing - Elderly - South,Residential Homes,Fairview Court,2154.56, 09-Jul-2013
535,Revenue,CCHD,Bed Purchasing - Elderly - South,Nursing Homes,Fairview Court,1830.44, 09-Jul-2013
536,Revenue,CCHD,Bed Purchasing - Southmead Hospital,Nursing Homes,Fairview Court,2194, 09-Jul-2013
537,Revenue,CCHD,Bed Purchasing - Southmead Hospital,Nursing Homes,Fairview Court,2115.65, 09-Jul-2013
538,Revenue,CCHD,Bed Purchasing - Frenchay Hospital,Nursing Homes,Fairview Court,1836.08, 09-Jul-2013
539,Revenue,CCHD,Bed Purchasing - Elderly MH - South,Nursing Homes,Fairview Court,2002.88, 09-Jul-2013
540,Revenue,CCHD,Bed purchasing - Elderly MH - North,Nursing Homes,Fairview Court,1699.6, 09-Jul-2013
541,Revenue,CCHD,Bed Purchasing - Frenchay Hospital,Nursing Homes,Fairview Court Care Home,1482.48, 09-Jul-2013
542,Revenue,CCHD,South Glos Users in South Glos Homes,Nursing Homes,Fairview Court Care Home,2823.17, 09-Jul-2013
543,Revenue,CCHD,Bed purchasing - Phys Dis - North,Nursing Homes,Fairview Court Care Home,1927.38, 09-Jul-2013
544,Revenue,CCHD,Bed Purchasing - Elderly MH - South,Nursing Homes,Fairview Court Care Home,4528.14, 09-Jul-2013
545,Revenue,CCHD,Bed purchasing - Elderly S117 - South,Nursing Homes,Fairview Court Care Home,2491.46, 09-Jul-2013
546,Revenue,CCHD,Bed Purchasing - Elderly - South,Residential Homes,Fairview House,865.48, 09-Jul-2013
547,Revenue,CCHD,Bed Purchasing - Elderly - South,Residential Homes,Fairview House,1265.24, 09-Jul-2013
548,Revenue,CCHD,Bed Purchasing - Frenchay Hospital,Residential Homes,Fairview House,992.24, 09-Jul-2013
549,Revenue,CCHD,Bed Purchasing - Elderly - South,Residential Homes,Fairview House,928.12, 09-Jul-2013
550,Revenue,CCHD,Bed purchasing - Elderly S117 - South,Residential Homes,Fairview House,1888.88, 09-Jul-2013
551,Revenue,CCHD,Bed Purchasing - Southmead Hospital,Residential Homes,Fairview House,1019.48, 09-Jul-2013
552,Revenue,CCHD,Bed Purchasing - Elderly - South,Residential Homes,Fairview House,1158.84, 09-Jul-2013
553,Revenue,CCHD,Bed Purchasing - Southmead Hospital,Residential Homes,Fairview House,1116.24, 09-Jul-2013
554,Revenue,CCHD,Bed Purchasing - Elderly MH - South,Residential Homes,Fairview House,1109.84, 09-Jul-2013
555,Revenue,CCHD,Bed Purchasing - Frenchay Hospital,Residential Homes,Fairview House,1246, 09-Jul-2013
556,Revenue,CCHD,Bed Purchasing - Southmead Hospital,Residential Homes,Fairview House,1062.04, 09-Jul-2013
557,Revenue,CCHD,Bed Purchasing - Elderly MH - South,Residential Homes,Fairview House,1036.08, 09-Jul-2013
558,Revenue,CCHD,Bed Purchasing - Elderly MH - South,Residential Homes,Fairview House,1206.32, 09-Jul-2013
559,Revenue,CCHD,Bed Purchasing - Frenchay Hospital,Residential Homes,Faith House,1310.92, 09-Jul-2013
560,Revenue,CCHD,Bed purchasing - Under 65s PWLD - North,Residential Homes,Fernbank,7593.16, 09-Jul-2013
561,Revenue,CCHD,Bed Purchasing - Elderly - North,Residential Homes,Field House Care Home,575.15, 09-Jul-2013
562,Revenue,CCHD,Bed Purchasing - Southmead Hospital,Residential Homes,Field House Care Home,958.87, 09-Jul-2013
563,Revenue,CCHD,Bed Purchasing - Elderly - South,Nursing Homes,Four Seasons Health Care,1177.16, 09-Jul-2013
564,Revenue,CCHD,Bed Purchasing - Elderly S117- North,Residential Homes,Four Seasons Health Care,2030.36, 09-Jul-2013
565,Revenue,CCHD,Bed Purchasing - Frenchay Hospital,Residential Homes,Four Seasons Health Care,1526.84, 09-Jul-2013
566,Revenue,CCHD,Home Care - Elderly - South,Other Small Contracts,Freedom Social Care Recruitment,1236.35, 17-Jul-2013
567,Revenue,CCHD,Home Care - Elderly - North,Other Small Contracts,Freedom Social Care Recruitment,2402.31, 17-Jul-2013
568,Revenue,CCHD,Home care - Elderly MH - North,Other Small Contracts,Freedom Social Care Recruitment,15.8, 17-Jul-2013
569,Revenue,CCHD,Home Care - Elderly - South,Other Small Contracts,Freedom Social Care Recruitment,1185.03, 17-Jul-2013
570,Revenue,CCHD,Home Care - Elderly - North,Other Small Contracts,Freedom Social Care Recruitment,2741.7, 17-Jul-2013
571,Revenue,CCHD,Home care - Elderly MH - North,Other Small Contracts,Freedom Social Care Recruitment,7.98, 17-Jul-2013
572,Revenue,CCHD,Home Care - Elderly - South,Other Small Contracts,Freedom Social Care Recruitment,1568.07, 26-Jul-2013
573,Revenue,CCHD,Home Care - Elderly - North,Other Small Contracts,Freedom Social Care Recruitment,2849.43, 26-Jul-2013
574,Revenue,CCHD,Day Care - North,Private & Voluntary Day Care,Freedom Social Care Recruitment,31.92, 26-Jul-2013
575,Revenue,CCHD,Home care - Elderly MH - North,Other Small Contracts,Freedom Social Care Recruitment,15.96, 26-Jul-2013
576,Revenue,CCHD,Home Care - Elderly - South,Other Small Contracts,Freedom Social Care Recruitment,1480.29, 24-Jul-2013
577,Revenue,CCHD,Home Care - Elderly - North,Other Small Contracts,Freedom Social Care Recruitment,2737.71, 24-Jul-2013
578,Revenue,CCHD,Home care - Elderly MH - North,Other Small Contracts,Freedom Social Care Recruitment,15.96, 24-Jul-2013
579,Revenue,CCHD,Home Care - Elderly - South,Other Small Contracts,Freedom Social Care Recruitment,1320.69, 26-Jul-2013
580,Revenue,CCHD,Home Care - Elderly - North,Other Small Contracts,Freedom Social Care Recruitment,2881.35, 26-Jul-2013
581,Revenue,CCHD,Day Care - North,Private & Voluntary Day Care,Freedom Social Care Recruitment,31.92, 26-Jul-2013
582,Revenue,CCHD,Home care - Elderly MH - North,Other Small Contracts,Freedom Social Care Recruitment,15.96, 26-Jul-2013
583,Revenue,CCHD,Home Care - Elderly - South,Other Small Contracts,Freedom Social Care Recruitment,1320.69, 26-Jul-2013
584,Revenue,CCHD,Home Care - Elderly - North,Other Small Contracts,Freedom Social Care Recruitment,3108.78, 26-Jul-2013
585,Revenue,CCHD,Day Care - North,Private & Voluntary Day Care,Freedom Social Care Recruitment,31.92, 26-Jul-2013
586,Revenue,CCHD,Home care - Elderly MH - North,Other Small Contracts,Freedom Social Care Recruitment,15.96, 26-Jul-2013
587,Revenue,CCHD,Home Care - Elderly - South,Other Small Contracts,Freedom Social Care Recruitment,805.8, 31-Jul-2013
588,Revenue,CCHD,Home Care - Elderly - North,Other Small Contracts,Freedom Social Care Recruitment,2639.31, 31-Jul-2013
589,Revenue,CCHD,Freeways,Residential Homes,Freeways Trust Limited,44763.39, 08-Jul-2013
590,Revenue,CCHD,Freeways,Residential Homes,Freeways Trust Limited,44523.52, 22-Jul-2013
591,Revenue,CCHD,Supported Living - South,Private & Voluntary Home Care,Freeways Trust Limited,1251, 04-Jul-2013
592,Revenue,CCHD,Supported Living - South,Private & Voluntary Home Care,Freeways Trust Limited,1389.08, 05-Jul-2013
593,Revenue,CCHD,Purchase of Non-Res Care - North,Private & Voluntary Day Care,Freeways Trust Limited,631.32, 11-Jul-2013
594,Revenue,CCHD,Supported Living - South,Private & Voluntary Home Care,Freeways Trust Limited,1435.66, 16-Jul-2013
595,Revenue,CCHD,Bed purchasing - Under 65s PWLD - North,Residential Homes,Freeways Trust Ltd,2817.88, 09-Jul-2013
596,Revenue,CCHD,Bed purchasing - S28A Under 65 - South,Residential Homes,Freeways Trust Ltd,2899.4, 09-Jul-2013
597,Revenue,CCHD,Bed purchasing - Under 65s PWLD - North,Residential Homes,Freeways Trust Ltd,2682.36, 09-Jul-2013
598,Revenue,CCHD,Bed purchasing - Under 65s PWLD - North,Residential Homes,Freeways Trust Ltd,2253.16, 09-Jul-2013
599,Revenue,CCHD,Bed purchasing - Under 65s PWLD - North,Residential Homes,Freeways Trust Ltd,2691.08, 09-Jul-2013
600,Revenue,CCHD,Bed Purchasing - Under 65s PWLD - South,Residential Homes,Freeways Trust Ltd,3289.6, 09-Jul-2013
601,Revenue,CCHD,Bed purchasing - Elderly PWLD - North,Residential Homes,Freeways Trust Ltd,2235.92, 09-Jul-2013
602,Revenue,CCHD,Bed Purchasing - Under 65s PWLD - South,Residential Homes,Freeways Trust Ltd,2382.36, 09-Jul-2013
603,Revenue,CCHD,Bed purchasing - Under 65s PWLD - North,Residential Homes,Freeways Trust Ltd,2691.08, 09-Jul-2013
604,Revenue,CCHD,Bed purchasing - Elderly PWLD - North,Residential Homes,Freeways Trust Ltd,2511.56, 09-Jul-2013
605,Revenue,CCHD,Section 117 Placements MH Younger,Residential Homes,Freeways Trust Ltd,3324, 09-Jul-2013
606,Revenue,CCHD,Bed Purchasing - Under 65s PWLD - South,Residential Homes,Freeways Trust Ltd,6117.96, 09-Jul-2013
607,Revenue,CCHD,Bed Purchasing - Frenchay Hospital,Nursing Homes,Frenchay Park Nursing Home,1254.56, 09-Jul-2013
608,Revenue,CCHD,Bed Purchasing - Frenchay Hospital,Nursing Homes,Frenchay Park Nursing Home,1004.36, 09-Jul-2013
609,Revenue,CCHD,Bed Purchasing - Elderly - South,Nursing Homes,Fshc  1St Floor,891.56, 09-Jul-2013
610,Revenue,CCHD,Bed Purchasing - Elderly - South,Nursing Homes,Fshc  1St Floor,1287.08, 09-Jul-2013
611,Revenue,CCHD,Bed Purchasing - Frenchay Hospital,Residential Homes,Fshc  1St Floor,893.96, 09-Jul-2013
612,Revenue,CCHD,Bed Purchasing - Southmead Hospital,Nursing Homes,Fshc  1St Floor,1370, 09-Jul-2013
613,Revenue,CCHD,South Glos Users in South Glos Homes,Nursing Homes,Fshc  1St Floor,1257.81, 09-Jul-2013
614,Revenue,CCHD,Bed Purchasing - Southmead Hospital,Nursing Homes,Fshc  1St Floor,1992.42, 09-Jul-2013
615,Revenue,CCHD,Bed Purchasing - Southmead Hospital,Nursing Homes,Fshc  1St Floor,1328.28, 09-Jul-2013
616,Revenue,CCHD,Bed Purchasing - Frenchay Hospital,Nursing Homes,Fshc  1St Floor,1370, 09-Jul-2013
617,Revenue,CCHD,Bed Purchasing - Southmead Hospital,Nursing Homes,Fshc  1St Floor,1370, 09-Jul-2013
618,Revenue,CCHD,Bed purchasing - Elderly MH - North,Residential Homes,Fshc  1St Floor,958.24, 09-Jul-2013
619,Revenue,CCHD,Bed Purchasing - Elderly - South,Nursing Homes,Fshc  1St Floor,1048.64, 09-Jul-2013
620,Revenue,CCHD,Bed Purchasing - Southmead Hospital,Nursing Homes,Fshc  1St Floor,1370, 09-Jul-2013
621,Revenue,CCHD,Bed Purchasing - Elderly - South,Nursing Homes,Fshc  1St Floor,1206.72, 09-Jul-2013
622,Revenue,CCHD,Bed Purchasing - Elderly - South,Nursing Homes,Fshc  1St Floor,1370.36, 09-Jul-2013
623,Revenue,CCHD,Bed Purchasing - Elderly - South,Nursing Homes,Fshc  1St Floor,1301.36, 09-Jul-2013
624,Revenue,CCHD,Bed Purchasing - Frenchay Hospital,Nursing Homes,Fshc  1St Floor,1308.96, 09-Jul-2013
625,Revenue,CCHD,Bed Purchasing - Southmead Hospital,Nursing Homes,Fshc  1St Floor,1370, 09-Jul-2013
626,Revenue,CCHD,Bed Purchasing - Southmead Hospital,Residential Homes,Fshc  1St Floor,533.6, 09-Jul-2013
627,Revenue,CCHD,Bed Purchasing - Elderly - North,Residential Homes,Fshc  1St Floor,1246, 09-Jul-2013
628,Revenue,CCHD,Bed Purchasing - Southmead Hospital,Nursing Homes,Fshc  1St Floor,1102.08, 09-Jul-2013
629,Revenue,CCHD,Bed Purchasing - Elderly - North,Nursing Homes,Fshc  1St Floor,1370, 09-Jul-2013
630,Revenue,CCHD,Bed Purchasing - Elderly - South,Nursing Homes,Fshc  1St Floor,3993.27, 09-Jul-2013
631,Revenue,CCHD,Bed Purchasing - Elderly - North,Nursing Homes,Fshc  1St Floor,1856, 09-Jul-2013
632,Revenue,CCHD,Bed Purchasing - Frenchay Hospital,Nursing Homes,Fshc  1St Floor,1180.6, 09-Jul-2013
633,Revenue,CCHD,Bed Purchasing - Elderly - South,Nursing Homes,Fshc  1St Floor,1370, 09-Jul-2013
634,Revenue,CCHD,Bed Purchasing - Elderly - South,Nursing Homes,Fshc  1St Floor,1316.36, 09-Jul-2013
635,Revenue,CCHD,Bed Purchasing - Elderly MH - South,Nursing Homes,Fshc  1St Floor,1370, 09-Jul-2013
636,Revenue,CCHD,Bed Purchasing - Elderly - South,Nursing Homes,Fshc  1St Floor,1082.04, 09-Jul-2013
637,Revenue,CCHD,Bed Purchasing - Elderly - South,Nursing Homes,Fshc  1St Floor,1371.6, 09-Jul-2013
638,Revenue,CCHD,Bed Purchasing - Frenchay Hospital,Nursing Homes,Fshc  1St Floor,1078.4, 09-Jul-2013
639,Revenue,CCHD,Bed Purchasing - Elderly MH - South,Residential Homes,Fshc  1St Floor,1090.48, 09-Jul-2013
640,Revenue,CCHD,Bed Purchasing - Elderly - South,Nursing Homes,Fshc  1St Floor,1370, 09-Jul-2013
641,Revenue,CCHD,Bed Purchasing - Elderly - South,Nursing Homes,Fshc  1St Floor,765.08, 09-Jul-2013
642,Revenue,CCHD,Bed Purchasing - Southmead Hospital,Nursing Homes,Fshc  1St Floor,940.4, 09-Jul-2013
643,Revenue,CCHD,Bed Purchasing - Southmead Hospital,Nursing Homes,Fshc  1St Floor,3033.58, 09-Jul-2013
644,Revenue,CCHD,Bed Purchasing - Southmead Hospital,Nursing Homes,Fshc  1St Floor,1370, 09-Jul-2013
645,Revenue,CCHD,Bed Purchasing - Elderly MH - South,Nursing Homes,Fshc  1St Floor,1216.84, 09-Jul-2013
646,Revenue,CCHD,Bed Purchasing - Southmead Hospital,Nursing Homes,Fshc  1St Floor,1362.4, 09-Jul-2013
647,Revenue,CCHD,Bed purchasing - Elderly MH - North,Nursing Homes,Fshc  1St Floor,786.72, 09-Jul-2013
648,Revenue,CCHD,Bed purchasing - Elderly MH - North,Nursing Homes,Fshc  1St Floor,557.32, 09-Jul-2013
649,Revenue,CCHD,Bed Purchasing - Elderly - South,Nursing Homes,Fshc  1St Floor,992.4, 09-Jul-2013
650,Revenue,CCHD,South Glos Users in South Glos Homes,Nursing Homes,Fshc  1St Floor,1521.8, 09-Jul-2013
651,Revenue,CCHD,South Glos Users in South Glos Homes,Nursing Homes,Fshc  1St Floor,1317.48, 09-Jul-2013
652,Revenue,CCHD,Bed Purchasing - Elderly - North,Nursing Homes,Fshc  1St Floor,974.36, 09-Jul-2013
653,Revenue,CCHD,Bed Purchasing - Frenchay Hospital,Residential Homes,Fshc  1St Floor,735.36, 09-Jul-2013
654,Revenue,CCHD,Bed Purchasing - Southmead Hospital,Nursing Homes,Fshc  1St Floor,1108.08, 09-Jul-2013
655,Revenue,CCHD,Bed Purchasing - Elderly - North,Nursing Homes,Fshc  1St Floor,3682.25, 09-Jul-2013
656,Revenue,CCHD,South Glos Users in South Glos Homes,Nursing Homes,Fshc  1St Floor,1723.67, 09-Jul-2013
657,Revenue,CCHD,Bed Purchasing - Elderly - North,Nursing Homes,Fshc  1St Floor,1339, 09-Jul-2013
658,Revenue,CCHD,South Glos Users in South Glos Homes,Nursing Homes,Fshc  1St Floor,1317.48, 09-Jul-2013
659,Revenue,CCHD,Bed Purchasing - Elderly - North,Nursing Homes,Fshc  1St Floor,908.12, 09-Jul-2013
660,Revenue,CCHD,Bed Purchasing - Southmead Hospital,Nursing Homes,Fshc  1St Floor,1215.4, 09-Jul-2013
661,Revenue,CCHD,South Glos Users in South Glos Homes,Nursing Homes,Fshc  1St Floor,1723.67, 09-Jul-2013
662,Revenue,CCHD,South Glos Users in South Glos Homes,Nursing Homes,Fshc  1St Floor,1317.48, 09-Jul-2013
663,Revenue,CCHD,South Glos Users in South Glos Homes,Nursing Homes,Fshc  1St Floor,1692.61, 09-Jul-2013
664,Revenue,CCHD,Bed Purchasing - Elderly - North,Residential Homes,Fshc  1St Floor,1347.68, 09-Jul-2013
665,Revenue,CCHD,Bed Purchasing - Frenchay Hospital,Residential Homes,Fshc  1St Floor,702.58, 09-Jul-2013
666,Revenue,CCHD,Bed Purchasing - Southmead Hospital,Nursing Homes,Fshc  1St Floor,1558, 09-Jul-2013
667,Revenue,CCHD,Bed Purchasing - Frenchay Hospital,Nursing Homes,Fshc  1St Floor,1097.72, 09-Jul-2013
668,Revenue,CCHD,Bed Purchasing - Frenchay Hospital,Nursing Homes,Fshc  1St Floor,1114.96, 09-Jul-2013
669,Revenue,CCHD,Bed Purchasing - Southmead Hospital,Nursing Homes,Fshc  1St Floor,1370, 09-Jul-2013
670,Revenue,CCHD,Bed Purchasing - Southmead Hospital,Nursing Homes,Fshc  1St Floor,929.64, 09-Jul-2013
671,Revenue,CCHD,Bed Purchasing - Elderly - South,Residential Homes,Fshc  1St Floor,1117.84, 09-Jul-2013
672,Revenue,CCHD,Bed Purchasing - Frenchay Hospital,Nursing Homes,Fshc  1St Floor,1546, 09-Jul-2013
673,Revenue,CCHD,Bed Purchasing - Elderly - North,Nursing Homes,Fshc  1St Floor,1370, 09-Jul-2013
674,Revenue,CCHD,Bed Purchasing - Southmead Hospital,Nursing Homes,Fshc  1St Floor,1370, 09-Jul-2013
675,Revenue,CCHD,Bed Purchasing - Elderly - North,Nursing Homes,Fshc  1St Floor,1295.6, 09-Jul-2013
676,Revenue,CCHD,Bed purchasing - Elderly MH - North,Nursing Homes,Fshc  1St Floor,1468.6, 09-Jul-2013
677,Revenue,CCHD,Bed Purchasing - Elderly - North,Nursing Homes,Fshc  1St Floor,1269.68, 09-Jul-2013
678,Revenue,CCHD,Bed Purchasing - Southmead Hospital,Nursing Homes,Fshc  1St Floor,1364.32, 09-Jul-2013
679,Revenue,CCHD,Bed Purchasing - Frenchay Hospital,Residential Homes,Fshc  1St Floor,628.4, 09-Jul-2013
680,Revenue,CCHD,Bed Purchasing - Frenchay Hospital,Nursing Homes,Fshc  1St Floor,1286.96, 09-Jul-2013
681,Revenue,CCHD,Bed Purchasing - Frenchay Hospital,Nursing Homes,Fshc  1St Floor,1350.84, 09-Jul-2013
682,Revenue,CCHD,Bed Purchasing - Elderly - North,Nursing Homes,Fshc  1St Floor,1041.72, 09-Jul-2013
683,Revenue,CCHD,Bed Purchasing - Elderly - North,Nursing Homes,Fshc  1St Floor,790.76, 09-Jul-2013
684,Revenue,CCHD,Bed Purchasing - Elderly - North,Nursing Homes,Fshc  1St Floor,681.6, 09-Jul-2013
685,Revenue,CCHD,Bed Purchasing - Elderly - North,Nursing Homes,Fshc  1St Floor,767.72, 09-Jul-2013
686,Revenue,CCHD,Bed Purchasing - Frenchay Hospital,Nursing Homes,Fshc  1St Floor,1534.44, 09-Jul-2013
687,Revenue,CCHD,Bed purchasing - Elderly MH - North,Nursing Homes,Fshc  1St Floor,1422.76, 09-Jul-2013
688,Revenue,CCHD,Bed Purchasing - Elderly - North,Nursing Homes,Fshc  1St Floor,1510, 09-Jul-2013
689,Revenue,CCHD,Bed Purchasing - Elderly - North,Nursing Homes,Fshc  1St Floor,1370, 09-Jul-2013
690,Revenue,CCHD,Bed Purchasing - Elderly - North,Nursing Homes,Fshc  1St Floor,3964.4, 09-Jul-2013
691,Revenue,CCHD,Bed Purchasing - Elderly - North,Nursing Homes,Fshc  1St Floor,1441.6, 09-Jul-2013
692,Revenue,CCHD,Bed Purchasing - Frenchay Hospital,Nursing Homes,Fshc  1St Floor,1195.8, 09-Jul-2013
693,Revenue,CCHD,Bed Purchasing - Southmead Hospital,Nursing Homes,Fshc  1St Floor,1450.56, 09-Jul-2013
694,Revenue,CCHD,Bed Purchasing - Elderly - South,Nursing Homes,Fshc  1St Floor,1723.43, 09-Jul-2013
695,Revenue,CCHD,Bed Purchasing - Southmead Hospital,Nursing Homes,Fshc  1St Floor,588.96, 09-Jul-2013
696,Revenue,CCHD,Bed Purchasing - Southmead Hospital,Nursing Homes,Fshc  1St Floor,1546, 09-Jul-2013
697,Revenue,CCHD,Bed Purchasing - Elderly MH - South,Nursing Homes,Fshc  1St Floor,3651.45, 09-Jul-2013
698,Revenue,CCHD,Bed Purchasing - Elderly MH - South,Nursing Homes,Fshc  1St Floor,1327.8, 09-Jul-2013
699,Revenue,CCHD,Bed Purchasing - Elderly - North,Residential Homes,Fshc  1St Floor,1246, 09-Jul-2013
700,Revenue,CCHD,Bed purchasing - Elderly MH - North,Residential Homes,Fshc  1St Floor,1246, 09-Jul-2013
701,Revenue,CCHD,Bed Purchasing - Elderly - North,Nursing Homes,Fshc  1St Floor,1530.84, 09-Jul-2013
702,Revenue,CCHD,Bed purchasing - Elderly S117 - South,Nursing Homes,Fshc  1St Floor,4109.71, 09-Jul-2013
703,Revenue,CCHD,Bed purchasing - Elderly MH - North,Residential Homes,Fshc  1St Floor,1255.2, 09-Jul-2013
704,Revenue,CCHD,Bed Purchasing - Elderly - South,Residential Homes,Fshc  1St Floor,802.44, 09-Jul-2013
705,Revenue,CCHD,Bed Purchasing - Southmead Hospital,Residential Homes,Fshc  1St Floor,1246, 09-Jul-2013
706,Revenue,CCHD,Bed Purchasing - Elderly - North,Residential Homes,Fshc  1St Floor,1335, 09-Jul-2013
707,Revenue,CCHD,Bed Purchasing - Elderly - North,Residential Homes,Fshc  1St Floor,1246, 09-Jul-2013
708,Revenue,CCHD,Bed Purchasing - Elderly - North,Nursing Homes,Fshc  1St Floor,4185.5, 09-Jul-2013
709,Revenue,CCHD,Bed Purchasing - Elderly - North,Nursing Homes,Fshc  1St Floor,1522, 09-Jul-2013
710,Revenue,CCHD,Bed Purchasing - Elderly - North,Nursing Homes,Fshc  1St Floor,1295.31, 09-Jul-2013
711,Revenue,CCHD,Bed purchasing - Elderly MH - North,Residential Homes,Fshc  1St Floor,1378.88, 09-Jul-2013
712,Revenue,CCHD,Bed Purchasing - Elderly - North,Nursing Homes,Fshc  1St Floor,1349.52, 09-Jul-2013
713,Revenue,CCHD,Bed Purchasing - Southmead Hospital,Nursing Homes,Fshc  1St Floor,1213.24, 09-Jul-2013
714,Revenue,CCHD,Bed purchasing - Elderly MH - North,Nursing Homes,Fshc  1St Floor,1048.64, 09-Jul-2013
715,Revenue,CCHD,Bed Purchasing - Southmead Hospital,Nursing Homes,Fshc  1St Floor,2497.81, 09-Jul-2013
716,Revenue,CCHD,Bed Purchasing - Elderly - North,Residential Homes,Fshc  1St Floor,1254, 09-Jul-2013
717,Revenue,CCHD,Bed Purchasing - Elderly - North,Nursing Homes,Fshc  1St Floor,1145.72, 09-Jul-2013
718,Revenue,CCHD,Bed Purchasing - Frenchay Hospital,Residential Homes,Fshc  1St Floor,1246, 09-Jul-2013
719,Revenue,CCHD,Bed Purchasing - Frenchay Hospital,Nursing Homes,Fshc  1St Floor,1307.44, 09-Jul-2013
720,Revenue,CCHD,Bed Purchasing - Elderly - North,Nursing Homes,Fshc  1St Floor,1013.16, 09-Jul-2013
721,Revenue,CCHD,Bed Purchasing - Southmead Hospital,Nursing Homes,Fshc  1St Floor,2585.14, 09-Jul-2013
722,Revenue,CCHD,Bed Purchasing - Southmead Hospital,Nursing Homes,Fshc  1St Floor,1856, 09-Jul-2013
723,Revenue,CCHD,Bed Purchasing - Southmead Hospital,Residential Homes,Fshc  1St Floor,1789.71, 09-Jul-2013
724,Revenue,CCHD,Bed Purchasing - Southmead Hospital,Nursing Homes,Fshc  1St Floor,1789.71, 09-Jul-2013
725,Revenue,CCHD,Bed Purchasing - Frenchay Hospital,Nursing Homes,Fshc  1St Floor,1370, 09-Jul-2013
726,Revenue,CCHD,Bed Purchasing - Southmead Hospital,Nursing Homes,Fshc  1St Floor,592.56, 09-Jul-2013
727,Revenue,CCHD,Bed Purchasing - Elderly - North,Nursing Homes,Fshc  1St Floor,1071.64, 09-Jul-2013
728,Revenue,CCHD,Bed Purchasing - Frenchay Hospital,Nursing Homes,Fshc  1St Floor,1370, 09-Jul-2013
729,Revenue,CCHD,Bed Purchasing - Southmead Hospital,Nursing Homes,Fshc  1St Floor,754.48, 09-Jul-2013
730,Revenue,CCHD,Bed Purchasing - Elderly - North,Nursing Homes,Fshc  1St Floor,1379.28, 09-Jul-2013
731,Revenue,CCHD,Bed Purchasing - Frenchay Hospital,Nursing Homes,Fshc  1St Floor,1378, 09-Jul-2013
732,Revenue,CCHD,Bed Purchasing - Elderly - South,Nursing Homes,Fshc  1St Floor,1041.56, 09-Jul-2013
733,Revenue,CCHD,Bed Purchasing - Southmead Hospital,Nursing Homes,Fshc  1St Floor,1292.6, 09-Jul-2013
734,Revenue,CCHD,Bed Purchasing - Elderly - North,Nursing Homes,Fshc  1St Floor,1249.04, 09-Jul-2013
735,Revenue,CCHD,Bed Purchasing - Southmead Hospital,Nursing Homes,Fshc  1St Floor,1370, 09-Jul-2013
736,Revenue,CCHD,Bed Purchasing - Frenchay Hospital,Nursing Homes,Fshc  1St Floor,585.43, 09-Jul-2013
737,Revenue,CCHD,Bed Purchasing - Frenchay Hospital,Nursing Homes,Fshc  1St Floor,1336.6, 09-Jul-2013
738,Revenue,CCHD,Bed Purchasing - Southmead Hospital,Nursing Homes,Fshc  1St Floor,1344.2, 09-Jul-2013
739,Revenue,CCHD,Bed Purchasing - Elderly - North,Residential Homes,Fshc  1St Floor,3117.44, 09-Jul-2013
740,Revenue,CCHD,Bed Purchasing - Frenchay Hospital,Nursing Homes,Fshc  1St Floor,1578.48, 09-Jul-2013
741,Revenue,CCHD,Bed purchasing - Phys Dis - North,Nursing Homes,Fshc  1St Floor,1376.28, 09-Jul-2013
742,Revenue,CCHD,Bed Purchasing - Elderly - South,Nursing Homes,Fshc  1St Floor,3280.29, 09-Jul-2013
743,Revenue,CCHD,Bed Purchasing - Elderly - South,Nursing Homes,Fshc  1St Floor,1224.64, 09-Jul-2013
744,Revenue,CCHD,South Glos Users in South Glos Homes,Nursing Homes,Fshc  1St Floor,1176.32, 09-Jul-2013
745,Revenue,CCHD,Bed Purchasing - Elderly - South,Nursing Homes,Fshc  1St Floor,3868.74, 09-Jul-2013
746,Revenue,CCHD,Bed Purchasing - Southmead Hospital,Nursing Homes,Fshc  1St Floor,3229.29, 09-Jul-2013
747,Revenue,CCHD,Bed Purchasing - Southmead Hospital,Nursing Homes,Fshc  1St Floor,1370, 09-Jul-2013
748,Revenue,CCHD,Bed Purchasing - Southmead Hospital,Nursing Homes,Fshc  1St Floor,1298.96, 09-Jul-2013
749,Revenue,CCHD,Bed Purchasing - Elderly MH - South,Residential Homes,Fshc  1St Floor,1438, 09-Jul-2013
750,Revenue,CCHD,Bed Purchasing - Frenchay Hospital,Nursing Homes,Fshc  1St Floor,1359.08, 09-Jul-2013
751,Revenue,CCHD,Bed Purchasing - Frenchay Hospital,Nursing Homes,Fshc  1St Floor,1293.56, 09-Jul-2013
752,Revenue,CCHD,Bed Purchasing - Southmead Hospital,Residential Homes,Fshc  1St Floor,1466, 09-Jul-2013
753,Revenue,CCHD,Bed Purchasing - Southmead Hospital,Residential Homes,Fshc  1St Floor,1308.93, 09-Jul-2013
754,Revenue,CCHD,Bed Purchasing - Elderly - South,Residential Homes,Fshc  1St Floor,1399.72, 09-Jul-2013
755,Revenue,CCHD,Bed Purchasing - Elderly - North,Residential Homes,Fshc  1St Floor,1160.96, 09-Jul-2013
756,Revenue,CCHD,Bed Purchasing - Elderly - North,Nursing Homes,Fshc  1St Floor,1370, 09-Jul-2013
757,Revenue,CCHD,Bed Purchasing - Frenchay Hospital,Residential Homes,Fshc  1St Floor,1184.57, 09-Jul-2013
758,Revenue,CCHD,Bed Purchasing - Frenchay Hospital,Nursing Homes,Fshc  1St Floor,1230.52, 09-Jul-2013
759,Revenue,CCHD,Bed Purchasing - Frenchay Hospital,Residential Homes,Fshc  1St Floor,1098.9, 09-Jul-2013
760,Revenue,CCHD,Bed purchasing - Elderly MH - North,Residential Homes,Fshc  1St Floor,1694.78, 09-Jul-2013
761,Revenue,CCHD,Bed purchasing - Elderly MH - North,Residential Homes,Fshc  1St Floor,1438, 09-Jul-2013
762,Revenue,CCHD,Bed Purchasing - Frenchay Hospital,Residential Homes,Fshc  1St Floor,1438, 09-Jul-2013
763,Revenue,CCHD,Bed purchasing - Elderly PWLD - South,Residential Homes,Fshc  1St Floor,1246, 09-Jul-2013
764,Revenue,CCHD,Bed Purchasing - Frenchay Hospital,Nursing Homes,Fshc  1St Floor,1370, 09-Jul-2013
765,Revenue,CCHD,Bed Purchasing - Southmead Hospital,Nursing Homes,Fshc  1St Floor,1101.08, 09-Jul-2013
766,Revenue,CCHD,Bed Purchasing - Elderly - South,Nursing Homes,Fshc  1St Floor,1294.68, 09-Jul-2013
767,Revenue,CCHD,Bed Purchasing - Elderly - North,Residential Homes,Fshc  1St Floor,1179.92, 09-Jul-2013
768,Revenue,CCHD,Bed Purchasing - Frenchay Hospital,Nursing Homes,Fshc  1St Floor,1370, 09-Jul-2013
769,Revenue,CCHD,Bed Purchasing - Frenchay Hospital,Residential Homes,Fshc  1St Floor,10492.57, 09-Jul-2013
770,Revenue,CCHD,Bed Purchasing - Frenchay Hospital,Nursing Homes,Fshc  1St Floor,1370, 09-Jul-2013
771,Revenue,CCHD,Bed Purchasing - Frenchay Hospital,Nursing Homes,Fshc  1St Floor,587.14, 09-Jul-2013
772,Revenue,CCHD,Bed Purchasing - Frenchay Hospital,Nursing Homes,Fshc  1St Floor,5104, 09-Jul-2013
773,Revenue,CCHD,Bed Purchasing - Frenchay Hospital,Nursing Homes,Fshc  1St Floor,5388.57, 09-Jul-2013
774,Revenue,CCHD,Bed Purchasing - Southmead Hospital,Nursing Homes,Fshc  1St Floor,2855.16, 09-Jul-2013
775,Revenue,CCHD,Bed Purchasing - Southmead Hospital,Nursing Homes,Fshc  1St Floor,778.68, 09-Jul-2013
776,Revenue,CCHD,Bed Purchasing - Frenchay Hospital,Nursing Homes,Fshc  1St Floor,1370, 09-Jul-2013
777,Revenue,CCHD,Bed Purchasing - Southmead Hospital,Nursing Homes,Fshc  1St Floor,957.12, 09-Jul-2013
778,Revenue,CCHD,Bed Purchasing - Frenchay Hospital,Nursing Homes,Fshc  1St Floor,8214.29, 09-Jul-2013
779,Revenue,CCHD,Bed Purchasing - Elderly - South,Residential Homes,Fshc  1St Floor,816.56, 09-Jul-2013
780,Revenue,CCHD,Bed Purchasing - Frenchay Hospital,Nursing Homes,Fshc  1St Floor,1193.14, 09-Jul-2013
781,Revenue,CCHD,Bed Purchasing - Southmead Hospital,Residential Homes,Fshc  1St Floor,1397.16, 09-Jul-2013
782,Revenue,CCHD,Bed Purchasing - Southmead Hospital,Nursing Homes,Fshc  1St Floor,1856, 09-Jul-2013
783,Revenue,CCHD,Bed Purchasing - Southmead Hospital,Residential Homes,Fshc  1St Floor,1453.28, 09-Jul-2013
784,Revenue,CCHD,Bed Purchasing - Elderly - South,Nursing Homes,Fshc  1St Floor,941.76, 09-Jul-2013
785,Revenue,CCHD,Bed purchasing - Elderly S117 - South,Nursing Homes,Fshc  1St Floor,1856, 09-Jul-2013
786,Revenue,CCHD,Bed Purchasing - Frenchay Hospital,Residential Homes,Fshc  1St Floor,1107.56, 09-Jul-2013
787,Revenue,CCHD,Bed Purchasing - Southmead Hospital,Residential Homes,Fshc  1St Floor,1331.76, 09-Jul-2013
788,Revenue,CCHD,Bed Purchasing - Southmead Hospital,Nursing Homes,Fshc  1St Floor,1180.56, 09-Jul-2013
789,Revenue,CCHD,Bed Purchasing - Elderly - North,Residential Homes,Fshc  1St Floor,1199.92, 09-Jul-2013
790,Revenue,CCHD,Bed Purchasing - Southmead Hospital,Nursing Homes,Fshc  1St Floor,1370, 09-Jul-2013
791,Revenue,CCHD,Bed Purchasing - Frenchay Hospital,Nursing Homes,Fshc  1St Floor,1109.92, 09-Jul-2013
792,Revenue,CCHD,Bed Purchasing - Frenchay Hospital,Nursing Homes,Fshc  1St Floor,956.08, 09-Jul-2013
793,Revenue,CCHD,Bed Purchasing - Frenchay Hospital,Nursing Homes,Fshc  1St Floor,1117.88, 09-Jul-2013
794,Revenue,CCHD,Bed Purchasing - Frenchay Hospital,Nursing Homes,Fshc  1St Floor,1030.08, 09-Jul-2013
795,Revenue,CCHD,Bed Purchasing - Frenchay Hospital,Nursing Homes,Fshc  1St Floor,1060.28, 09-Jul-2013
796,Revenue,CCHD,Bed Purchasing - Southmead Hospital,Nursing Homes,Fshc  1St Floor,870.76, 09-Jul-2013
797,Revenue,CCHD,Bed Purchasing - Southmead Hospital,Nursing Homes,Fshc  1St Floor,5085.45, 09-Jul-2013
798,Revenue,CCHD,Bed Purchasing - Southmead Hospital,Residential Homes,Fshc  1St Floor,904.8, 09-Jul-2013
799,Revenue,CCHD,Bed Purchasing - Southmead Hospital,Nursing Homes,Fshc  1St Floor,739.04, 09-Jul-2013
800,Revenue,CCHD,Bed Purchasing - Southmead Hospital,Residential Homes,Fshc  1St Floor,1246, 09-Jul-2013
801,Revenue,CCHD,Bed Purchasing - Frenchay Hospital,Nursing Homes,Fshc  1St Floor,3373.93, 09-Jul-2013
802,Revenue,CCHD,Bed Purchasing - Elderly - North,Nursing Homes,Fshc  1St Floor,1276.2, 09-Jul-2013
803,Revenue,CCHD,Bed purchasing - Phys Dis - North,Nursing Homes,Fshc  1St Floor,840.44, 09-Jul-2013
804,Revenue,CCHD,Bed Purchasing - Frenchay Hospital,Nursing Homes,Fshc  1St Floor,1302, 09-Jul-2013
805,Revenue,CCHD,Bed purchasing - Elderly MH - North,Nursing Homes,Fshc  1St Floor,858.48, 09-Jul-2013
806,Revenue,CCHD,Bed purchasing - Elderly S117 - South,Nursing Homes,Fshc  1St Floor,1964, 09-Jul-2013
807,Revenue,CCHD,Bed Purchasing - Frenchay Hospital,Nursing Homes,Fshc  1St Floor,1080.28, 09-Jul-2013
808,Revenue,CCHD,Bed Purchasing - Frenchay Hospital,Nursing Homes,Fshc  1St Floor,951.24, 09-Jul-2013
809,Revenue,CCHD,Bed Purchasing - Frenchay Hospital,Nursing Homes,Fshc  1St Floor,1097.04, 09-Jul-2013
810,Revenue,CCHD,Woodleaze,Prop.Serv. General Repairs,Geoff Lewis Flooring Limited,420, 26-Jul-2013
811,Revenue,CCHD,Woodleaze,Prop.Serv. General Repairs,George Grimes,700, 10-Jul-2013
812,Revenue,CCHD,Woodleaze,Prop.Serv. General Repairs,George Grimes,980, 17-Jul-2013
813,Revenue,CCHD,Woodleaze,Prop.Serv. General Repairs,George Grimes,560, 03-Jul-2013
814,Revenue,CCHD,Woodleaze,Prop.Serv. General Repairs,George Grimes,700, 10-Jul-2013
815,Revenue,CCHD,Section 117 Placements MH Younger,Residential Homes,Gladstone House,2721.88, 09-Jul-2013
816,Revenue,CCHD,Bed Purchasing - Under 65s PWLD - South,Residential Homes,Glasallt Fawr,4547.84, 09-Jul-2013
817,Revenue,CCHD,Bed purchasing - Elderly MH - North,Nursing Homes,Glebe House Nursing Home,753.32, 09-Jul-2013
818,Revenue,CCHD,Bed purchasing - Elderly MH - North,Residential Homes,Glebe House Nursing Home,20802.2, 09-Jul-2013
819,Revenue,CCHD,Bed purchasing - Elderly MH - North,Residential Homes,Glebe House Nursing Home,2007.6, 09-Jul-2013
820,Revenue,CCHD,South Glos Users in South Glos Homes,Nursing Homes,Glebe House Nursing Home,517.58, 09-Jul-2013
821,Revenue,CCHD,Bed Purchasing - Frenchay Hospital,Nursing Homes,Glebe House Nursing Home,680.67, 09-Jul-2013
822,Revenue,CCHD,Bed Purchasing - Elderly - South,Residential Homes,Glebe House Nursing Home,1977.76, 09-Jul-2013
823,Revenue,CCHD,Bed Purchasing - Elderly - North,Residential Homes,Glebe House Nursing Home,2551.92, 09-Jul-2013
824,Revenue,CCHD,Bed Purchasing - Elderly - North,Nursing Homes,Glebe House Nursing Home,1532.6, 09-Jul-2013
825,Revenue,CCHD,Bed Purchasing - Under 65s PWLD - South,Residential Homes,Gordena Care Home,2082.36, 09-Jul-2013
826,Revenue,CCHD,Bed purchasing - Elderly PWLD - South,Residential Homes,Gordena Care Home,4732.4, 09-Jul-2013
827,Revenue,CCHD,Bed purchasing - Elderly PWLD - South,Residential Homes,Gordena Care Home,3116.24, 09-Jul-2013
828,Revenue,CCHD,Bed purchasing - Elderly PWLD - South,Residential Homes,Gordena Care Home,2927.44, 09-Jul-2013
829,Revenue,CCHD,Bed Purchasing - Under 65s PWLD - South,Residential Homes,Gordena Care Home,1907.6, 09-Jul-2013
830,Revenue,CCHD,Bed Purchasing - Under 65s PWLD - South,Residential Homes,Gordena Care Limited,4158.56, 09-Jul-2013
831,Revenue,CCHD,Bed purchasing - S28A Under 65 - South,Residential Homes,Gordena Care Limited,4055.8, 09-Jul-2013
832,Revenue,CCHD,Bed purchasing - Under 65s PWLD - North,Residential Homes,Gordena Care Limited,4160, 09-Jul-2013
833,Revenue,CCHD,Bed Purchasing - Elderly - North,Residential Homes,Greensleeves,1312.68, 09-Jul-2013
834,Revenue,CCHD,Tenancy Start Up Scheme,Other Supplies & Services,Gregory & Main,1550, 15-Jul-2013
835,Revenue,CCHD,Bed Purchasing - Elderly - South,Residential Homes,Gwendoline House,1490.04, 09-Jul-2013
836,Revenue,CCHD,Bed Purchasing - Elderly - South,Residential Homes,Gwendoline House,1164.96, 09-Jul-2013
837,Revenue,CCHD,Bed Purchasing - Elderly - North,Residential Homes,Gwendoline House,1654.36, 09-Jul-2013
838,Revenue,CCHD,Bed Purchasing - Elderly MH - South,Residential Homes,Gwendoline House,1284.64, 09-Jul-2013
839,Revenue,CCHD,Bed Purchasing - Southmead Hospital,Residential Homes,Gwendoline House,1686.64, 09-Jul-2013
840,Revenue,CCHD,Bed Purchasing - Elderly - South,Residential Homes,Gwendoline House,1128.52, 09-Jul-2013
841,Revenue,CCHD,Supporting People Programme,Grants to Voluntary Bodies,Habinteg Housing Association,1338.75, 01-Jul-2013
842,Revenue,CCHD,Tenancy Start Up Scheme,Other Supplies & Services,Individual,625, 08-Jul-2013
843,Revenue,CCHD,Bed Purchasing - Elderly - South,Residential Homes,Harefield Hall,1327.24, 09-Jul-2013
844,Revenue,CCHD,Bed Purchasing - Elderly - South,Residential Homes,Harefield Hall,1112.96, 09-Jul-2013
845,Revenue,CCHD,Bed Purchasing - Elderly - South,Residential Homes,Harefield Hall,1778.56, 09-Jul-2013
846,Revenue,CCHD,Bed Purchasing - Elderly MH - South,Residential Homes,Harefield Hall,1030.52, 09-Jul-2013
847,Revenue,CCHD,Alexandra Way,Equipment Maintenance,Harvey Servicing & Engineering Limited,500, 08-Jul-2013
848,Revenue,CCHD,Bed Purchasing - Southmead Hospital,Nursing Homes,Haven Lodge,1382.28, 09-Jul-2013
849,Revenue,CCHD,Bed Purchasing - Southmead Hospital,Nursing Homes,Hc-One Ltd,1613.52, 09-Jul-2013
850,Revenue,CCHD,Bed Purchasing - Elderly - North,Nursing Homes,Hc-One Ltd,1469.6, 09-Jul-2013
851,Revenue,CCHD,Bed Purchasing - Elderly - North,Nursing Homes,Hc-One Ltd,967.32, 09-Jul-2013
852,Revenue,CCHD,Bed Purchasing - Southmead Hospital,Nursing Homes,Hc-One Ltd,3828.29, 09-Jul-2013
853,Revenue,CCHD,Bed Purchasing - Southmead Hospital,Nursing Homes,Hc-One Ltd,1985.04, 09-Jul-2013
854,Revenue,CCHD,Bed Purchasing - Elderly - North,Nursing Homes,Hc-One Ltd,2623.32, 09-Jul-2013
855,Revenue,CCHD,Bed Purchasing - Elderly - North,Nursing Homes,Hc-One Ltd,1499.04, 09-Jul-2013
856,Revenue,CCHD,Bed purchasing - Elderly PWLD - South,Nursing Homes,Hc-One Ltd,1929.96, 09-Jul-2013
857,Revenue,CCHD,Bed purchasing - Elderly MH - North,Nursing Homes,Hc-One Ltd,1478, 09-Jul-2013
858,Revenue,CCHD,Bed purchasing - Elderly MH - North,Nursing Homes,Hc-One Ltd,1229.12, 09-Jul-2013
859,Revenue,CCHD,Bed Purchasing - Frenchay Hospital,Nursing Homes,Hc-One Ltd,1471.16, 09-Jul-2013
860,Revenue,CCHD,Bed Purchasing - Elderly - South,Nursing Homes,Hc-One Ltd,1146.88, 09-Jul-2013
861,Revenue,CCHD,Bed purchasing - Elderly MH - North,Nursing Homes,Hc-One Ltd,1478, 09-Jul-2013
862,Revenue,CCHD,Bed purchasing - Elderly MH - North,Nursing Homes,Hc-One Ltd,1160.36, 09-Jul-2013
863,Revenue,CCHD,Bed Purchasing - Elderly S117- North,Nursing Homes,Hc-One Ltd,1947.72, 09-Jul-2013
864,Revenue,CCHD,Bed Purchasing - Frenchay Hospital,Residential Homes,Hc-One Ltd,1489.64, 09-Jul-2013
865,Revenue,CCHD,Day Care - North,Private & Voluntary Day Care,Headway Bristol,917, 26-Jul-2013
866,Revenue,CCHD,Day Care - North,Private & Voluntary Day Care,Headway Bristol,917, 26-Jul-2013
867,Revenue,CCHD,Day Care - South,Private & Voluntary Day Care,Headway Bristol,1867.07, 26-Jul-2013
868,Revenue,CCHD,Day Care - South,Private & Voluntary Day Care,Headway Bristol,806.96, 26-Jul-2013
869,Revenue,CCHD,Day Care - South,Private & Voluntary Day Care,Headway Bristol,843.64, 26-Jul-2013
870,Revenue,CCHD,Day Care - South,Private & Voluntary Day Care,Headway Bristol,1043.39, 26-Jul-2013
871,Revenue,CCHD,Public Health - Admin,Membership Fees,HENRY,1668, 19-Jul-2013
872,Revenue,CCHD,Bed Purchasing - Southmead Hospital,Residential Homes,High Border Lodge,3530.5, 09-Jul-2013
873,Revenue,CCHD,Bed purchasing - Under 65s PWLD - North,Residential Homes,Holmleigh Care Homes Ltd,4000.16, 09-Jul-2013
874,Revenue,CCHD,Bed Purchasing - Under 65s PWLD - South,Residential Homes,Holmleigh Care Homes Ltd,5027.72, 09-Jul-2013
875,Revenue,CCHD,Bed Purchasing - Southmead Hospital,Nursing Homes,Holmwood House,836, 09-Jul-2013
876,Revenue,CCHD,Bed purchasing - Under 65s PWLD - North,Residential Homes,Home Farm Trust Ltd  5-6 Brook Office Pa,2810.04, 09-Jul-2013
877,Revenue,CCHD,Bed purchasing - Elderly PWLD - South,Residential Homes,Home Farm Trust Ltd  5-6 Brook Office Pa,5050.32, 09-Jul-2013
878,Revenue,CCHD,Bed purchasing - Under 65s PWLD - North,Residential Homes,Home Farm Trust Ltd  5-6 Brook Office Pa,3396, 09-Jul-2013
879,Revenue,CCHD,Bed Purchasing - Under 65s PWLD - South,Residential Homes,Home Farm Trust Ltd  5-6 Brook Office Pa,4505.04, 09-Jul-2013
880,Revenue,CCHD,Bed purchasing - Under 65s PWLD - North,Residential Homes,Home From Home Care Ltd,8857.52, 09-Jul-2013
881,Revenue,CCHD,Bed purchasing - Under 65s PWLD - North,Residential Homes,Homes Caring For Autism Ltd  Churchill H,9755.64, 09-Jul-2013
882,Revenue,CCHD,Bed Purchasing - Under 65s PWLD - South,Residential Homes,Homes Caring For Autism Ltd  Churchill H,12715.92, 09-Jul-2013
883,Revenue,CCHD,Bed purchasing - Under 65s PWLD - North,Residential Homes,Homes Caring For Autism Ltd  Churchill H,12410, 09-Jul-2013
884,Revenue,CCHD,Supporting People Programme,Grants to Voluntary Bodies,Housing 21,921.33, 01-Jul-2013
885,Revenue,CCHD,Supporting People Programme,Grants to Voluntary Bodies,Housing 21,607.38, 01-Jul-2013
886,Revenue,CCHD,Home Care - Elderly - North,Private & Voluntary Home Care,Housing 21,37028.34, 10-Jul-2013
887,Revenue,CCHD,Home Care - Elderly - South,Private & Voluntary Home Care,Housing 21,23516.42, 01-Jul-2013
888,Revenue,CCHD,Public Health - Admin,Other Supplies & Services,In2Print Ltd,497, 29-Jul-2013
889,Revenue,CCHD,Care Management Team - South,Agency Staff (Operational)/PCT Pay,IPE,8880.64, 24-Jul-2013
890,Revenue,CCHD,Social Lettings Agency,Fees - General,Individual,11.6, 11-Jul-2013
891,Revenue,CCHD,Social Lettings Agency,Other Supplies & Services,Individual,655.41, 11-Jul-2013
892,Revenue,CCHD,Bed Purchasing - Southmead Hospital,Nursing Homes,Jasmine Court,1227.24, 09-Jul-2013
893,Revenue,CCHD,Bed Purchasing - Under 65s PWLD - South,Residential Homes,Julia Simone- Supp. Ind.,3562.32, 09-Jul-2013
894,Revenue,CCHD,Bed purchasing -S28A  Under 65 - North,Residential Homes,Julia Simone- Supp. Ind.,3443.08, 09-Jul-2013
895,Revenue,CCHD,Bed Purchasing - Under 65s PWLD - South,Nursing Homes,K3 The Park Centre,4977.08, 09-Jul-2013
896,Revenue,CCHD,Bed Purchasing - S28A - Over 65- North,Residential Homes,K3 The Park Centre,3054.48, 09-Jul-2013
897,Revenue,CCHD,Bed Purchasing - Under 65s PWLD - South,Residential Homes,K3 The Park Centre,14065.59, 09-Jul-2013
898,Revenue,CCHD,Bed Purchasing - Under 65s PWLD - South,Residential Homes,K3 The Park Centre,1969.16, 09-Jul-2013
899,Revenue,CCHD,Bed Purchasing - Under 65s PWLD - South,Residential Homes,K3 The Park Centre,3976.8, 09-Jul-2013
900,Revenue,CCHD,Bed Purchasing - Under 65s PWLD - South,Residential Homes,K3 The Park Centre,5995.71, 09-Jul-2013
901,Revenue,CCHD,Bed purchasing - Elderly PWLD - South,Residential Homes,K3 The Park Centre,3412.04, 09-Jul-2013
902,Revenue,CCHD,Bed purchasing - Elderly PWLD - South,Nursing Homes,K3 The Park Centre,4353.32, 09-Jul-2013
903,Revenue,CCHD,Bed Purchasing - Under 65s PWLD - South,Nursing Homes,K3 The Park Centre,4962.92, 09-Jul-2013
904,Revenue,CCHD,Bed purchasing - S28A Under 65 - South,Nursing Homes,K3 The Park Centre,5280.52, 09-Jul-2013
905,Revenue,CCHD,Bed purchasing - S28A Under 65 - South,Residential Homes,K3 The Park Centre,4832.6, 09-Jul-2013
906,Revenue,CCHD,Bed purchasing - S28A Under 65 - South,Nursing Homes,K3 The Park Centre,5280.52, 09-Jul-2013
907,Revenue,CCHD,Bed Purchasing - LD S28A- Over 65- South,Nursing Homes,K3 The Park Centre,5109.72, 09-Jul-2013
908,Revenue,CCHD,Bed Purchasing - LD S28A- Over 65- South,Nursing Homes,K3 The Park Centre,4777.8, 09-Jul-2013
909,Revenue,CCHD,Bed Purchasing - Under 65s PWLD - South,Residential Homes,K3 The Park Centre,3225.28, 09-Jul-2013
910,Revenue,CCHD,Bed Purchasing - S28A - Over 65- North,Nursing Homes,K3 The Park Centre,4742.68, 09-Jul-2013
911,Revenue,CCHD,Bed purchasing - S28A Under 65 - South,Residential Homes,K3 The Park Centre,5126.44, 09-Jul-2013
912,Revenue,CCHD,Bed purchasing - S28A Under 65 - South,Residential Homes,K3 The Park Centre,5181.28, 09-Jul-2013
913,Revenue,CCHD,Bed Purchasing - S28A - Over 65- North,Residential Homes,K3 The Park Centre,10818.6, 09-Jul-2013
914,Revenue,CCHD,Bed Purchasing - S28A - Over 65- North,Residential Homes,K3 The Park Centre,3953.84, 09-Jul-2013
915,Revenue,CCHD,Bed Purchasing - S28A - Over 65- North,Residential Homes,K3 The Park Centre,1994.13, 09-Jul-2013
916,Revenue,CCHD,Bed purchasing - S28A Under 65 - South,Nursing Homes,K3 The Park Centre,5280.52, 09-Jul-2013
917,Revenue,CCHD,Bed purchasing - S28A Under 65 - South,Nursing Homes,K3 The Park Centre,5280.52, 09-Jul-2013
918,Revenue,CCHD,Bed purchasing -S28A  Under 65 - North,Nursing Homes,K3 The Park Centre,4712.96, 09-Jul-2013
919,Revenue,CCHD,Bed purchasing - S28A Under 65 - South,Residential Homes,K3 The Park Centre,5181.28, 09-Jul-2013
920,Revenue,CCHD,Bed Purchasing - LD S28A- Over 65- South,Residential Homes,K3 The Park Centre,4681.52, 09-Jul-2013
921,Revenue,CCHD,Bed Purchasing - Elderly - South,Residential Homes,Karenza Ltd,1732, 09-Jul-2013
922,Revenue,CCHD,Home Care - Elderly - South,Other Small Contracts,Kensington Community Care,462.87, 08-Jul-2013
923,Revenue,CCHD,Home Care - Elderly - North,Other Small Contracts,Kensington Community Care,2043.3, 08-Jul-2013
924,Revenue,CCHD,Day Care - North,Private & Voluntary Day Care,Kensington Community Care,16.68, 08-Jul-2013
925,Revenue,CCHD,Bed Purchasing - Elderly - South,Residential Homes,Kenver House Residential Home,1545.64, 09-Jul-2013
926,Revenue,CCHD,Bed purchasing - Elderly S117 - South,Residential Homes,Kenver House Residential Home,1897.08, 09-Jul-2013
927,Revenue,CCHD,Bed Purchasing - Frenchay Hospital,Residential Homes,Kenver House Residential Home,2135.28, 09-Jul-2013
928,Revenue,CCHD,Bed Purchasing - Frenchay Hospital,Residential Homes,Kenver House Residential Home,1647.2, 09-Jul-2013
929,Revenue,CCHD,Bed Purchasing - Frenchay Hospital,Residential Homes,Kenver House Residential Home,647.11, 09-Jul-2013
930,Revenue,CCHD,Bed Purchasing - Elderly - South,Residential Homes,Kenver House Residential Home,2211.54, 09-Jul-2013
931,Revenue,CCHD,Bed Purchasing - Elderly - South,Residential Homes,Kenver House Residential Home,2135.28, 09-Jul-2013
932,Revenue,CCHD,Bed Purchasing - Elderly - South,Residential Homes,Kenver House Residential Home,1120.88, 09-Jul-2013
933,Revenue,CCHD,Bed Purchasing - Elderly - South,Residential Homes,Kenver House Residential Home,1965.68, 09-Jul-2013
934,Revenue,CCHD,Section 117 Placements MH Younger,Residential Homes,Kenver House Residential Home,1900, 09-Jul-2013
935,Revenue,CCHD,Bed Purchasing - Elderly MH - South,Residential Homes,Kenver House Residential Home,1285.96, 09-Jul-2013
936,Revenue,CCHD,Bed Purchasing - Elderly S117- North,Residential Homes,Kenver House Residential Home,1900, 09-Jul-2013
937,Revenue,CCHD,Bed Purchasing - Elderly - South,Residential Homes,Kenver House Residential Home,1649.28, 09-Jul-2013
938,Revenue,CCHD,Bed Purchasing - Frenchay Hospital,Residential Homes,Kenver House Residential Home,1412.16, 09-Jul-2013
939,Revenue,CCHD,Bed Purchasing - Elderly - South,Residential Homes,Kenver House Residential Home,1576.4, 09-Jul-2013
940,Revenue,CCHD,Bed Purchasing - Frenchay Hospital,Residential Homes,Kenver House Residential Home,1529.54, 09-Jul-2013
941,Revenue,CCHD,Bed Purchasing - Frenchay Hospital,Residential Homes,Kenver House Residential Home,529.46, 09-Jul-2013
942,Revenue,CCHD,Bed Purchasing - Southmead Hospital,Residential Homes,Kenver House Residential Home,2550.36, 09-Jul-2013
943,Revenue,CCHD,Bed Purchasing - Southmead Hospital,Residential Homes,Kenver House Residential Home,1649.2, 09-Jul-2013
944,Revenue,CCHD,Bed Purchasing - Elderly MH - South,Residential Homes,Kenver House Residential Home,1182.52, 09-Jul-2013
945,Revenue,CCHD,Bed Purchasing - Frenchay Hospital,Residential Homes,Kenver House Residential Home,1414.88, 09-Jul-2013
946,Revenue,CCHD,Bed Purchasing - Elderly MH - South,Residential Homes,Kenver House Residential Home,1167.92, 09-Jul-2013
947,Revenue,CCHD,Bed Purchasing - Elderly - South,Residential Homes,Kenver House Residential Home,1497.08, 09-Jul-2013
948,Revenue,CCHD,Bed Purchasing - Frenchay Hospital,Residential Homes,Kenver House Residential Home,1574.12, 09-Jul-2013
949,Revenue,CCHD,Bed Purchasing - Frenchay Hospital,Residential Homes,Kenver House Residential Home,1539.76, 09-Jul-2013
950,Revenue,CCHD,Supporting People Programme,Grants to Voluntary Bodies,Keyring Living Support Networks,2874.42, 01-Jul-2013
951,Revenue,CCHD,Supporting People Programme,Grants to Voluntary Bodies,Kingswood Young Homeless Project,17289.42, 01-Jul-2013
952,Revenue,CCHD,Bed purchasing - Under 65s PWLD - North,Residential Homes,Kisimul Group,11223.12, 09-Jul-2013
953,Revenue,CCHD,Supporting People Programme,Grants to Voluntary Bodies,Knightstone Housing Association Limited,13316.58, 01-Jul-2013
954,Revenue,CCHD,Supporting People Programme,Grants to Voluntary Bodies,Knightstone Housing Association Limited,8413.33, 01-Jul-2013
955,Revenue,CCHD,Supporting People Programme,Grants to Voluntary Bodies,Knightstone Housing Association Limited,7491.58, 01-Jul-2013
956,Revenue,CCHD,Supporting People Programme,Grants to Voluntary Bodies,Knightstone Housing Association Limited,1883.92, 01-Jul-2013
957,Revenue,CCHD,Supporting People Programme,Grants to Voluntary Bodies,Knightstone Housing Association Limited,2446.5, 01-Jul-2013
958,Revenue,CCHD,Supporting People Programme,Grants to Voluntary Bodies,Knightstone Housing Association Limited,2447.08, 01-Jul-2013
959,Revenue,CCHD,Supporting People Programme,Grants to Voluntary Bodies,Knightstone Housing Association Limited,1189.08, 01-Jul-2013
960,Revenue,CCHD,Supporting People Programme,Grants to Voluntary Bodies,Knightstone Housing Association Limited,2194.67, 01-Jul-2013
961,Revenue,CCHD,Home Care - Elderly - South,Other Small Contracts,Kumari Care Limited,3875.44, 16-Jul-2013
962,Revenue,CCHD,Home Care - Elderly - North,Other Small Contracts,Kumari Care Limited,834.64, 16-Jul-2013
963,Revenue,CCHD,Day Care - South,Private & Voluntary Day Care,Kumari Care Limited,169.84, 16-Jul-2013
964,Revenue,CCHD,Home Care - Elderly - South,Other Small Contracts,Kumari Care Limited,4149.5, 05-Jul-2013
965,Revenue,CCHD,Home Care - Elderly - North,Other Small Contracts,Kumari Care Limited,833.86, 05-Jul-2013
966,Revenue,CCHD,Day Care - South,Private & Voluntary Day Care,Kumari Care Limited,173.7, 05-Jul-2013
967,Revenue,CCHD,Home Care - Elderly - South,Other Small Contracts,Kumari Care Limited,3902.46, 16-Jul-2013
968,Revenue,CCHD,Home Care - Elderly - North,Other Small Contracts,Kumari Care Limited,833.86, 16-Jul-2013
969,Revenue,CCHD,Day Care - South,Private & Voluntary Day Care,Kumari Care Limited,169.84, 16-Jul-2013
970,Revenue,CCHD,Under 65s -MH  Home Care Purch,Other Small Contracts,Kumari Care Limited,115.8, 16-Jul-2013
971,Revenue,CCHD,Home Care - Elderly - South,Other Small Contracts,Kumari Care Limited,3948.78, 16-Jul-2013
972,Revenue,CCHD,Home Care - Elderly - North,Other Small Contracts,Kumari Care Limited,833.86, 16-Jul-2013
973,Revenue,CCHD,Day Care - South,Private & Voluntary Day Care,Kumari Care Limited,123.52, 16-Jul-2013
974,Revenue,CCHD,Under 65s -MH  Home Care Purch,Other Small Contracts,Kumari Care Limited,258.62, 16-Jul-2013
975,Revenue,CCHD,Home Care - Elderly - South,Other Small Contracts,Kumari Care Limited,4103.18, 26-Jul-2013
976,Revenue,CCHD,Home Care - Elderly - North,Other Small Contracts,Kumari Care Limited,833.86, 26-Jul-2013
977,Revenue,CCHD,Day Care - South,Private & Voluntary Day Care,Kumari Care Limited,150.54, 26-Jul-2013
978,Revenue,CCHD,Under 65s -MH  Home Care Purch,Other Small Contracts,Kumari Care Limited,261.9, 26-Jul-2013
979,Revenue,CCHD,Home Care - Elderly - South,Other Small Contracts,Kumari Care Limited,3934.14, 26-Jul-2013
980,Revenue,CCHD,Home Care - Elderly - North,Other Small Contracts,Kumari Care Limited,833.86, 26-Jul-2013
981,Revenue,CCHD,Day Care - South,Private & Voluntary Day Care,Kumari Care Limited,46.32, 26-Jul-2013
982,Revenue,CCHD,Under 65s -MH  Home Care Purch,Other Small Contracts,Kumari Care Limited,258.62, 26-Jul-2013
983,Revenue,CCHD,Home Care - Elderly - South,Other Small Contracts,Kumari Care Limited,4161.08, 16-Jul-2013
984,Revenue,CCHD,Home Care - Elderly - North,Other Small Contracts,Kumari Care Limited,833.86, 16-Jul-2013
985,Revenue,CCHD,Day Care - South,Private & Voluntary Day Care,Kumari Care Limited,169.84, 16-Jul-2013
986,Revenue,CCHD,Under 65s -MH  Home Care Purch,Other Small Contracts,Kumari Care Limited,196.86, 16-Jul-2013
987,Revenue,CCHD,Home Care - Elderly - South,Other Small Contracts,Kumari Care Limited,3887.02, 16-Jul-2013
988,Revenue,CCHD,Home Care - Elderly - North,Other Small Contracts,Kumari Care Limited,832.66, 16-Jul-2013
989,Revenue,CCHD,Day Care - South,Private & Voluntary Day Care,Kumari Care Limited,46.32, 16-Jul-2013
990,Revenue,CCHD,Purchase of Non-Res Care - North,Private & Voluntary Day Care,Lawrence Weston Community Farm,660, 29-Jul-2013
991,Revenue,CCHD,Public Health - Admin,Other Supplies & Services,Lee Cox,4750, 02-Jul-2013
992,Revenue,CCHD,Public Health - Admin,Other Supplies & Services,Lee Cox,4750, 02-Jul-2013
993,Revenue,CCHD,Social Lettings Agency,Other Supplies & Services,Individual,565, 05-Jul-2013
994,Revenue,CCHD,Social Lettings Agency,Fees - General,Individual,10, 18-Jul-2013
995,Revenue,CCHD,Social Lettings Agency,Other Supplies & Services,Individual,565, 18-Jul-2013
996,Revenue,CCHD,Bed purchasing - Phys Dis - North,Nursing Homes,Leonard Cheshire  National Account Centr,4963.04, 09-Jul-2013
997,Revenue,CCHD,Bed purchasing - Phys Dis - North,Residential Homes,Leonard Cheshire  National Account Centr,2868.88, 09-Jul-2013
998,Revenue,CCHD,Bed Purchasing - Under 65s PWLD - South,Residential Homes,Leonard Cheshire  National Account Centr,2959.44, 09-Jul-2013
999,Revenue,CCHD,Bed Purchasing - Elderly - North,Nursing Homes,Leonard Cheshire  National Account Centr,3468.8, 09-Jul-2013
1000,Revenue,CCHD,Bed purchasing - Phys Dis - North,Nursing Homes,Leonard Cheshire  National Account Centr,2779.04, 09-Jul-2013
1001,Revenue,CCHD,Bed Purchasing - Elderly - North,Residential Homes,Leonard Cheshire  National Account Centr,3150.32, 09-Jul-2013
1002,Revenue,CCHD,Bed purchasing - Under 65s PWLD - North,Residential Homes,Leonard Cheshire  National Account Centr,5872.12, 09-Jul-2013
1003,Revenue,CCHD,Bed purchasing - Under 65s PWLD - North,Residential Homes,Leonard Cheshire  National Account Centr,5870.56, 09-Jul-2013
1004,Revenue,CCHD,Bed Purchasing - Elderly - South,Residential Homes,Leonard Cheshire  National Account Centr,4433.04, 09-Jul-2013
1005,Revenue,CCHD,Bed purchasing - Phys Dis - North,Nursing Homes,Leonard Cheshire  National Account Centr,2838.64, 09-Jul-2013
1006,Revenue,CCHD,Bed purchasing - Phys Dis - North,Nursing Homes,Leonard Cheshire  National Account Centr,3812.44, 09-Jul-2013
1007,Revenue,CCHD,Bed purchasing - Phys Dis - North,Residential Homes,Leonard Cheshire  National Account Centr,2889.4, 09-Jul-2013
1008,Revenue,CCHD,Bed purchasing - Phys Dis - North,Nursing Homes,Leonard Cheshire  National Account Centr,4473.76, 09-Jul-2013
1009,Revenue,CCHD,Bed purchasing - Phys Dis - North,Nursing Homes,Leonard Cheshire  National Account Centr,3223.8, 09-Jul-2013
1010,Revenue,CCHD,Bed purchasing - Phys Dis - South,Nursing Homes,Leonard Cheshire  National Account Centr,6114.8, 09-Jul-2013
1011,Revenue,CCHD,Bed purchasing - Phys Dis - North,Nursing Homes,Leonard Cheshire  National Account Centr,5521.36, 09-Jul-2013
1012,Revenue,CCHD,Bed Purchasing - Elderly - South,Nursing Homes,Leonard Cheshire  National Account Centr,2869.2, 09-Jul-2013
1013,Revenue,CCHD,Bed Purchasing - Southmead Hospital,Nursing Homes,Leonard Cheshire  National Account Centr,3002, 09-Jul-2013
1014,Revenue,CCHD,South Glos Users in all other LA Homes,Nursing Homes,Leonard Cheshire  National Account Centr,604.4, 09-Jul-2013
1015,Revenue,CCHD,Bed purchasing - Phys Dis - North,Nursing Homes,Leonard Cheshire  National Account Centr,3309.2, 09-Jul-2013
1016,Revenue,CCHD,Bed Purchasing - Frenchay Hospital,Residential Homes,Leonard Cheshire  National Account Centr,3773.4, 09-Jul-2013
1017,Revenue,CCHD,Bed Purchasing - Elderly - South,Nursing Homes,Leonard Cheshire  National Account Centr,4369.6, 09-Jul-2013
1018,Revenue,CCHD,Bed Purchasing - Elderly - South,Nursing Homes,Leonard Elms Care Home,1539.28, 09-Jul-2013
1019,Revenue,CCHD,Supported Living - North,Private & Voluntary Home Care,Lifeways Community Care (Gloucester) Ltd,8792, 15-Jul-2013
1020,Revenue,CCHD,Supported Living - North,Private & Voluntary Home Care,Lifeways Community Care (Gloucester) Ltd,11373, 24-Jul-2013
1021,Revenue,CCHD,Supported Living - North,Private & Voluntary Home Care,Lifeways Community Care (Gloucester) Ltd,11373, 24-Jul-2013
1022,Revenue,CCHD,Supported Living - North,Private & Voluntary Home Care,Lifeways Community Care (Gloucester) Ltd,11373, 19-Jul-2013
1023,Revenue,CCHD,Bed Purchasing - Southmead Hospital,Residential Homes,Little Croft,1591.57, 09-Jul-2013
1024,Revenue,CCHD,Bed Purchasing - Southmead Hospital,Residential Homes,Little Croft,1244.76, 09-Jul-2013
1025,Revenue,CCHD,Bed Purchasing - Elderly - South,Residential Homes,Little Croft,1856, 09-Jul-2013
1026,Revenue,CCHD,Bed Purchasing - Elderly - South,Residential Homes,Little Croft,1522.8, 09-Jul-2013
1027,Revenue,CCHD,Bed Purchasing - Frenchay Hospital,Residential Homes,Little Croft,1187.44, 09-Jul-2013
1028,Revenue,CCHD,Bed Purchasing - Elderly MH - South,Residential Homes,Little Croft,1173.28, 09-Jul-2013
1029,Revenue,CCHD,Bed Purchasing - Southmead Hospital,Residential Homes,Little Croft,1246, 09-Jul-2013
1030,Revenue,CCHD,Bed purchasing - Under 65s PWLD - North,Residential Homes,Littlecroft Residential Homes  Longcroft,6386.28, 09-Jul-2013
1031,Revenue,CCHD,Home Care - Elderly - South,Other Small Contracts,Lloyds TSB Commercial Finance Limited,304.98, 10-Jul-2013
1032,Revenue,CCHD,Home Care - Elderly - North,Other Small Contracts,Lloyds TSB Commercial Finance Limited,8300.93, 10-Jul-2013
1033,Revenue,CCHD,Day Care - South,Private & Voluntary Day Care,Lloyds TSB Commercial Finance Limited,250.24, 10-Jul-2013
1034,Revenue,CCHD,Day Care - North,Private & Voluntary Day Care,Lloyds TSB Commercial Finance Limited,187.68, 10-Jul-2013
1035,Revenue,CCHD,Home Care - Elderly - South,Other Small Contracts,Lloyds TSB Commercial Finance Limited,199.41, 10-Jul-2013
1036,Revenue,CCHD,Home Care - Elderly - North,Other Small Contracts,Lloyds TSB Commercial Finance Limited,8903.07, 10-Jul-2013
1037,Revenue,CCHD,Day Care - South,Private & Voluntary Day Care,Lloyds TSB Commercial Finance Limited,254.15, 10-Jul-2013
1038,Revenue,CCHD,Day Care - North,Private & Voluntary Day Care,Lloyds TSB Commercial Finance Limited,179.86, 10-Jul-2013
1039,Revenue,CCHD,Home Care - Elderly - South,Other Small Contracts,Lloyds TSB Commercial Finance Limited,285.43, 23-Jul-2013
1040,Revenue,CCHD,Home Care - Elderly - North,Other Small Contracts,Lloyds TSB Commercial Finance Limited,9208.05, 23-Jul-2013
1041,Revenue,CCHD,Day Care - South,Private & Voluntary Day Care,Lloyds TSB Commercial Finance Limited,218.96, 23-Jul-2013
1042,Revenue,CCHD,Day Care - North,Private & Voluntary Day Care,Lloyds TSB Commercial Finance Limited,164.22, 23-Jul-2013
1043,Revenue,CCHD,Home Care - Elderly - South,Other Small Contracts,Lloyds TSB Commercial Finance Limited,332.35, 23-Jul-2013
1044,Revenue,CCHD,Home Care - Elderly - North,Other Small Contracts,Lloyds TSB Commercial Finance Limited,9270.61, 23-Jul-2013
1045,Revenue,CCHD,Day Care - South,Private & Voluntary Day Care,Lloyds TSB Commercial Finance Limited,246.33, 23-Jul-2013
1046,Revenue,CCHD,Day Care - North,Private & Voluntary Day Care,Lloyds TSB Commercial Finance Limited,226.78, 23-Jul-2013
1047,Revenue,CCHD,Home Care - Elderly - South,Other Small Contracts,Lloyds TSB Commercial Finance Limited,312.8, 17-Jul-2013
1048,Revenue,CCHD,Home Care - Elderly - North,Other Small Contracts,Lloyds TSB Commercial Finance Limited,8691.93, 17-Jul-2013
1049,Revenue,CCHD,Day Care - South,Private & Voluntary Day Care,Lloyds TSB Commercial Finance Limited,250.24, 17-Jul-2013
1050,Revenue,CCHD,Day Care - North,Private & Voluntary Day Care,Lloyds TSB Commercial Finance Limited,179.86, 17-Jul-2013
1051,Revenue,CCHD,Home Care - Elderly - South,Other Small Contracts,Lloyds TSB Commercial Finance Limited,367.54, 17-Jul-2013
1052,Revenue,CCHD,Home Care - Elderly - North,Other Small Contracts,Lloyds TSB Commercial Finance Limited,8582.45, 17-Jul-2013
1053,Revenue,CCHD,Day Care - South,Private & Voluntary Day Care,Lloyds TSB Commercial Finance Limited,156.4, 17-Jul-2013
1054,Revenue,CCHD,Day Care - North,Private & Voluntary Day Care,Lloyds TSB Commercial Finance Limited,234.6, 17-Jul-2013
1055,Revenue,CCHD,Home Care - Elderly - South,Other Small Contracts,Lloyds TSB Commercial Finance Limited,347.99, 16-Jul-2013
1056,Revenue,CCHD,Home Care - Elderly - North,Other Small Contracts,Lloyds TSB Commercial Finance Limited,8645.01, 16-Jul-2013
1057,Revenue,CCHD,Day Care - South,Private & Voluntary Day Care,Lloyds TSB Commercial Finance Limited,203.32, 16-Jul-2013
1058,Revenue,CCHD,Day Care - North,Private & Voluntary Day Care,Lloyds TSB Commercial Finance Limited,234.6, 16-Jul-2013
1059,Revenue,CCHD,Home Care - Elderly - South,Other Small Contracts,Lloyds TSB Commercial Finance Limited,187.68, 23-Jul-2013
1060,Revenue,CCHD,Home Care - Elderly - North,Other Small Contracts,Lloyds TSB Commercial Finance Limited,7804.36, 23-Jul-2013
1061,Revenue,CCHD,Day Care - South,Private & Voluntary Day Care,Lloyds TSB Commercial Finance Limited,156.4, 23-Jul-2013
1062,Revenue,CCHD,Day Care - North,Private & Voluntary Day Care,Lloyds TSB Commercial Finance Limited,144.67, 23-Jul-2013
1063,Revenue,CCHD,Supported Living - South,Private & Voluntary Home Care,Lloyds TSB Commercial Finance Limited,3764.77, 05-Jul-2013
1064,Revenue,CCHD,Supported Living - South,Private & Voluntary Home Care,Lloyds TSB Commercial Finance Limited,3813.76, 05-Jul-2013
1065,Revenue,CCHD,Supported Living - South,Private & Voluntary Home Care,Lloyds TSB Commercial Finance Limited,3685.56, 09-Jul-2013
1066,Revenue,CCHD,Supported Living - South,Private & Voluntary Home Care,Lloyds TSB Commercial Finance Limited,6014.43, 05-Jul-2013
1067,Revenue,CCHD,Supported Living - South,Private & Voluntary Home Care,Lloyds TSB Commercial Finance Limited,3791.44, 09-Jul-2013
1068,Revenue,CCHD,Supported Living - South,Private & Voluntary Home Care,Lloyds TSB Commercial Finance Limited,8012.59, 15-Jul-2013
1069,Revenue,CCHD,Supported Living - South,Private & Voluntary Home Care,Lloyds TSB Commercial Finance Limited,4063.65, 05-Jul-2013
1070,Revenue,CCHD,Home Care - Elderly - South,Other Small Contracts,Lloyds TSB Commercial Finance Limited,347.99, 19-Jul-2013
1071,Revenue,CCHD,Home Care - Elderly - North,Other Small Contracts,Lloyds TSB Commercial Finance Limited,8852.24, 19-Jul-2013
1072,Revenue,CCHD,Day Care - South,Private & Voluntary Day Care,Lloyds TSB Commercial Finance Limited,215.05, 19-Jul-2013
1073,Revenue,CCHD,Day Care - North,Private & Voluntary Day Care,Lloyds TSB Commercial Finance Limited,183.77, 19-Jul-2013
1074,Revenue,CCHD,Supported Living - North,Private & Voluntary Home Care,Lloyds TSB Commercial Finance Limited,7031.1, 09-Jul-2013
1075,Revenue,CCHD,Supported Living - North,Private & Voluntary Home Care,Lloyds TSB Commercial Finance Limited,9199.95, 09-Jul-2013
1076,Revenue,CCHD,Supported Living - South,Private & Voluntary Home Care,Lloyds TSB Commercial Finance Limited,3724.45, 08-Jul-2013
1077,Revenue,CCHD,Supported Living - South,Private & Voluntary Home Care,Lloyds TSB Commercial Finance Limited,3664.68, 05-Jul-2013
1078,Revenue,CCHD,Supported Living - South,Private & Voluntary Home Care,Lloyds TSB Commercial Finance Limited,5785.85, 05-Jul-2013
1079,Revenue,CCHD,Supported Living - South,Private & Voluntary Home Care,Lloyds TSB Commercial Finance Limited,3438.58, 05-Jul-2013
1080,Revenue,CCHD,Supported Living - South,Private & Voluntary Home Care,Lloyds TSB Commercial Finance Limited,3455.65, 09-Jul-2013
1081,Revenue,CCHD,Supported Living - North,Private & Voluntary Home Care,Lloyds TSB Commercial Finance Limited,7948.2, 09-Jul-2013
1082,Revenue,CCHD,Supported Living - South,Private & Voluntary Home Care,Lloyds TSB Commercial Finance Limited,3362.44, 08-Jul-2013
1083,Revenue,CCHD,Supported Living - South,Private & Voluntary Home Care,Loga Care Ltd (T/A Logacare),3795.33, 01-Jul-2013
1084,Revenue,CCHD,Supported Living - South,Private & Voluntary Home Care,Loga Care Ltd (T/A Logacare),3672.9, 31-Jul-2013
1085,Revenue,CCHD,Bed Purchasing - Under 65s PWLD - South,Residential Homes,Longton Court,9502.4, 09-Jul-2013
1086,Revenue,CCHD,Social Lettings Agency,Other Supplies & Services,Individual,565, 01-Jul-2013
1087,Revenue,CCHD,Bed Purchasing - Southmead Hospital,Nursing Homes,Majestic 3 Limited,998, 09-Jul-2013
1088,Revenue,CCHD,Bed Purchasing - Elderly - North,Residential Homes,Manor Cottage,1232.24, 09-Jul-2013
1089,Revenue,CCHD,Bed Purchasing - Southmead Hospital,Residential Homes,Manor Cottage,1246, 09-Jul-2013
1090,Revenue,CCHD,Bed Purchasing - Elderly - South,Residential Homes,Manor Cottage,1449.64, 09-Jul-2013
1091,Revenue,CCHD,Bed Purchasing - Southmead Hospital,Residential Homes,Manor Cottage,1246, 09-Jul-2013
1092,Revenue,CCHD,Bed Purchasing - Elderly - South,Residential Homes,Manor Cottage,1448.6, 09-Jul-2013
1093,Revenue,CCHD,Bed Purchasing - Elderly - North,Residential Homes,Manton Hall Residential Home,1496.44, 09-Jul-2013
1094,Revenue,CCHD,Section 117 Placements MH Younger,Private & Voluntary Day Care,Maples Community Care Limited,812.25, 05-Jul-2013
1095,Revenue,CCHD,Supporting People Programme,Grants to Voluntary Bodies,Maples Community Housing Limited,2677.58, 01-Jul-2013
1096,Revenue,CCHD,Public Health - Admin,Other Supplies & Services,Margaret Nowicki,652.8, 04-Jul-2013
1097,Revenue,CCHD,Public Health - Admin,Other Supplies & Services,Margaret Nowicki,652.8, 04-Jul-2013
1098,Revenue,CCHD,Public Health - Admin,Other Supplies & Services,Margaret Nowicki,662.4, 18-Jul-2013
1099,Revenue,CCHD,Social Lettings Agency,Fees - General,Individual,11.6, 19-Jul-2013
1100,Revenue,CCHD,Social Lettings Agency,Other Supplies & Services,Individual,583, 19-Jul-2013
1101,Revenue,CCHD,Bed Purchasing - Under 65s PWLD - South,Residential Homes,Marsden Healthcare Limited,911.04, 05-Jul-2013
1102,Revenue,CCHD,Bed purchasing - Elderly PWLD - South,Residential Homes,Marsden Healthcare Limited,3203, 05-Jul-2013
1103,Revenue,CCHD,Bed purchasing - Elderly PWLD - South,Residential Homes,Marsden Healthcare Limited,1505.96, 05-Jul-2013
1104,Revenue,CCHD,Bed Purchasing - Elderly MH - South,Nursing Homes,Meadow Care Home,1476.76, 09-Jul-2013
1105,Revenue,CCHD,Bed Purchasing - Elderly - South,Nursing Homes,Meadow Care Home,6274.35, 09-Jul-2013
1106,Revenue,CCHD,Home Care - Elderly - South,Other Small Contracts,Mears Care,606.8, 10-Jul-2013
1107,Revenue,CCHD,Home Care - Elderly - North,Other Small Contracts,Mears Care,5920, 10-Jul-2013
1108,Revenue,CCHD,Day Care - South,Private & Voluntary Day Care,Mears Care,88.8, 10-Jul-2013
1109,Revenue,CCHD,Day Care - North,Private & Voluntary Day Care,Mears Care,196.1, 10-Jul-2013
1110,Revenue,CCHD,Under 65s -MH  Home Care Purch,Other Small Contracts,Mears Care,111, 10-Jul-2013
1111,Revenue,CCHD,Home Care - Elderly LD - KH,Private & Voluntary Home Care,Mears Care,51.8, 10-Jul-2013
1112,Revenue,CCHD,Home Care - Elderly - South,Private & Voluntary Home Care,Mears Care,48154.25, 26-Jul-2013
1113,Revenue,CCHD,Home Care - Elderly - South,Other Small Contracts,Mears Care,632.7, 16-Jul-2013
1114,Revenue,CCHD,Home Care - Elderly - North,Other Small Contracts,Mears Care,6208.6, 16-Jul-2013
1115,Revenue,CCHD,Day Care - South,Private & Voluntary Day Care,Mears Care,88.8, 16-Jul-2013
1116,Revenue,CCHD,Day Care - North,Private & Voluntary Day Care,Mears Care,229.4, 16-Jul-2013
1117,Revenue,CCHD,Under 65s -MH  Home Care Purch,Other Small Contracts,Mears Care,111, 16-Jul-2013
1118,Revenue,CCHD,Home Care - Elderly LD - KH,Private & Voluntary Home Care,Mears Care,44.4, 16-Jul-2013
1119,Revenue,CCHD,Home Care - Elderly - South,Other Small Contracts,Mears Care,629, 05-Jul-2013
1120,Revenue,CCHD,Home Care - Elderly - North,Other Small Contracts,Mears Care,6064.3, 05-Jul-2013
1121,Revenue,CCHD,Day Care - South,Private & Voluntary Day Care,Mears Care,88.8, 05-Jul-2013
1122,Revenue,CCHD,Day Care - North,Private & Voluntary Day Care,Mears Care,255.3, 05-Jul-2013
1123,Revenue,CCHD,Under 65s -MH  Home Care Purch,Other Small Contracts,Mears Care,111, 05-Jul-2013
1124,Revenue,CCHD,Home Care - Elderly LD - KH,Private & Voluntary Home Care,Mears Care,51.8, 05-Jul-2013
1125,Revenue,CCHD,Home Care - Elderly - North,Other Small Contracts,Medacs Home Care,700, 30-Jul-2013
1126,Revenue,CCHD,Home care - Elderly MH - North,Other Small Contracts,Medacs Home Care,115.5, 30-Jul-2013
1127,Revenue,CCHD,Home Care - Elderly - North,Other Small Contracts,Medacs Home Care,822.3, 30-Jul-2013
1128,Revenue,CCHD,Home care - Elderly MH - North,Other Small Contracts,Medacs Home Care,126, 30-Jul-2013
1129,Revenue,CCHD,Home Care - Elderly - North,Other Small Contracts,Medacs Home Care,605.5, 30-Jul-2013
1130,Revenue,CCHD,Home care - Elderly MH - North,Other Small Contracts,Medacs Home Care,14, 30-Jul-2013
1131,Revenue,CCHD,Home Care - Elderly - North,Other Small Contracts,Medacs Home Care,633.5, 30-Jul-2013
1132,Revenue,CCHD,Home care - Elderly MH - North,Other Small Contracts,Medacs Home Care,119, 30-Jul-2013
1133,Revenue,CCHD,Home Care - Elderly - North,Other Small Contracts,Medacs Home Care,682.5, 30-Jul-2013
1134,Revenue,CCHD,Home care - Elderly MH - North,Other Small Contracts,Medacs Home Care,143.5, 30-Jul-2013
1135,Revenue,CCHD,Home Care - Elderly - North,Other Small Contracts,Medacs Home Care,602, 30-Jul-2013
1136,Revenue,CCHD,Home care - Elderly MH - North,Other Small Contracts,Medacs Home Care,80.5, 30-Jul-2013
1137,Revenue,CCHD,Home Care - Elderly - North,Other Small Contracts,Medacs Home Care,700, 30-Jul-2013
1138,Revenue,CCHD,Home care - Elderly MH - North,Other Small Contracts,Medacs Home Care,133, 30-Jul-2013
1139,Revenue,CCHD,NRS Contract,Daily Living Equipment,Medequip Assistive Technology Ltd,38480.92, 15-Jul-2013
1140,Revenue,CCHD,NRS Contract,Daily Living Equipment,Medequip Assistive Technology Ltd,73975.38, 15-Jul-2013
1141,Revenue,CCHD,Bed Purchasing - Under 65s PWLD - South,Residential Homes,Mencap,2219.16, 09-Jul-2013
1142,Revenue,CCHD,Supported Living (S28a) South,Private & Voluntary Home Care,Mencap - PS Central & Cymru,3786.86, 12-Jul-2013
1143,Revenue,CCHD,Supported Living (S28a) South,Private & Voluntary Home Care,Mencap - PS Central & Cymru,3786.86, 25-Jul-2013
1144,Revenue,CCHD,Supporting People Programme,Grants to Voluntary Bodies,Merlin Housing Society,15398.42, 01-Jul-2013
1145,Revenue,CCHD,Supporting People Programme,Grants to Voluntary Bodies,Merlin Housing Society,2423, 01-Jul-2013
1146,Revenue,CCHD,Supporting People Programme,Grants to Voluntary Bodies,Merlin Housing Society,51328.08, 01-Jul-2013
1147,Revenue,CCHD,Supporting People Programme,Grants to Voluntary Bodies,Merlin Housing Society,1026.58, 01-Jul-2013
1148,Revenue,CCHD,Bed Purchasing - Frenchay Hospital,Residential Homes,Milburn Finance,1040.12, 09-Jul-2013
1149,Revenue,CCHD,Home Care - Elderly - South,Other Small Contracts,Milestones Outreach Dementia Services,1721.56, 24-Jul-2013
1150,Revenue,CCHD,Home Care - Elderly - North,Other Small Contracts,Milestones Outreach Dementia Services,714.1, 24-Jul-2013
1151,Revenue,CCHD,Day Care - North,Private & Voluntary Day Care,Milestones Outreach Dementia Services,114, 24-Jul-2013
1152,Revenue,CCHD,Home care - Elderly MH - North,Other Small Contracts,Milestones Outreach Dementia Services,92.64, 24-Jul-2013
1153,Revenue,CCHD,Elderly MH Day Care North,Private & Voluntary Day Care,Milestones Outreach Dementia Services,108.08, 24-Jul-2013
1154,Revenue,CCHD,Home Care - Elderly - South,Other Small Contracts,Milestones Outreach Dementia Services,1671.38, 16-Jul-2013
1155,Revenue,CCHD,Home Care - Elderly - North,Other Small Contracts,Milestones Outreach Dementia Services,1111.68, 16-Jul-2013
1156,Revenue,CCHD,Day Care - South,Private & Voluntary Day Care,Milestones Outreach Dementia Services,61.76, 16-Jul-2013
1157,Revenue,CCHD,Home care - Elderly MH - North,Other Small Contracts,Milestones Outreach Dementia Services,92.64, 16-Jul-2013
1158,Revenue,CCHD,Elderly MH Day Care North,Private & Voluntary Day Care,Milestones Outreach Dementia Services,15.44, 16-Jul-2013
1159,Revenue,CCHD,Home Care - Elderly - South,Other Small Contracts,Milestones Outreach Dementia Services,1474.52, 26-Jul-2013
1160,Revenue,CCHD,Home Care - Elderly - North,Other Small Contracts,Milestones Outreach Dementia Services,1046.06, 26-Jul-2013
1161,Revenue,CCHD,Day Care - South,Private & Voluntary Day Care,Milestones Outreach Dementia Services,61.76, 26-Jul-2013
1162,Revenue,CCHD,Home care - Elderly MH - North,Other Small Contracts,Milestones Outreach Dementia Services,69.48, 26-Jul-2013
1163,Revenue,CCHD,Elderly MH Day Care North,Private & Voluntary Day Care,Milestones Outreach Dementia Services,15.44, 26-Jul-2013
1164,Revenue,CCHD,Home Care - Elderly - South,Other Small Contracts,Milestones Outreach Dementia Services,1489.96, 26-Jul-2013
1165,Revenue,CCHD,Home Care - Elderly - North,Other Small Contracts,Milestones Outreach Dementia Services,1127.12, 26-Jul-2013
1166,Revenue,CCHD,Day Care - South,Private & Voluntary Day Care,Milestones Outreach Dementia Services,61.76, 26-Jul-2013
1167,Revenue,CCHD,Home care - Elderly MH - North,Other Small Contracts,Milestones Outreach Dementia Services,84.92, 26-Jul-2013
1168,Revenue,CCHD,Elderly MH Day Care North,Private & Voluntary Day Care,Milestones Outreach Dementia Services,15.44, 26-Jul-2013
1169,Revenue,CCHD,Home Care - Elderly - South,Other Small Contracts,Milestones Outreach Dementia Services,1536.28, 26-Jul-2013
1170,Revenue,CCHD,Home Care - Elderly - North,Other Small Contracts,Milestones Outreach Dementia Services,945.7, 26-Jul-2013
1171,Revenue,CCHD,Day Care - South,Private & Voluntary Day Care,Milestones Outreach Dementia Services,61.76, 26-Jul-2013
1172,Revenue,CCHD,Home care - Elderly MH - North,Other Small Contracts,Milestones Outreach Dementia Services,61.76, 26-Jul-2013
1173,Revenue,CCHD,Elderly MH Day Care North,Private & Voluntary Day Care,Milestones Outreach Dementia Services,15.44, 26-Jul-2013
1174,Revenue,CCHD,Home Care - Elderly - South,Other Small Contracts,Milestones Outreach Dementia Services,1528.56, 26-Jul-2013
1175,Revenue,CCHD,Home Care - Elderly - North,Other Small Contracts,Milestones Outreach Dementia Services,953.42, 26-Jul-2013
1176,Revenue,CCHD,Day Care - South,Private & Voluntary Day Care,Milestones Outreach Dementia Services,46.32, 26-Jul-2013
1177,Revenue,CCHD,Home care - Elderly MH - North,Other Small Contracts,Milestones Outreach Dementia Services,84.92, 26-Jul-2013
1178,Revenue,CCHD,Elderly MH Day Care North,Private & Voluntary Day Care,Milestones Outreach Dementia Services,15.44, 26-Jul-2013
1179,Revenue,CCHD,Home Care - Elderly - South,Other Small Contracts,Milestones Outreach Dementia Services,1625.06, 31-Jul-2013
1180,Revenue,CCHD,Home Care - Elderly - North,Other Small Contracts,Milestones Outreach Dementia Services,949.56, 31-Jul-2013
1181,Revenue,CCHD,Day Care - South,Private & Voluntary Day Care,Milestones Outreach Dementia Services,61.76, 31-Jul-2013
1182,Revenue,CCHD,Home care - Elderly MH - North,Other Small Contracts,Milestones Outreach Dementia Services,88.78, 31-Jul-2013
1183,Revenue,CCHD,Elderly MH Day Care North,Private & Voluntary Day Care,Milestones Outreach Dementia Services,15.44, 31-Jul-2013
1184,Revenue,CCHD,Home Care - Elderly - South,Other Small Contracts,Milestones Outreach Dementia Services,1544, 31-Jul-2013
1185,Revenue,CCHD,Home Care - Elderly - North,Other Small Contracts,Milestones Outreach Dementia Services,953.42, 31-Jul-2013
1186,Revenue,CCHD,Day Care - South,Private & Voluntary Day Care,Milestones Outreach Dementia Services,61.76, 31-Jul-2013
1187,Revenue,CCHD,Home care - Elderly MH - North,Other Small Contracts,Milestones Outreach Dementia Services,84.92, 31-Jul-2013
1188,Revenue,CCHD,Elderly MH Day Care North,Private & Voluntary Day Care,Milestones Outreach Dementia Services,15.44, 31-Jul-2013
1189,Revenue,CCHD,Purchase of Non-Res Care - South,Private & Voluntary Day Care,Milestones Trust,1711.56, 05-Jul-2013
1190,Revenue,CCHD,Purchase of Non-Res Care - South,Private & Voluntary Day Care,Milestones Trust,531.37, 04-Jul-2013
1191,Revenue,CCHD,Purchase of Non-Res Care - South,Private & Voluntary Day Care,Milestones Trust,1097.43, 12-Jul-2013
1192,Revenue,CCHD,Purchase of Non-Res Care - South,Private & Voluntary Day Care,Milestones Trust,1104.38, 05-Jul-2013
1193,Revenue,CCHD,Purchase of Non-Res Care - South,Private & Voluntary Day Care,Milestones Trust,1521.44, 05-Jul-2013
1194,Revenue,CCHD,Supported Living - South,Private & Voluntary Home Care,Milestones Trust,531.36, 05-Jul-2013
1195,Revenue,CCHD,Purchase of Non-Res Care - South,Private & Voluntary Day Care,Milestones Trust,1384.1, 05-Jul-2013
1196,Revenue,CCHD,Purchase of Non-Res Care - South,Private & Voluntary Day Care,Milestones Trust,1709.96, 05-Jul-2013
1197,Revenue,CCHD,Purchase of Non-Res Care - South,Private & Voluntary Day Care,Milestones Trust,2587.2, 05-Jul-2013
1198,Revenue,CCHD,Supported Living - South,Private & Voluntary Home Care,Milestones Trust,1472.65, 05-Jul-2013
1199,Revenue,CCHD,Purchase of Non-Res Care - South,Private & Voluntary Day Care,Milestones Trust,1531.95, 12-Jul-2013
1200,Revenue,CCHD,Purchase of Non-Res Care - South,Private & Voluntary Day Care,Milestones Trust,525.6, 05-Jul-2013
1201,Revenue,CCHD,Purchase of Non-Res Care - South,Private & Voluntary Day Care,Milestones Trust,1278.56, 12-Jul-2013
1202,Revenue,CCHD,Purchase of Non-Res Care - South,Private & Voluntary Day Care,Milestones Trust,989.68, 05-Jul-2013
1203,Revenue,CCHD,Supported Living - South,Private & Voluntary Home Care,Milestones Trust,1745.7, 05-Jul-2013
1204,Revenue,CCHD,Purchase of Non-Res Care - South,Private & Voluntary Day Care,Milestones Trust,1260.46, 12-Jul-2013
1205,Revenue,CCHD,Supported Living (S28a) North,Private & Voluntary Home Care,Milestones Trust,8008.64, 12-Jul-2013
1206,Revenue,CCHD,Elderly MH Day Care North,Private & Voluntary Day Care,Milestones Trust,615.9, 18-Jul-2013
1207,Revenue,CCHD,Supported Living - North,Private & Voluntary Home Care,Milestones Trust,859.52, 19-Jul-2013
1208,Revenue,CCHD,Purchase of Non-Res Care - North,Private & Voluntary Day Care,Milestones Trust,645.81, 18-Jul-2013
1209,Revenue,CCHD,Supported Living - South,Private & Voluntary Home Care,Milestones Trust,916.16, 23-Jul-2013
1210,Revenue,CCHD,Supported Living (S28a) North,Private & Voluntary Home Care,Milestones Trust,4012.36, 25-Jul-2013
1211,Revenue,CCHD,Supported Living (S28a) North,Private & Voluntary Home Care,Milestones Trust,3512.6, 25-Jul-2013
1212,Revenue,CCHD,Supported Living (S28a) North,Private & Voluntary Home Care,Milestones Trust,3512.6, 25-Jul-2013
1213,Revenue,CCHD,Supported Living - North,Private & Voluntary Home Care,Milestones Trust,1236.35, 29-Jul-2013
1214,Revenue,CCHD,Supported Living - South,Private & Voluntary Home Care,Milestones Trust,1164.78, 26-Jul-2013
1215,Revenue,CCHD,Supported Living (S28a) North,Private & Voluntary Home Care,Milestones Trust,3974, 25-Jul-2013
1216,Revenue,CCHD,Supported Living (S28a) North,Private & Voluntary Home Care,Milestones Trust,3974, 25-Jul-2013
1217,Revenue,CCHD,Supported Living (S28a) North,Private & Voluntary Home Care,Milestones Trust,4381, 25-Jul-2013
1218,Revenue,CCHD,Supported Living (S28a) North,Private & Voluntary Home Care,Milestones Trust,4381, 25-Jul-2013
1219,Revenue,CCHD,Supported Living (S28a) North,Private & Voluntary Home Care,Milestones Trust,9293.06, 25-Jul-2013
1220,Revenue,CCHD,Supported Living (S28a) South,Private & Voluntary Home Care,Milestones Trust,1488.99, 25-Jul-2013
1221,Revenue,CCHD,Supported Living - South,Private & Voluntary Home Care,Milestones Trust,1847.31, 26-Jul-2013
1222,Revenue,CCHD,Supported Living - South,Private & Voluntary Home Care,Milestones Trust,691.46, 26-Jul-2013
1223,Revenue,CCHD,Supported Living - South,Private & Voluntary Home Care,Milestones Trust,548.33, 26-Jul-2013
1224,Revenue,CCHD,Supported Living - South,Private & Voluntary Home Care,Milestones Trust,932.82, 26-Jul-2013
1225,Revenue,CCHD,Supported Living - South,Private & Voluntary Home Care,Milestones Trust,654.4, 30-Jul-2013
1226,Revenue,CCHD,Supported Living - South,Private & Voluntary Home Care,Milestones Trust,1643.26, 31-Jul-2013
1227,Revenue,CCHD,Supported Living - South,Private & Voluntary Home Care,Milestones Trust,696.4, 31-Jul-2013
1228,Revenue,CCHD,Supported Living - South,Private & Voluntary Home Care,Milestones Trust,2460.23, 31-Jul-2013
1229,Revenue,CCHD,Bed Purchasing - S28A - Over 65- North,Residential Homes,Milestones Trust,2669.24, 09-Jul-2013
1230,Revenue,CCHD,Bed Purchasing - Elderly - South,Residential Homes,Milestones Trust,1408.28, 09-Jul-2013
1231,Revenue,CCHD,Bed Purchasing - Under 65s PWLD - South,Residential Homes,Milestones Trust,5703.84, 09-Jul-2013
1232,Revenue,CCHD,Bed purchasing - Elderly MH - North,Nursing Homes,Milestones Trust,959.4, 09-Jul-2013
1233,Revenue,CCHD,Bed purchasing - Elderly PWLD - North,Residential Homes,Milestones Trust,3420.84, 09-Jul-2013
1234,Revenue,CCHD,Bed Purchasing - Under 65s PWLD - South,Residential Homes,Milestones Trust,4882.36, 09-Jul-2013
1235,Revenue,CCHD,Bed Purchasing - Under 65s PWLD - South,Residential Homes,Milestones Trust,5458, 09-Jul-2013
1236,Revenue,CCHD,Bed Purchasing - Under 65s PWLD - South,Nursing Homes,Milestones Trust,2784.88, 09-Jul-2013
1237,Revenue,CCHD,Bed purchasing - Elderly MH - North,Nursing Homes,Milestones Trust,1434.2, 09-Jul-2013
1238,Revenue,CCHD,Section 117 Placements MH Younger,Nursing Homes,Milestones Trust,1615.36, 09-Jul-2013
1239,Revenue,CCHD,Bed purchasing - Elderly S117 - South,Nursing Homes,Milestones Trust,3226.57, 09-Jul-2013
1240,Revenue,CCHD,Bed purchasing - Elderly PWLD - South,Residential Homes,Milestones Trust,4144.04, 09-Jul-2013
1241,Revenue,CCHD,Bed purchasing -S28A  Under 65 - North,Nursing Homes,Milestones Trust,5853.56, 09-Jul-2013
1242,Revenue,CCHD,Bed purchasing -S28A  Under 65 - North,Residential Homes,Milestones Trust,5355.4, 09-Jul-2013
1243,Revenue,CCHD,Bed purchasing - Elderly PWLD - South,Residential Homes,Milestones Trust,3899.92, 09-Jul-2013
1244,Revenue,CCHD,Bed purchasing - S28A Under 65 - South,Residential Homes,Milestones Trust,5446.8, 09-Jul-2013
1245,Revenue,CCHD,Bed Purchasing - Elderly MH - South,Residential Homes,Milestones Trust,7644, 09-Jul-2013
1246,Revenue,CCHD,Bed Purchasing - Elderly MH - South,Residential Homes,Milestones Trust,3527.26, 09-Jul-2013
1247,Revenue,CCHD,Bed Purchasing - Elderly MH - South,Residential Homes,Milestones Trust,1282.64, 09-Jul-2013
1248,Revenue,CCHD,Bed Purchasing - Under 65s PWLD - South,Residential Homes,Milestones Trust,5090.24, 09-Jul-2013
1249,Revenue,CCHD,Bed Purchasing - Under 65s PWLD - South,Residential Homes,Milestones Trust,5431.76, 09-Jul-2013
1250,Revenue,CCHD,Bed purchasing - S28A Under 65 - South,Nursing Homes,Milestones Trust,7319.48, 09-Jul-2013
1251,Revenue,CCHD,MH Purchasing - Younger,Residential Homes,Milestones Trust,1020.8, 09-Jul-2013
1252,Revenue,CCHD,Bed purchasing - Elderly PWLD - South,Residential Homes,Milestones Trust,5145.48, 09-Jul-2013
1253,Revenue,CCHD,Bed purchasing - Elderly PWLD - South,Residential Homes,Milestones Trust,3823.68, 09-Jul-2013
1254,Revenue,CCHD,Bed purchasing - Elderly PWLD - North,Residential Homes,Milestones Trust,3027.2, 09-Jul-2013
1255,Revenue,CCHD,Bed purchasing -S28A  Under 65 - North,Residential Homes,Milestones Trust,5317.24, 09-Jul-2013
1256,Revenue,CCHD,Bed purchasing -S28A  Under 65 - North,Residential Homes,Milestones Trust,7077.48, 09-Jul-2013
1257,Revenue,CCHD,Bed purchasing -S28A  Under 65 - North,Nursing Homes,Milestones Trust,6272.72, 09-Jul-2013
1258,Revenue,CCHD,Bed Purchasing - Under 65s PWLD - South,Residential Homes,Milestones Trust,4535.2, 09-Jul-2013
1259,Revenue,CCHD,Bed purchasing -S28A  Under 65 - North,Residential Homes,Milestones Trust,6773.28, 09-Jul-2013
1260,Revenue,CCHD,Bed purchasing - S28A Under 65 - South,Residential Homes,Milestones Trust,4539.6, 09-Jul-2013
1261,Revenue,CCHD,Bed Purchasing - S28A - Over 65- North,Residential Homes,Milestones Trust,6510.76, 09-Jul-2013
1262,Revenue,CCHD,Bed Purchasing - LD S28A- Over 65- South,Residential Homes,Milestones Trust,4195.6, 09-Jul-2013
1263,Revenue,CCHD,Bed purchasing -S28A  Under 65 - North,Residential Homes,Milestones Trust,7077.48, 09-Jul-2013
1264,Revenue,CCHD,Bed purchasing -S28A  Under 65 - North,Residential Homes,Milestones Trust,7077.48, 09-Jul-2013
1265,Revenue,CCHD,Bed Purchasing - LD S28A- Over 65- South,Residential Homes,Milestones Trust,4117.16, 09-Jul-2013
1266,Revenue,CCHD,Bed purchasing - S28A Under 65 - South,Residential Homes,Milestones Trust,4882.36, 09-Jul-2013
1267,Revenue,CCHD,Bed purchasing - S28A Under 65 - South,Residential Homes,Milestones Trust,4775.6, 09-Jul-2013
1268,Revenue,CCHD,Bed purchasing - S28A Under 65 - South,Residential Homes,Milestones Trust,4301.68, 09-Jul-2013
1269,Revenue,CCHD,Bed Purchasing - LD S28A- Over 65- South,Residential Homes,Milestones Trust,5111.92, 09-Jul-2013
1270,Revenue,CCHD,Bed Purchasing - LD S28A- Over 65- South,Residential Homes,Milestones Trust,5051.8, 09-Jul-2013
1271,Revenue,CCHD,Bed Purchasing - LD S28A- Over 65- South,Residential Homes,Milestones Trust,5208.16, 09-Jul-2013
1272,Revenue,CCHD,Bed Purchasing - LD S28A- Over 65- South,Residential Homes,Milestones Trust,4372.64, 09-Jul-2013
1273,Revenue,CCHD,Bed Purchasing - LD S28A- Over 65- South,Residential Homes,Milestones Trust,5805.88, 09-Jul-2013
1274,Revenue,CCHD,Bed purchasing -S28A  Under 65 - North,Residential Homes,Milestones Trust,9179.96, 09-Jul-2013
1275,Revenue,CCHD,Bed purchasing -S28A  Under 65 - North,Nursing Homes,Milestones Trust,6356.08, 09-Jul-2013
1276,Revenue,CCHD,Bed Purchasing - LD S28A- Over 65- South,Residential Homes,Milestones Trust,3011, 09-Jul-2013
1277,Revenue,CCHD,Bed Purchasing - S28A - Over 65- North,Residential Homes,Milestones Trust,2891.52, 09-Jul-2013
1278,Revenue,CCHD,Section 117 Placements MH Younger,Residential Homes,Milestones Trust,1336, 09-Jul-2013
1279,Revenue,CCHD,Bed purchasing - Elderly MH - North,Residential Homes,Milestones Trust,850, 09-Jul-2013
1280,Revenue,CCHD,Bed purchasing - S28A Under 65 - South,Residential Homes,Milestones Trust,4882.36, 09-Jul-2013
1281,Revenue,CCHD,Bed purchasing - Elderly PWLD - North,Residential Homes,Milestones Trust,11898.48, 09-Jul-2013
1282,Revenue,CCHD,Bed purchasing - Under 65s PWLD - North,Residential Homes,Milestones Trust,5564.04, 09-Jul-2013
1283,Revenue,CCHD,Bed purchasing - Elderly MH - North,Nursing Homes,Milestones Trust,1098.04, 09-Jul-2013
1284,Revenue,CCHD,Bed Purchasing - Under 65s PWLD - South,Residential Homes,Milestones Trust,4284.8, 09-Jul-2013
1285,Revenue,CCHD,Bed purchasing -S28A  Under 65 - North,Residential Homes,Milestones Trust,5691.56, 09-Jul-2013
1286,Revenue,CCHD,Bed Purchasing - S28A - Over 65- North,Residential Homes,Milestones Trust,3298.28, 09-Jul-2013
1287,Revenue,CCHD,Bed Purchasing - Elderly S117- North,Residential Homes,Milestones Trust,1732, 09-Jul-2013
1288,Revenue,CCHD,MH Purchasing - Younger,Residential Homes,Milestones Trust,1020.8, 09-Jul-2013
1289,Revenue,CCHD,Bed Purchasing - S28A - Over 65- North,Residential Homes,Milestones Trust,3540.36, 09-Jul-2013
1290,Revenue,CCHD,Bed Purchasing - LD S28A- Over 65- South,Residential Homes,Milestones Trust,3900.48, 09-Jul-2013
1291,Revenue,CCHD,Bed purchasing - S28A Under 65 - South,Residential Homes,Milestones Trust,4938.12, 09-Jul-2013
1292,Revenue,CCHD,Bed purchasing - S28A Under 65 - South,Residential Homes,Milestones Trust,5826.2, 09-Jul-2013
1293,Revenue,CCHD,Bed Purchasing - LD S28A- Over 65- South,Residential Homes,Milestones Trust,5693.12, 09-Jul-2013
1294,Revenue,CCHD,Bed Purchasing - LD S28A- Over 65- South,Residential Homes,Milestones Trust,4823.12, 09-Jul-2013
1295,Revenue,CCHD,Bed Purchasing - LD S28A- Over 65- South,Residential Homes,Milestones Trust,4544.44, 09-Jul-2013
1296,Revenue,CCHD,Bed Purchasing - LD S28A- Over 65- South,Residential Homes,Milestones Trust,4619.68, 09-Jul-2013
1297,Revenue,CCHD,Bed purchasing - S28A Under 65 - South,Residential Homes,Milestones Trust,7046.99, 09-Jul-2013
1298,Revenue,CCHD,Bed Purchasing - LD S28A- Over 65- South,Residential Homes,Milestones Trust,4321.08, 09-Jul-2013
1299,Revenue,CCHD,Bed Purchasing - S28A - Over 65- North,Residential Homes,Milestones Trust,4788.84, 09-Jul-2013
1300,Revenue,CCHD,Bed Purchasing - Elderly S117- North,Nursing Homes,Milestones Trust,1788, 09-Jul-2013
1301,Revenue,CCHD,Bed Purchasing - S28A - Over 65- North,Residential Homes,Milestones Trust,4608.32, 09-Jul-2013
1302,Revenue,CCHD,Bed Purchasing - S28A - Over 65- North,Residential Homes,Milestones Trust,4779.44, 09-Jul-2013
1303,Revenue,CCHD,Bed purchasing - S28A Under 65 - South,Residential Homes,Milestones Trust,4770.48, 09-Jul-2013
1304,Revenue,CCHD,Bed Purchasing - S28A - Over 65- North,Residential Homes,Milestones Trust,4522.8, 09-Jul-2013
1305,Revenue,CCHD,Bed purchasing - S28A Under 65 - South,Residential Homes,Milestones Trust,4608.24, 09-Jul-2013
1306,Revenue,CCHD,Bed purchasing -S28A  Under 65 - North,Residential Homes,Milestones Trust,7077.48, 09-Jul-2013
1307,Revenue,CCHD,Bed Purchasing - S28A - Over 65- North,Residential Homes,Milestones Trust,5631.96, 09-Jul-2013
1308,Revenue,CCHD,Bed purchasing -S28A  Under 65 - North,Residential Homes,Milestones Trust,2978.96, 09-Jul-2013
1309,Revenue,CCHD,Bed Purchasing - S28A - Over 65- North,Residential Homes,Milestones Trust,3150.68, 09-Jul-2013
1310,Revenue,CCHD,Bed Purchasing - S28A - Over 65- North,Residential Homes,Milestones Trust,3284.2, 09-Jul-2013
1311,Revenue,CCHD,Bed Purchasing - LD S28A- Over 65- South,Residential Homes,Milestones Trust,3102.88, 09-Jul-2013
1312,Revenue,CCHD,Bed purchasing - Under 65s PWLD - North,Residential Homes,Milestones Trust,6791.36, 09-Jul-2013
1313,Revenue,CCHD,Bed Purchasing - Elderly - South,Residential Homes,Milestones Trust,3536.5, 09-Jul-2013
1314,Revenue,CCHD,Bed Purchasing - Elderly - South,Residential Homes,Milestones Trust,2812.49, 09-Jul-2013
1315,Revenue,CCHD,MH Purchasing - Younger,Nursing Homes,Milestones Trust,924, 09-Jul-2013
1316,Revenue,CCHD,MH Purchasing - Younger,Nursing Homes,Milestones Trust,942, 09-Jul-2013
1317,Revenue,CCHD,MH Purchasing - Younger,Residential Homes,Milestones Trust,1649.08, 09-Jul-2013
1318,Revenue,CCHD,Bed purchasing - Elderly PWLD - South,Residential Homes,Milestones Trust,3271.48, 09-Jul-2013
1319,Revenue,CCHD,Bed purchasing - S28A Under 65 - South,Residential Homes,Milestones Trust,5935.6, 09-Jul-2013
1320,Revenue,CCHD,Bed purchasing - S28A Under 65 - South,Residential Homes,Milestones Trust,6032.8, 09-Jul-2013
1321,Revenue,CCHD,Bed Purchasing - LD S28A- Over 65- South,Residential Homes,Milestones Trust,4372.64, 09-Jul-2013
1322,Revenue,CCHD,Bed Purchasing - Under 65s PWLD - South,Residential Homes,Milestones Trust,5936.04, 09-Jul-2013
1323,Revenue,CCHD,Bed Purchasing - LD S28A- Over 65- South,Nursing Homes,Milestones Trust,4464.72, 09-Jul-2013
1324,Revenue,CCHD,Bed Purchasing - LD S28A- Over 65- South,Residential Homes,Milestones Trust,5693.12, 09-Jul-2013
1325,Revenue,CCHD,Bed Purchasing - LD S28A- Over 65- South,Residential Homes,Milestones Trust,3627.32, 09-Jul-2013
1326,Revenue,CCHD,Bed Purchasing - LD S28A- Over 65- South,Residential Homes,Milestones Trust,4362.68, 09-Jul-2013
1327,Revenue,CCHD,Bed Purchasing - LD S28A- Over 65- South,Residential Homes,Milestones Trust,5975.88, 09-Jul-2013
1328,Revenue,CCHD,Bed Purchasing - Elderly MH - South,Residential Homes,Milestones Trust,1212.08, 09-Jul-2013
1329,Revenue,CCHD,Bed purchasing -S28A  Under 65 - North,Nursing Homes,Milestones Trust,7563.52, 09-Jul-2013
1330,Revenue,CCHD,Bed Purchasing - Under 65s PWLD - South,Residential Homes,Milestones Trust,45808.56, 09-Jul-2013
1331,Revenue,CCHD,Bed Purchasing - Under 65s PWLD - South,Residential Homes,Milestones Trust,5173.28, 09-Jul-2013
1332,Revenue,CCHD,Bed Purchasing - Elderly S117- North,Nursing Homes,Milestones Trust,1964, 09-Jul-2013
1333,Revenue,CCHD,Bed Purchasing - Elderly MH - South,Nursing Homes,Milestones Trust,4782.47, 09-Jul-2013
1334,Revenue,CCHD,Bed Purchasing - Elderly MH - South,Nursing Homes,Milestones Trust,1732.4, 09-Jul-2013
1335,Revenue,CCHD,Bed Purchasing - Elderly MH - South,Nursing Homes,Milestones Trust,1257.36, 09-Jul-2013
1336,Revenue,CCHD,Bed purchasing - Elderly MH - North,Nursing Homes,Milestones Trust,597.7, 09-Jul-2013
1337,Revenue,CCHD,Bed purchasing - Under 65s PWLD - North,Residential Homes,Milestones Trust,9550.6, 09-Jul-2013
1338,Revenue,CCHD,Section 117 Placements MH Younger,Residential Homes,Milestones Trust,1336, 09-Jul-2013
1339,Revenue,CCHD,Bed Purchasing - LD S28A- Over 65- South,Nursing Homes,Milestones Trust,3016.64, 09-Jul-2013
1340,Revenue,CCHD,Bed Purchasing - LD S28A- Over 65- South,Nursing Homes,Milestones Trust,2573.72, 09-Jul-2013
1341,Revenue,CCHD,Bed Purchasing - LD S28A- Over 65- South,Nursing Homes,Milestones Trust,3298.72, 09-Jul-2013
1342,Revenue,CCHD,Bed Purchasing - S28A - Over 65- North,Nursing Homes,Milestones Trust,3649.32, 09-Jul-2013
1343,Revenue,CCHD,Bed Purchasing - S28A - Over 65- North,Nursing Homes,Milestones Trust,3665.32, 09-Jul-2013
1344,Revenue,CCHD,Bed Purchasing - PWLD S 117 Placements,Residential Homes,Milestones Trust,5771.4, 09-Jul-2013
1345,Revenue,CCHD,Bed purchasing - Elderly S117 - South,Residential Homes,Mostyn Lodge Residential Home,1900, 09-Jul-2013
1346,Revenue,CCHD,Bed Purchasing - Frenchay Hospital,Residential Homes,Mostyn Lodge Residential Home,654.96, 09-Jul-2013
1347,Revenue,CCHD,Supported Living - South,Private & Voluntary Home Care,Moving On,3756.81, 05-Jul-2013
1348,Revenue,CCHD,Supported Living - South,Private & Voluntary Home Care,Moving On,3630.24, 19-Jul-2013
1349,Revenue,CCHD,Supported Living - South,Private & Voluntary Home Care,Moving On,6643.15, 05-Jul-2013
1350,Revenue,CCHD,Supported Living - South,Private & Voluntary Home Care,Moving On,6423.24, 19-Jul-2013
1351,Revenue,CCHD,Social Lettings Agency,Fees - General,Individual,10, 22-Jul-2013
1352,Revenue,CCHD,Social Lettings Agency,Other Supplies & Services,Individual,565, 22-Jul-2013
1353,Revenue,CCHD,Social Lettings Agency,Fees - General,Individual,8.6, 22-Jul-2013
1354,Revenue,CCHD,Social Lettings Agency,Other Supplies & Services,Individual,582, 22-Jul-2013
1355,Revenue,CCHD,Social Lettings Agency,Other Supplies & Services,Individual,655.41, 01-Jul-2013
1356,Revenue,CCHD,Social Lettings Agency,Other Supplies & Services,Individual,850, 12-Jul-2013
1357,Revenue,CCHD,Bed Purchasing - Under 65s PWLD - South,Residential Homes,Mr J Davis & Mrs S Davis,1583.52, 16-Jul-2013
1358,Revenue,CCHD,Social Lettings Agency,Other Supplies & Services,Individual,565, 08-Jul-2013
1359,Revenue,CCHD,Social Lettings Agency,Fees - General,Individual,11.2, 19-Jul-2013
1360,Revenue,CCHD,Social Lettings Agency,Other Supplies & Services,Individual,632.81, 19-Jul-2013
1361,Revenue,CCHD,Tenancy Start Up Scheme,Other Supplies & Services,Individual,1250, 10-Jul-2013
1362,Revenue,CCHD,Social Lettings Agency,Other Supplies & Services,Individual,551.44, 08-Jul-2013
1363,Revenue,CCHD,Social Lettings Agency,Other Supplies & Services,Individual,565, 01-Jul-2013
1364,Revenue,CCHD,Social Lettings Agency,Fees - General,Individual,8.7, 16-Jul-2013
1365,Revenue,CCHD,Social Lettings Agency,Other Supplies & Services,Individual,672.8, 16-Jul-2013
1366,Revenue,CCHD,Social Lettings Agency,Other Supplies & Services,Individual,540.62, 12-Jul-2013
1367,Revenue,CCHD,Supported Living - South,Private & Voluntary Home Care,Mrs B Kimber,10667.83, 08-Jul-2013
1368,Revenue,CCHD,Elderly MH Day Care South,Private & Voluntary Day Care,Mrs B Kimber,522.2, 22-Jul-2013
1369,Revenue,CCHD,Supported Living - South,Private & Voluntary Home Care,Mrs B Kimber,1266.81, 16-Jul-2013
1370,Revenue,CCHD,Purchase of Non-Res Care - South,Private & Voluntary Day Care,Mrs B Kimber,1370.7, 16-Jul-2013
1371,Revenue,CCHD,Supported Living - South,Private & Voluntary Home Care,Mrs B Kimber,8504.65, 11-Jul-2013
1372,Revenue,CCHD,Supported Living - South,Private & Voluntary Home Care,Mrs B Kimber,11437.69, 11-Jul-2013
1373,Revenue,CCHD,Day Care - North,Private & Voluntary Day Care,Mrs B Kimber,550.43, 16-Jul-2013
1374,Revenue,CCHD,Purchase of Non-Res Care - North,Private & Voluntary Day Care,Mrs B Kimber,760.8, 16-Jul-2013
1375,Revenue,CCHD,Supported Living - North,Private & Voluntary Home Care,Mrs B Kimber,1253.9, 12-Jul-2013
1376,Revenue,CCHD,Home Care - Elderly - South,Other Small Contracts,Mrs B Kimber -  CM2000,6309.9, 08-Jul-2013
1377,Revenue,CCHD,Home Care - Elderly - North,Other Small Contracts,Mrs B Kimber -  CM2000,3781.11, 08-Jul-2013
1378,Revenue,CCHD,Day Care - South,Private & Voluntary Day Care,Mrs B Kimber -  CM2000,554.85, 08-Jul-2013
1379,Revenue,CCHD,Day Care - North,Private & Voluntary Day Care,Mrs B Kimber -  CM2000,32.4, 08-Jul-2013
1380,Revenue,CCHD,Under 65s -MH  Home Care Purch,Other Small Contracts,Mrs B Kimber -  CM2000,4.05, 08-Jul-2013
1381,Revenue,CCHD,Elderly MH Day Care North,Private & Voluntary Day Care,Mrs B Kimber -  CM2000,97.2, 08-Jul-2013
1382,Revenue,CCHD,PWLD Home Care - Under 65 - KH,Private & Voluntary Home Care,Mrs B Kimber -  CM2000,89.1, 08-Jul-2013
1383,Revenue,CCHD,Home Care - Elderly - South,Other Small Contracts,Mrs B Kimber -  CM2000,6642, 05-Jul-2013
1384,Revenue,CCHD,Home Care - Elderly - North,Other Small Contracts,Mrs B Kimber -  CM2000,3767.79, 05-Jul-2013
1385,Revenue,CCHD,Day Care - South,Private & Voluntary Day Care,Mrs B Kimber -  CM2000,558.9, 05-Jul-2013
1386,Revenue,CCHD,Day Care - North,Private & Voluntary Day Care,Mrs B Kimber -  CM2000,97.2, 05-Jul-2013
1387,Revenue,CCHD,Under 65s -MH  Home Care Purch,Other Small Contracts,Mrs B Kimber -  CM2000,28.35, 05-Jul-2013
1388,Revenue,CCHD,Elderly MH Day Care North,Private & Voluntary Day Care,Mrs B Kimber -  CM2000,97.2, 05-Jul-2013
1389,Revenue,CCHD,PWLD Home Care - Under 65 - KH,Private & Voluntary Home Care,Mrs B Kimber -  CM2000,97.2, 05-Jul-2013
1390,Revenue,CCHD,Home Care - Elderly - South,Other Small Contracts,Mrs B Kimber -  CM2000,6771.6, 19-Jul-2013
1391,Revenue,CCHD,Home Care - Elderly - North,Other Small Contracts,Mrs B Kimber -  CM2000,3478.74, 19-Jul-2013
1392,Revenue,CCHD,Day Care - South,Private & Voluntary Day Care,Mrs B Kimber -  CM2000,558.9, 19-Jul-2013
1393,Revenue,CCHD,Day Care - North,Private & Voluntary Day Care,Mrs B Kimber -  CM2000,32.4, 19-Jul-2013
1394,Revenue,CCHD,Under 65s -MH  Home Care Purch,Other Small Contracts,Mrs B Kimber -  CM2000,64.8, 19-Jul-2013
1395,Revenue,CCHD,Elderly MH Day Care North,Private & Voluntary Day Care,Mrs B Kimber -  CM2000,93.15, 19-Jul-2013
1396,Revenue,CCHD,PWLD Home Care - Under 65 - KH,Private & Voluntary Home Care,Mrs B Kimber -  CM2000,97.2, 19-Jul-2013
1397,Revenue,CCHD,Home Care - Elderly - South,Other Small Contracts,Mrs B Kimber -  CM2000,6828.3, 24-Jul-2013
1398,Revenue,CCHD,Home Care - Elderly - North,Other Small Contracts,Mrs B Kimber -  CM2000,3090.15, 24-Jul-2013
1399,Revenue,CCHD,Day Care - South,Private & Voluntary Day Care,Mrs B Kimber -  CM2000,554.85, 24-Jul-2013
1400,Revenue,CCHD,Day Care - North,Private & Voluntary Day Care,Mrs B Kimber -  CM2000,81, 24-Jul-2013
1401,Revenue,CCHD,Under 65s -MH  Home Care Purch,Other Small Contracts,Mrs B Kimber -  CM2000,64.8, 24-Jul-2013
1402,Revenue,CCHD,Elderly MH Day Care North,Private & Voluntary Day Care,Mrs B Kimber -  CM2000,97.2, 24-Jul-2013
1403,Revenue,CCHD,PWLD Home Care - Under 65 - KH,Private & Voluntary Home Care,Mrs B Kimber -  CM2000,97.2, 24-Jul-2013
1404,Revenue,CCHD,Social Lettings Agency,Fees - General,Individual,10, 17-Jul-2013
1405,Revenue,CCHD,Social Lettings Agency,Other Supplies & Services,Individual,565, 17-Jul-2013
1406,Revenue,CCHD,Social Lettings Agency,Other Supplies & Services,Individual,565, 01-Jul-2013
1407,Revenue,CCHD,Supported Living - North,Residential Homes,Mrs I M Bowerman,1300.86, 16-Jul-2013
1408,Revenue,CCHD,Social Lettings Agency,Fees - General,Individual,10, 12-Jul-2013
1409,Revenue,CCHD,Social Lettings Agency,Other Supplies & Services,Individual,565, 12-Jul-2013
1410,Revenue,CCHD,Non Priority Bond Scheme,Other Supplies & Services,Mrs Mandy Fox,518, 12-Jul-2013
1411,Revenue,CCHD,Social Lettings Agency,Other Supplies & Services,Individual,655.41, 16-Jul-2013
1412,Revenue,CCHD,Purchase of Non-Res Care - North,Private & Voluntary Day Care,Mrs W Thompson,1484.4, 25-Jul-2013
1413,Revenue,CCHD,Purchase of Non-Res Care - North,Private & Voluntary Day Care,Mrs W Thompson,563.28, 25-Jul-2013
1414,Revenue,CCHD,Social Lettings Agency,Fees - General,Individual,15.2, 11-Jul-2013
1415,Revenue,CCHD,Social Lettings Agency,Other Supplies & Services,Individual,858.8, 11-Jul-2013
1416,Revenue,CCHD,Younger MH non-res purchasing,Private & Voluntary Day Care,NAS Services Limited,653.2, 19-Jul-2013
1417,Revenue,CCHD,Younger MH non-res purchasing,Private & Voluntary Day Care,NAS Services Limited,1182.75, 19-Jul-2013
1418,Revenue,CCHD,Younger MH non-res purchasing,Private & Voluntary Day Care,NAS Services Limited,802.2, 19-Jul-2013
1419,Revenue,CCHD,Younger MH non-res purchasing,Private & Voluntary Day Care,NAS Services Limited,874.4, 19-Jul-2013
1420,Revenue,CCHD,Younger MH non-res purchasing,Private & Voluntary Day Care,NAS Services Limited,634.7, 19-Jul-2013
1421,Revenue,CCHD,Younger MH non-res purchasing,Private & Voluntary Day Care,NAS Services Limited,520.88, 19-Jul-2013
1422,Revenue,CCHD,Bed Purchasing - Under 65s PWLD - South,Residential Homes,National Star College,4547.72, 09-Jul-2013
1423,Revenue,CCHD,Home Care - Elderly - South,Other Small Contracts,Network Health & Social Care,1567.67, 01-Jul-2013
1424,Revenue,CCHD,Home Care - Elderly - North,Other Small Contracts,Network Health & Social Care,3337.62, 01-Jul-2013
1425,Revenue,CCHD,Day Care - North,Private & Voluntary Day Care,Network Health & Social Care,31.12, 01-Jul-2013
1426,Revenue,CCHD,Home Care - Elderly - South,Other Small Contracts,Network Health & Social Care,1342.05, 03-Jul-2013
1427,Revenue,CCHD,Home Care - Elderly - North,Other Small Contracts,Network Health & Social Care,3080.88, 03-Jul-2013
1428,Revenue,CCHD,Day Care - North,Private & Voluntary Day Care,Network Health & Social Care,23.34, 03-Jul-2013
1429,Revenue,CCHD,Home Care - Elderly - South,Other Small Contracts,Network Health & Social Care,1591.01, 30-Jul-2013
1430,Revenue,CCHD,Home Care - Elderly - North,Other Small Contracts,Network Health & Social Care,3073.1, 30-Jul-2013
1431,Revenue,CCHD,Day Care - North,Private & Voluntary Day Care,Network Health & Social Care,31.12, 30-Jul-2013
1432,Revenue,CCHD,Home Care - Elderly - South,Other Small Contracts,Network Health & Social Care,1622.13, 03-Jul-2013
1433,Revenue,CCHD,Home Care - Elderly - North,Other Small Contracts,Network Health & Social Care,3104.22, 03-Jul-2013
1434,Revenue,CCHD,Day Care - North,Private & Voluntary Day Care,Network Health & Social Care,7.78, 03-Jul-2013
1435,Revenue,CCHD,Home Care - Elderly - South,Other Small Contracts,Network Health & Social Care,1676.59, 03-Jul-2013
1436,Revenue,CCHD,Home Care - Elderly - North,Other Small Contracts,Network Health & Social Care,3586.58, 03-Jul-2013
1437,Revenue,CCHD,Day Care - North,Private & Voluntary Day Care,Network Health & Social Care,31.12, 03-Jul-2013
1438,Revenue,CCHD,Home Care - Elderly - South,Other Small Contracts,Network Health & Social Care,1622.13, 03-Jul-2013
1439,Revenue,CCHD,Home Care - Elderly - North,Other Small Contracts,Network Health & Social Care,3446.54, 03-Jul-2013
1440,Revenue,CCHD,Day Care - North,Private & Voluntary Day Care,Network Health & Social Care,31.12, 03-Jul-2013
1441,Revenue,CCHD,Home Care - Elderly - South,Other Small Contracts,Network Health & Social Care,1571.56, 03-Jul-2013
1442,Revenue,CCHD,Home Care - Elderly - North,Other Small Contracts,Network Health & Social Care,3229.9, 03-Jul-2013
1443,Revenue,CCHD,Day Care - North,Private & Voluntary Day Care,Network Health & Social Care,27.23, 03-Jul-2013
1444,Revenue,CCHD,Social Lettings Agency,Other Supplies & Services,Individual,565, 04-Jul-2013
1445,Revenue,CCHD,Access Team,"Holidays, Outings & Visits",Neville Williams,864, 15-Jul-2013
1446,Revenue,CCHD,Public Health - Admin,Other Supplies & Services,NHS Best West CSU,26671, 10-Jul-2013
1447,Revenue,CCHD,Bed Purchasing - Under 65s PWLD - South,Residential Homes,Nightingale Nursing Home,3105.36, 09-Jul-2013
1448,Revenue,CCHD,Woodleaze,Furniture & Fittings Loose,Nisbets,855.72, 01-Jul-2013
1449,Revenue,CCHD,Bed Purchasing - Under 65s PWLD - South,Residential Homes,Norwood   Broadway House,4899.44, 09-Jul-2013
1450,Revenue,CCHD,Bed Purchasing - Elderly MH - South,Residential Homes,Notaro Homes Ltd  Queensmead Court,1857.32, 09-Jul-2013
1451,Revenue,CCHD,Bed Purchasing - Southmead Hospital,Residential Homes,Notaro Homes Ltd  Queensmead Court,1371.32, 09-Jul-2013
1452,Revenue,CCHD,Section 117 Placements MH Younger,Residential Homes,Notaro Homes Ltd  Queensmead Court,3028.8, 09-Jul-2013
1453,Revenue,CCHD,Home Care - Elderly - South,Other Small Contracts,Nursing Solutions Limited,1255.8, 17-Jul-2013
1454,Revenue,CCHD,Home Care - Elderly - North,Other Small Contracts,Nursing Solutions Limited,308.1, 17-Jul-2013
1455,Revenue,CCHD,Home Care - Elderly - South,Other Small Contracts,Nursing Solutions Limited,1349.4, 17-Jul-2013
1456,Revenue,CCHD,Home Care - Elderly - North,Other Small Contracts,Nursing Solutions Limited,257.4, 17-Jul-2013
1457,Revenue,CCHD,Home Care - Elderly - South,Other Small Contracts,Nursing Solutions Limited,1353.3, 31-Jul-2013
1458,Revenue,CCHD,Home Care - Elderly - North,Other Small Contracts,Nursing Solutions Limited,296.4, 31-Jul-2013
1459,Revenue,CCHD,Home Care - Elderly - South,Other Small Contracts,Nursing Solutions Limited,1482, 31-Jul-2013
1460,Revenue,CCHD,Home Care - Elderly - North,Other Small Contracts,Nursing Solutions Limited,292.5, 31-Jul-2013
1461,Revenue,CCHD,Section 117 Placements MH Younger,Nursing Homes,Oaklands,6000, 09-Jul-2013
1462,Revenue,CCHD,Woodleaze,Refuse Collection Charges,OCS Group UK Ltd,468.51, 19-Jul-2013
1463,Revenue,CCHD,Home Care - Elderly - South,Other Small Contracts,On the Up,775.86, 30-Jul-2013
1464,Revenue,CCHD,Home Care - Elderly - North,Other Small Contracts,On the Up,138.96, 30-Jul-2013
1465,Revenue,CCHD,Day Care - South,Private & Voluntary Day Care,On the Up,379.64, 30-Jul-2013
1466,Revenue,CCHD,Day Care - North,Private & Voluntary Day Care,On the Up,310.08, 30-Jul-2013
1467,Revenue,CCHD,Younger MH non-res purchasing,Private & Voluntary Day Care,On the Up,36.48, 30-Jul-2013
1468,Revenue,CCHD,Elderly MH Day Care North,Private & Voluntary Day Care,On the Up,61.76, 30-Jul-2013
1469,Revenue,CCHD,Home Care - Elderly - South,Other Small Contracts,On the Up,1061.5, 16-Jul-2013
1470,Revenue,CCHD,Home Care - Elderly - North,Other Small Contracts,On the Up,138.96, 16-Jul-2013
1471,Revenue,CCHD,Day Care - South,Private & Voluntary Day Care,On the Up,160.32, 16-Jul-2013
1472,Revenue,CCHD,Day Care - North,Private & Voluntary Day Care,On the Up,310.08, 16-Jul-2013
1473,Revenue,CCHD,Younger MH non-res purchasing,Private & Voluntary Day Care,On the Up,36.48, 16-Jul-2013
1474,Revenue,CCHD,Elderly MH Day Care North,Private & Voluntary Day Care,On the Up,61.76, 16-Jul-2013
1475,Revenue,CCHD,Home Care - Elderly - South,Other Small Contracts,On the Up,903.24, 24-Jul-2013
1476,Revenue,CCHD,Home Care - Elderly - North,Other Small Contracts,On the Up,138.96, 24-Jul-2013
1477,Revenue,CCHD,Day Care - South,Private & Voluntary Day Care,On the Up,155.76, 24-Jul-2013
1478,Revenue,CCHD,Day Care - North,Private & Voluntary Day Care,On the Up,399.54, 24-Jul-2013
1479,Revenue,CCHD,Younger MH non-res purchasing,Private & Voluntary Day Care,On the Up,36.48, 24-Jul-2013
1480,Revenue,CCHD,Elderly MH Day Care North,Private & Voluntary Day Care,On the Up,61.76, 24-Jul-2013
1481,Revenue,CCHD,Home Care - Elderly - South,Other Small Contracts,On the Up,860.78, 24-Jul-2013
1482,Revenue,CCHD,Home Care - Elderly - North,Other Small Contracts,On the Up,138.96, 24-Jul-2013
1483,Revenue,CCHD,Day Care - South,Private & Voluntary Day Care,On the Up,155.76, 24-Jul-2013
1484,Revenue,CCHD,Day Care - North,Private & Voluntary Day Care,On the Up,328.32, 24-Jul-2013
1485,Revenue,CCHD,Younger MH non-res purchasing,Private & Voluntary Day Care,On the Up,36.48, 24-Jul-2013
1486,Revenue,CCHD,Elderly MH Day Care North,Private & Voluntary Day Care,On the Up,61.76, 24-Jul-2013
1487,Revenue,CCHD,Home Care - Elderly - South,Other Small Contracts,On the Up,907.1, 30-Jul-2013
1488,Revenue,CCHD,Home Care - Elderly - North,Other Small Contracts,On the Up,135.1, 30-Jul-2013
1489,Revenue,CCHD,Day Care - South,Private & Voluntary Day Care,On the Up,155.76, 30-Jul-2013
1490,Revenue,CCHD,Day Care - North,Private & Voluntary Day Care,On the Up,401.28, 30-Jul-2013
1491,Revenue,CCHD,Younger MH non-res purchasing,Private & Voluntary Day Care,On the Up,36.48, 30-Jul-2013
1492,Revenue,CCHD,Elderly MH Day Care North,Private & Voluntary Day Care,On the Up,61.76, 30-Jul-2013
1493,Revenue,CCHD,Home Care - Elderly - South,Other Small Contracts,On the Up,961.14, 30-Jul-2013
1494,Revenue,CCHD,Home Care - Elderly - North,Other Small Contracts,On the Up,138.96, 30-Jul-2013
1495,Revenue,CCHD,Day Care - South,Private & Voluntary Day Care,On the Up,132.96, 30-Jul-2013
1496,Revenue,CCHD,Day Care - North,Private & Voluntary Day Care,On the Up,405.84, 30-Jul-2013
1497,Revenue,CCHD,Younger MH non-res purchasing,Private & Voluntary Day Care,On the Up,36.48, 30-Jul-2013
1498,Revenue,CCHD,Elderly MH Day Care North,Private & Voluntary Day Care,On the Up,61.76, 30-Jul-2013
1499,Revenue,CCHD,Home Care - Elderly - South,Other Small Contracts,On the Up,949.56, 31-Jul-2013
1500,Revenue,CCHD,Home Care - Elderly - North,Other Small Contracts,On the Up,138.96, 31-Jul-2013
1501,Revenue,CCHD,Day Care - South,Private & Voluntary Day Care,On the Up,104.88, 31-Jul-2013
1502,Revenue,CCHD,Day Care - North,Private & Voluntary Day Care,On the Up,392.16, 31-Jul-2013
1503,Revenue,CCHD,Younger MH non-res purchasing,Private & Voluntary Day Care,On the Up,36.48, 31-Jul-2013
1504,Revenue,CCHD,Elderly MH Day Care North,Private & Voluntary Day Care,On the Up,61.76, 31-Jul-2013
1505,Revenue,CCHD,Housing Advice,Grants to Voluntary Bodies,Orchard & Shipman PLC,13333.25, 30-Jul-2013
1506,Revenue,CCHD,Bed purchasing -S28A  Under 65 - North,Residential Homes,Orchard End Limited,7452.12, 09-Jul-2013
1507,Revenue,CCHD,Turnberries,"Provisions (Food, etc)",Origin Cafe,619.4, 18-Jul-2013
1508,Revenue,CCHD,Bed Purchasing - Elderly S117- North,Residential Homes,Osbourne Court,1900, 09-Jul-2013
1509,Revenue,CCHD,Bed Purchasing - Elderly S117- North,Residential Homes,Osbourne Court,1732.48, 09-Jul-2013
1510,Revenue,CCHD,Bed Purchasing - Elderly - North,Residential Homes,Osbourne Court,765, 09-Jul-2013
1511,Revenue,CCHD,Bed Purchasing - Elderly S117- North,Residential Homes,Osbourne Court,1900, 09-Jul-2013
1512,Revenue,CCHD,Bed Purchasing - Southmead Hospital,Residential Homes,Osbourne Court,859.4, 09-Jul-2013
1513,Revenue,CCHD,Bed Purchasing - Under 65s PWLD - South,Residential Homes,Osprey Court,7636.76, 09-Jul-2013
1514,Revenue,CCHD,Bed purchasing - S28A Under 65 - South,Residential Homes,Osprey Court,4259.36, 09-Jul-2013
1515,Revenue,CCHD,Bed purchasing - S28A Under 65 - South,Residential Homes,Osprey Court,6305.32, 09-Jul-2013
1516,Revenue,CCHD,Bed Purchasing - Southmead Hospital,Nursing Homes,Palm Court Nursing Home,1503.36, 09-Jul-2013
1517,Revenue,CCHD,Bed Purchasing - Elderly MH - South,Residential Homes,Park Farm House,1333.44, 09-Jul-2013
1518,Revenue,CCHD,Bed Purchasing - Elderly - South,Residential Homes,Park Farm House,1780.96, 09-Jul-2013
1519,Revenue,CCHD,Bed Purchasing - Elderly MH - South,Residential Homes,Park Farm House,1593.2, 09-Jul-2013
1520,Revenue,CCHD,Bed Purchasing - Under 65s PWLD - South,Residential Homes,Park Hall,5552, 09-Jul-2013
1521,Revenue,CCHD,Bed purchasing - Under 65s PWLD - North,Residential Homes,Park Hall,5131.28, 09-Jul-2013
1522,Revenue,CCHD,Bed Purchasing - Under 65s PWLD - South,Residential Homes,Park Hall,4940.84, 09-Jul-2013
1523,Revenue,CCHD,Bed purchasing - Elderly PWLD - South,Residential Homes,Park Hall,2520.96, 09-Jul-2013
1524,Revenue,CCHD,Bed Purchasing - Under 65s PWLD - South,Residential Homes,Park Hall,3824.16, 09-Jul-2013
1525,Revenue,CCHD,Bed purchasing - Elderly PWLD - North,Residential Homes,Park Hall,4897.8, 09-Jul-2013
1526,Revenue,CCHD,Bed purchasing - S28A Under 65 - South,Residential Homes,Park Hall,4614.16, 09-Jul-2013
1527,Revenue,CCHD,Bed Purchasing - Under 65s PWLD - South,Residential Homes,Park Hall,4917.16, 09-Jul-2013
1528,Revenue,CCHD,Bed purchasing - Under 65s PWLD - North,Residential Homes,Park Hall,4278.84, 09-Jul-2013
1529,Revenue,CCHD,Bed Purchasing - S28A - Over 65- North,Residential Homes,Park Hall,5286.8, 09-Jul-2013
1530,Revenue,CCHD,Bed Purchasing - Under 65s PWLD - South,Residential Homes,Park Hall,10610.92, 09-Jul-2013
1531,Revenue,CCHD,Bed purchasing -S28A  Under 65 - North,Residential Homes,Park Hall,5844.16, 09-Jul-2013
1532,Revenue,CCHD,Bed purchasing - S28A Under 65 - South,Residential Homes,Park Hall,5565.72, 09-Jul-2013
1533,Revenue,CCHD,Bed Purchasing - Under 65s PWLD - South,Residential Homes,Park Hall,29474.55, 09-Jul-2013
1534,Revenue,CCHD,Bed Purchasing - Elderly - North,Residential Homes,Park House Residential Home,779.84, 09-Jul-2013
1535,Revenue,CCHD,Social Lettings Agency,Fees - General,Individual,10, 26-Jul-2013
1536,Revenue,CCHD,Social Lettings Agency,Other Supplies & Services,Individual,565, 26-Jul-2013
1537,Revenue,CCHD,Bed Purchasing - Under 65s PWLD - South,Residential Homes,Penleigh House Care Home,4493.52, 09-Jul-2013
1538,Revenue,CCHD,Bed Purchasing - Under 65s PWLD - South,Residential Homes,Penleigh House Care Home,5224.4, 09-Jul-2013
1539,Revenue,CCHD,Bed purchasing - Elderly PWLD - South,Residential Homes,Penleigh House Care Home,4258.48, 09-Jul-2013
1540,Revenue,CCHD,Bed purchasing - S28A Under 65 - South,Residential Homes,Penleigh House Care Home,5417.04, 09-Jul-2013
1541,Revenue,CCHD,Bed Purchasing - Under 65s PWLD - South,Residential Homes,Penleigh House Care Home,4893.28, 09-Jul-2013
1542,Revenue,CCHD,Supporting People Programme,Grants to Voluntary Bodies,Places for People,1117.67, 01-Jul-2013
1543,Revenue,CCHD,Home Care - Elderly - South,Other Small Contracts,Premier Homecare Limited,884.64, 05-Jul-2013
1544,Revenue,CCHD,Home Care - Elderly - North,Other Small Contracts,Premier Homecare Limited,7441.92, 05-Jul-2013
1545,Revenue,CCHD,Younger MH non-res purchasing,Private & Voluntary Day Care,Premier Homecare Limited,27.36, 05-Jul-2013
1546,Revenue,CCHD,Home care - Elderly MH - North,Other Small Contracts,Premier Homecare Limited,164.16, 05-Jul-2013
1547,Revenue,CCHD,Elderly MH Day Care North,Private & Voluntary Day Care,Premier Homecare Limited,209.76, 05-Jul-2013
1548,Revenue,CCHD,Home Care - Elderly - South,Other Small Contracts,Premier Homecare Limited,957.6, 19-Jul-2013
1549,Revenue,CCHD,Home Care - Elderly - North,Other Small Contracts,Premier Homecare Limited,7382.64, 19-Jul-2013
1550,Revenue,CCHD,Younger MH non-res purchasing,Private & Voluntary Day Care,Premier Homecare Limited,27.36, 19-Jul-2013
1551,Revenue,CCHD,Home care - Elderly MH - North,Other Small Contracts,Premier Homecare Limited,164.16, 19-Jul-2013
1552,Revenue,CCHD,Elderly MH Day Care North,Private & Voluntary Day Care,Premier Homecare Limited,209.76, 19-Jul-2013
1553,Revenue,CCHD,Home Care - Elderly - South,Other Small Contracts,Premier Homecare Limited,984.96, 19-Jul-2013
1554,Revenue,CCHD,Home Care - Elderly - North,Other Small Contracts,Premier Homecare Limited,7159.2, 19-Jul-2013
1555,Revenue,CCHD,Day Care - North,Private & Voluntary Day Care,Premier Homecare Limited,13.68, 19-Jul-2013
1556,Revenue,CCHD,Younger MH non-res purchasing,Private & Voluntary Day Care,Premier Homecare Limited,27.36, 19-Jul-2013
1557,Revenue,CCHD,Home care - Elderly MH - North,Other Small Contracts,Premier Homecare Limited,164.16, 19-Jul-2013
1558,Revenue,CCHD,Elderly MH Day Care North,Private & Voluntary Day Care,Premier Homecare Limited,209.76, 19-Jul-2013
1559,Revenue,CCHD,Home Care - Elderly - South,Other Small Contracts,Premier Homecare Limited,1003.2, 24-Jul-2013
1560,Revenue,CCHD,Home Care - Elderly - North,Other Small Contracts,Premier Homecare Limited,7574.16, 24-Jul-2013
1561,Revenue,CCHD,Younger MH non-res purchasing,Private & Voluntary Day Care,Premier Homecare Limited,27.36, 24-Jul-2013
1562,Revenue,CCHD,Home care - Elderly MH - North,Other Small Contracts,Premier Homecare Limited,145.92, 24-Jul-2013
1563,Revenue,CCHD,Elderly MH Day Care North,Private & Voluntary Day Care,Premier Homecare Limited,214.32, 24-Jul-2013
1564,Revenue,CCHD,Home Care - Elderly - South,Other Small Contracts,Prestige Nursing,896.48, 19-Jul-2013
1565,Revenue,CCHD,Home Care - Elderly - North,Other Small Contracts,Prestige Nursing,887.86, 19-Jul-2013
1566,Revenue,CCHD,Day Care - South,Private & Voluntary Day Care,Prestige Nursing,172.4, 19-Jul-2013
1567,Revenue,CCHD,Day Care - North,Private & Voluntary Day Care,Prestige Nursing,633.57, 19-Jul-2013
1568,Revenue,CCHD,Elderly MH Day Care North,Private & Voluntary Day Care,Prestige Nursing,198.26, 19-Jul-2013
1569,Revenue,CCHD,Home Care - Elderly - South,Other Small Contracts,Prestige Nursing,1047.33, 19-Jul-2013
1570,Revenue,CCHD,Home Care - Elderly - North,Other Small Contracts,Prestige Nursing,1034.4, 19-Jul-2013
1571,Revenue,CCHD,Day Care - South,Private & Voluntary Day Care,Prestige Nursing,258.6, 19-Jul-2013
1572,Revenue,CCHD,Day Care - North,Private & Voluntary Day Care,Prestige Nursing,629.26, 19-Jul-2013
1573,Revenue,CCHD,Elderly MH Day Care North,Private & Voluntary Day Care,Prestige Nursing,202.57, 19-Jul-2013
1574,Revenue,CCHD,Home Care - Elderly - South,Other Small Contracts,Prestige Nursing,1086.12, 19-Jul-2013
1575,Revenue,CCHD,Home Care - Elderly - North,Other Small Contracts,Prestige Nursing,974.06, 19-Jul-2013
1576,Revenue,CCHD,Day Care - South,Private & Voluntary Day Care,Prestige Nursing,224.12, 19-Jul-2013
1577,Revenue,CCHD,Day Care - North,Private & Voluntary Day Care,Prestige Nursing,637.88, 19-Jul-2013
1578,Revenue,CCHD,Elderly MH Day Care North,Private & Voluntary Day Care,Prestige Nursing,142.23, 19-Jul-2013
1579,Revenue,CCHD,Home Care - Elderly - South,Other Small Contracts,Prestige Nursing,1116.29, 19-Jul-2013
1580,Revenue,CCHD,Home Care - Elderly - North,Other Small Contracts,Prestige Nursing,1073.19, 19-Jul-2013
1581,Revenue,CCHD,Day Care - South,Private & Voluntary Day Care,Prestige Nursing,258.6, 19-Jul-2013
1582,Revenue,CCHD,Day Care - North,Private & Voluntary Day Care,Prestige Nursing,374.97, 19-Jul-2013
1583,Revenue,CCHD,Bed purchasing - Elderly MH - North,Nursing Homes,Ravenswood,1269.48, 09-Jul-2013
1584,Revenue,CCHD,Bed Purchasing - Elderly - South,Residential Homes,Ravenswood,3804.6, 09-Jul-2013
1585,Revenue,CCHD,Bed Purchasing - Elderly - North,Nursing Homes,Ravenswood,1536.52, 09-Jul-2013
1586,Revenue,CCHD,Bed Purchasing - PWLD S 117 Placements,Residential Homes,Real Life Options,7979.92, 09-Jul-2013
1587,Revenue,CCHD,Bed Purchasing - Elderly S117- North,Nursing Homes,Redholme Memory Care Limited,1962.8, 09-Jul-2013
1588,Revenue,CCHD,Supporting People Programme,Grants to Voluntary Bodies,Redland Housing Association Ltd,726.92, 01-Jul-2013
1589,Revenue,CCHD,Bed Purchasing - Elderly - South,Nursing Homes,Regent House,2224.96, 09-Jul-2013
1590,Revenue,CCHD,Bed Purchasing - Elderly - South,Nursing Homes,Regent House,1649.08, 09-Jul-2013
1591,Revenue,CCHD,Bed Purchasing - Elderly - South,Nursing Homes,Regent House,1958.52, 09-Jul-2013
1592,Revenue,CCHD,Bed Purchasing - Elderly MH - South,Nursing Homes,Regent House,1982.08, 09-Jul-2013
1593,Revenue,CCHD,Bed Purchasing - Elderly - South,Nursing Homes,Regent House,1699.68, 09-Jul-2013
1594,Revenue,CCHD,Bed Purchasing - Elderly - South,Nursing Homes,Regent House,1876.36, 09-Jul-2013
1595,Revenue,CCHD,Bed Purchasing - Elderly - South,Nursing Homes,Regent House,1977.08, 09-Jul-2013
1596,Revenue,CCHD,Bed Purchasing - Elderly - South,Nursing Homes,Regent House,1808, 09-Jul-2013
1597,Revenue,CCHD,Bed Purchasing - Elderly - South,Nursing Homes,Regent House,1649.08, 09-Jul-2013
1598,Revenue,CCHD,Bed Purchasing - Elderly - South,Nursing Homes,Regent House,616.04, 09-Jul-2013
1599,Revenue,CCHD,Bed Purchasing - Elderly - South,Nursing Homes,Regent House,2052.28, 09-Jul-2013
1600,Revenue,CCHD,South Glos Users in South Glos Homes,Nursing Homes,Regent House,1317.48, 09-Jul-2013
1601,Revenue,CCHD,Bed Purchasing - Southmead Hospital,Nursing Homes,Regent House,1388.52, 09-Jul-2013
1602,Revenue,CCHD,Bed Purchasing - Elderly - South,Nursing Homes,Regent House,1646.36, 09-Jul-2013
1603,Revenue,CCHD,Bed Purchasing - Elderly MH - South,Nursing Homes,Regent House,1192.64, 09-Jul-2013
1604,Revenue,CCHD,Bed purchasing - Elderly MH - North,Nursing Homes,Regent House,1275.76, 09-Jul-2013
1605,Revenue,CCHD,Bed Purchasing - Elderly - South,Nursing Homes,Regent House,2605.96, 09-Jul-2013
1606,Revenue,CCHD,Bed Purchasing - Under 65s PWLD - South,Residential Homes,Ridgeway House,3450.56, 09-Jul-2013
1607,Revenue,CCHD,Bed Purchasing - Under 65s PWLD - South,Residential Homes,Riverside House,3557.92, 09-Jul-2013
1608,Revenue,CCHD,Bed purchasing - Elderly PWLD - South,Residential Homes,Rockleaze,1408.56, 09-Jul-2013
1609,Revenue,CCHD,Bed Purchasing - LD S28A- Over 65- South,Residential Homes,Rockleaze,2054.24, 09-Jul-2013
1610,Revenue,CCHD,Bed purchasing - Elderly PWLD - South,Residential Homes,Rockleaze,2382.32, 09-Jul-2013
1611,Revenue,CCHD,Bed purchasing - Elderly PWLD - South,Residential Homes,Rockleaze,1408.56, 09-Jul-2013
1612,Revenue,CCHD,Bed purchasing - Under 65s PWLD - North,Residential Homes,Rolle Quay House,1194.35, 09-Jul-2013
1613,Revenue,CCHD,Bed Purchasing - Under 65s PWLD - South,Residential Homes,Rosewood Lodge & Brook House,4502.6, 09-Jul-2013
1614,Revenue,CCHD,Bed Purchasing - Elderly MH - South,Residential Homes,Ross Healthcare,1306.42, 09-Jul-2013
1615,Revenue,CCHD,MH Purchasing - Younger,Residential Homes,Ruskin Mill,3743.2, 09-Jul-2013
1616,Revenue,CCHD,Community Support - North,Preventative Assistance,Salisbury NHS Foundation Trust,1400, 01-Jul-2013
1617,Revenue,CCHD,Public Health - Admin,Other Supplies & Services,Sally Bramley,1430, 03-Jul-2013
1618,Revenue,CCHD,Bed Purchasing - Under 65s PWLD - South,Residential Homes,Salters Hill Barn,2014.52, 09-Jul-2013
1619,Revenue,CCHD,Bed Purchasing - Southmead Hospital,Residential Homes,Sanctuary Care Ltd,3810, 09-Jul-2013
1620,Revenue,CCHD,Learning Difficulties PSL,Rent,Individual,1400, 01-Jul-2013
1621,Revenue,CCHD,Woodleaze,"Provisions (Food, etc)",School Milk Services Limited,634.14, 30-Jul-2013
1622,Revenue,CCHD,Woodleaze,"Provisions (Food, etc)",School Milk Services Limited,770.07, 01-Jul-2013
1623,Revenue,CCHD,Woodleaze,"Provisions (Food, etc)",School Milk Services Limited,783.28, 01-Jul-2013
1624,Revenue,CCHD,Bed purchasing - Under 65s PWLD - North,Residential Homes,Scope   Accounts Dept,4956.52, 09-Jul-2013
1625,Revenue,CCHD,Bed Purchasing - Southmead Hospital,Residential Homes,Sefton Hall Res. & Nursing Home,3998.14, 09-Jul-2013
1626,Revenue,CCHD,Supported Living (S28a) South,Private & Voluntary Home Care,Selborne Care Ltd,3293.84, 12-Jul-2013
1627,Revenue,CCHD,Supported Living - South,Private & Voluntary Home Care,Selborne Care Ltd,1024.96, 04-Jul-2013
1628,Revenue,CCHD,Supported Living - South,Private & Voluntary Home Care,Selborne Care Ltd,2746.9, 17-Jul-2013
1629,Revenue,CCHD,Supported Living - South,Private & Voluntary Home Care,Selborne Care Ltd,933.22, 17-Jul-2013
1630,Revenue,CCHD,Purchase of Non-Res Care - North,Private & Voluntary Day Care,Selborne Care Ltd,1434.44, 17-Jul-2013
1631,Revenue,CCHD,Supported Living - South,Private & Voluntary Home Care,Selborne Care Ltd,5128.68, 17-Jul-2013
1632,Revenue,CCHD,Purchase of Non-Res Care - North,Private & Voluntary Day Care,Selborne Care Ltd,675.78, 17-Jul-2013
1633,Revenue,CCHD,Supported Living - South,Private & Voluntary Home Care,Selborne Care Ltd,1149.9, 17-Jul-2013
1634,Revenue,CCHD,Purchase of Non-Res Care - North,Private & Voluntary Day Care,Selborne Care Ltd,863.52, 17-Jul-2013
1635,Revenue,CCHD,Supported Living - South,Private & Voluntary Home Care,Selborne Care Ltd,514.88, 17-Jul-2013
1636,Revenue,CCHD,Supported Living - South,Private & Voluntary Home Care,Selborne Care Ltd,4617.64, 17-Jul-2013
1637,Revenue,CCHD,Purchase of Non-Res Care - North,Private & Voluntary Day Care,Selborne Care Ltd,786.36, 17-Jul-2013
1638,Revenue,CCHD,Supported Living - South,Private & Voluntary Home Care,Selborne Care Ltd,1920.68, 17-Jul-2013
1639,Revenue,CCHD,Purchase of Non-Res Care - North,Private & Voluntary Day Care,Selborne Care Ltd,563, 17-Jul-2013
1640,Revenue,CCHD,Supported Living (S28a) South,Private & Voluntary Home Care,Selborne Care Ltd,3326.68, 17-Jul-2013
1641,Revenue,CCHD,SLA Grants - Support Serv,Grants to Voluntary Bodies,Share the Harmony,1000, 18-Jul-2013
1642,Revenue,CCHD,Bed Purchasing - Southmead Hospital,Nursing Homes,Shaw Healthcare Ltd,1478, 09-Jul-2013
1643,Revenue,CCHD,Bed Purchasing - Elderly - South,Nursing Homes,Shaw Healthcare Ltd,1603.76, 09-Jul-2013
1644,Revenue,CCHD,Bed Purchasing - Elderly S117- North,Nursing Homes,Shaw Healthcare Ltd,1962.68, 09-Jul-2013
1645,Revenue,CCHD,Bed purchasing - Elderly S117 - South,Nursing Homes,Shaw Healthcare Ltd,1992.16, 09-Jul-2013
1646,Revenue,CCHD,Bed purchasing - Elderly MH - North,Nursing Homes,Shaw Healthcare Ltd,1226.88, 09-Jul-2013
1647,Revenue,CCHD,Bed Purchasing - Elderly - North,Nursing Homes,Shaw Healthcare Ltd,1910.75, 09-Jul-2013
1648,Revenue,CCHD,Bed purchasing - S28A Under 65 - South,Residential Homes,Shaw Healthcare Ltd,10507.8, 09-Jul-2013
1649,Revenue,CCHD,Bed purchasing - S28A Under 65 - South,Residential Homes,Shaw Healthcare Ltd,10505.36, 09-Jul-2013
1650,Revenue,CCHD,Bed purchasing - S28A Under 65 - South,Residential Homes,Shaw Healthcare Ltd,10337, 09-Jul-2013
1651,Revenue,CCHD,Bed Purchasing - Under 65s PWLD - South,Nursing Homes,Shaw Healthcare Ltd,9754.04, 09-Jul-2013
1652,Revenue,CCHD,Bed Purchasing - Under 65s PWLD - South,Residential Homes,Shaw Healthcare Ltd,9760.6, 09-Jul-2013
1653,Revenue,CCHD,Bed purchasing - Elderly PWLD - South,Residential Homes,Shaw Healthcare Ltd,3907.68, 09-Jul-2013
1654,Revenue,CCHD,Bed purchasing - S28A Under 65 - South,Residential Homes,Shaw Healthcare Ltd,10393.88, 09-Jul-2013
1655,Revenue,CCHD,Bed purchasing - S28A Under 65 - South,Residential Homes,Shaw Healthcare Ltd,12056.36, 09-Jul-2013
1656,Revenue,CCHD,Bed Purchasing - S28A - Over 65- North,Residential Homes,Shaw Healthcare Ltd,4238.92, 09-Jul-2013
1657,Revenue,CCHD,Bed Purchasing - S28A - Over 65- North,Residential Homes,Shaw Healthcare Ltd,4246.2, 09-Jul-2013
1658,Revenue,CCHD,Bed Purchasing - LD S28A- Over 65- South,Residential Homes,Shaw Healthcare Ltd,4763.2, 09-Jul-2013
1659,Revenue,CCHD,Bed Purchasing - Under 65s PWLD - South,Nursing Homes,Shaw Healthcare Ltd,10091.08, 09-Jul-2013
1660,Revenue,CCHD,Bed Purchasing - LD S28A- Over 65- South,Residential Homes,Shaw Healthcare Ltd,4321.32, 09-Jul-2013
1661,Revenue,CCHD,Bed purchasing -S28A  Under 65 - North,Residential Homes,Shaw Healthcare Ltd,9174, 09-Jul-2013
1662,Revenue,CCHD,Bed Purchasing - S28A - Over 65- North,Residential Homes,Shaw Healthcare Ltd,8580.2, 09-Jul-2013
1663,Revenue,CCHD,Bed Purchasing - Southmead Hospital,Residential Homes,Shaw Healthcare Ltd,891.96, 09-Jul-2013
1664,Revenue,CCHD,Bed Purchasing - Elderly - North,Residential Homes,Shaw Healthcare Ltd,1262, 09-Jul-2013
1665,Revenue,CCHD,Bed Purchasing - Frenchay Hospital,Residential Homes,Shaw Healthcare Ltd,1119.32, 09-Jul-2013
1666,Revenue,CCHD,Day Care - North,Private & Voluntary Day Care,Silva Care Limited,673.36, 16-Jul-2013
1667,Revenue,CCHD,Newton House,Refuse Collection Charges,SITA UK LTD,583.14, 30-Jul-2013
1668,Revenue,CCHD,Bed purchasing - Under 65s PWLD - North,Residential Homes,Small House Homes Limited,17754.92, 09-Jul-2013
1669,Revenue,CCHD,Purchase of Non-Res Care - South,Private & Voluntary Day Care,Smile Independent Living Support Limited,662.04, 12-Jul-2013
1670,Revenue,CCHD,Supported Living - North,Private & Voluntary Home Care,Smile Independent Living Support Limited,3156.3, 12-Jul-2013
1671,Revenue,CCHD,Purchase of Non-Res Care - North,Private & Voluntary Day Care,Smile Independent Living Support Limited,841.89, 12-Jul-2013
1672,Revenue,CCHD,Purchase of Non-Res Care - North,Private & Voluntary Day Care,Smile Independent Living Support Limited,1182.46, 12-Jul-2013
1673,Revenue,CCHD,Supported Living - North,Private & Voluntary Home Care,Smile Independent Living Support Limited,3253.8, 12-Jul-2013
1674,Revenue,CCHD,Purchase of Non-Res Care - North,Private & Voluntary Day Care,Smile Independent Living Support Limited,1108.01, 12-Jul-2013
1675,Revenue,CCHD,Purchase of Non-Res Care - North,Private & Voluntary Day Care,Smile Independent Living Support Limited,595.28, 12-Jul-2013
1676,Revenue,CCHD,Purchase of Non-Res Care - North,Private & Voluntary Day Care,Smile Independent Living Support Limited,1174.51, 12-Jul-2013
1677,Revenue,CCHD,Purchase of Non-Res Care - North,Private & Voluntary Day Care,Smile Independent Living Support Limited,751.41, 12-Jul-2013
1678,Revenue,CCHD,Purchase of Non-Res Care - North,Private & Voluntary Day Care,Smile Independent Living Support Limited,593.5, 12-Jul-2013
1679,Revenue,CCHD,Purchase of Non-Res Care - North,Private & Voluntary Day Care,Smile Independent Living Support Limited,574.47, 12-Jul-2013
1680,Revenue,CCHD,Supported Living - North,Private & Voluntary Home Care,Smile Independent Living Support Limited,2618.27, 12-Jul-2013
1681,Revenue,CCHD,Bed Purchasing - Under 65s PWLD - South,Residential Homes,St Brigas,2055.56, 09-Jul-2013
1682,Revenue,CCHD,Bed Purchasing - Under 65s PWLD - South,Residential Homes,St Brigas,2972.08, 09-Jul-2013
1683,Revenue,CCHD,Bed Purchasing - Under 65s PWLD - South,Residential Homes,St Brigas,2003.32, 09-Jul-2013
1684,Revenue,CCHD,Bed Purchasing - Elderly - South,Nursing Homes,St George Nursing Home,3580.5, 09-Jul-2013
1685,Revenue,CCHD,Bed Purchasing - Elderly - South,Nursing Homes,St George Nursing Home,1302, 09-Jul-2013
1686,Revenue,CCHD,Bed Purchasing - Elderly - South,Nursing Homes,St George Nursing Home,832.63, 09-Jul-2013
1687,Revenue,CCHD,Bed Purchasing - Frenchay Hospital,Nursing Homes,St George Nursing Home,1302, 09-Jul-2013
1688,Revenue,CCHD,Bed Purchasing - Southmead Hospital,Nursing Homes,St George Nursing Home,674.68, 09-Jul-2013
1689,Revenue,CCHD,Bed Purchasing - Elderly - South,Nursing Homes,St George Nursing Home,1302, 09-Jul-2013
1690,Revenue,CCHD,Bed Purchasing - Southmead Hospital,Nursing Homes,St George Nursing Home,1314, 09-Jul-2013
1691,Revenue,CCHD,Bed Purchasing - Southmead Hospital,Nursing Homes,St George Nursing Home,954.24, 09-Jul-2013
1692,Revenue,CCHD,Bed Purchasing - Frenchay Hospital,Nursing Homes,St George Nursing Home,1065.36, 09-Jul-2013
1693,Revenue,CCHD,Bed Purchasing - Frenchay Hospital,Nursing Homes,St George Nursing Home,662.16, 09-Jul-2013
1694,Revenue,CCHD,Bed Purchasing - Elderly - South,Nursing Homes,St Monicas Trust,503.31, 09-Jul-2013
1695,Revenue,CCHD,Bed Purchasing - Elderly - North,Nursing Homes,St Monicas Trust,2790.36, 09-Jul-2013
1696,Revenue,CCHD,Training - Adult Services,Training Expenses,St Peter`s Hospice,607.83, 08-Jul-2013
1697,Revenue,CCHD,Bed Purchasing - Elderly - South,Nursing Homes,St Roses School,3982.76, 05-Jul-2013
1698,Revenue,CCHD,Bed purchasing - Under 65s PWLD - North,Residential Homes,St Roses School,772, 09-Jul-2013
1699,Revenue,CCHD,MH Purchasing - Younger,Nursing Homes,Stanley House,8420.48, 09-Jul-2013
1700,Revenue,CCHD,Bed Purchasing - Elderly - North,Residential Homes,Stinchcombe Manor,642.86, 09-Jul-2013
1701,Revenue,CCHD,Community Care Contact Centre,Furniture & Fittings Loose,Stone Computers Ltd,22, 04-Jul-2013
1702,Revenue,CCHD,Community Care Contact Centre,Computer Equipment - Purchase,Stone Computers Ltd,44, 04-Jul-2013
1703,Revenue,CCHD,Employment Support Service,Computer Equipment - Purchase,Stone Computers Ltd,1793, 11-Jul-2013
1704,Revenue,CCHD,Section 117 Placements MH Younger,Private & Voluntary Day Care,Supported Independence Ltd,3854.16, 01-Jul-2013
1705,Revenue,CCHD,Section 117 Placements MH Younger,Private & Voluntary Day Care,Supported Independence Ltd,2396.74, 12-Jul-2013
1706,Revenue,CCHD,Section 117 Placements MH Younger,Private & Voluntary Day Care,Supported Independence Ltd,3486.28, 12-Jul-2013
1707,Revenue,CCHD,Section 117 Placements MH Younger,Private & Voluntary Day Care,Supported Independence Ltd,1981.32, 12-Jul-2013
1708,Revenue,CCHD,Younger MH non-res purchasing,Private & Voluntary Day Care,Supported Independence Ltd,960.96, 12-Jul-2013
1709,Revenue,CCHD,Section 117 Placements MH Younger,Private & Voluntary Day Care,Supported Independence Ltd,1942.28, 12-Jul-2013
1710,Revenue,CCHD,Supported Living - North,Private & Voluntary Home Care,Supported Independence Ltd,820.82, 17-Jul-2013
1711,Revenue,CCHD,Supported Living - South,Private & Voluntary Home Care,Supported Independence Ltd,1421.42, 18-Jul-2013
1712,Revenue,CCHD,Younger MH non-res purchasing,Private & Voluntary Day Care,Supported Independence Ltd,583.24, 25-Jul-2013
1713,Revenue,CCHD,Section 117 Placements MH Younger,Private & Voluntary Day Care,Supported Independence Ltd,1158, 25-Jul-2013
1714,Revenue,CCHD,Supported Living - South,Private & Voluntary Home Care,Supported Independence Ltd,666.56, 15-Jul-2013
1715,Revenue,CCHD,Younger MH non-res purchasing,Private & Voluntary Day Care,Supported Independence Ltd,960.96, 25-Jul-2013
1716,Revenue,CCHD,Section 117 Placements MH Younger,Private & Voluntary Day Care,Supported Independence Ltd,3616.91, 25-Jul-2013
1717,Revenue,CCHD,Younger MH non-res purchasing,Private & Voluntary Day Care,Supported Independence Ltd,1830.94, 25-Jul-2013
1718,Revenue,CCHD,Supporting People Programme,Grants to Voluntary Bodies,Supported Independence Ltd,6176.25, 01-Jul-2013
1719,Revenue,CCHD,Supporting People Programme,Grants to Voluntary Bodies,Supported Independence Ltd,2986.92, 01-Jul-2013
1720,Revenue,CCHD,Supporting People Programme,Grants to Voluntary Bodies,Supported Independent Living Schemes,4638.08, 01-Jul-2013
1721,Revenue,CCHD,Supporting People Programme,Grants to Voluntary Bodies,Supported Independent Living Schemes,6008.83, 01-Jul-2013
1722,Revenue,CCHD,Supported Living - South,Private & Voluntary Home Care,Supported Independent Living Schemes,642.96, 19-Jul-2013
1723,Revenue,CCHD,Younger MH non-res purchasing,Private & Voluntary Day Care,Supporting Options,610.21, 01-Jul-2013
1724,Revenue,CCHD,Younger MH non-res purchasing,Private & Voluntary Day Care,Supporting Options,570.58, 25-Jul-2013
1725,Revenue,CCHD,Supported Living - South,Private & Voluntary Home Care,Supporting Options,697.4, 22-Jul-2013
1726,Revenue,CCHD,Training - Adult Services,Training Expenses,SWEI CIC,1000, 10-Jul-2013
1727,Revenue,CCHD,Bed Purchasing - Under 65s PWLD - South,Residential Homes,The Ann Coleman Centre,5968.36, 09-Jul-2013
1728,Revenue,CCHD,Bed Purchasing - Frenchay Hospital,Residential Homes,The Beeches,1149.8, 09-Jul-2013
1729,Revenue,CCHD,Bed Purchasing - Southmead Hospital,Residential Homes,The Beeches,1246, 09-Jul-2013
1730,Revenue,CCHD,Bed Purchasing - Frenchay Hospital,Residential Homes,The Beeches,1246, 09-Jul-2013
1731,Revenue,CCHD,Day Care - North,Private & Voluntary Day Care,The Brandon Trust,757.44, 16-Jul-2013
1732,Revenue,CCHD,Day Care - South,Private & Voluntary Day Care,The Brandon Trust,1501.01, 19-Jul-2013
1733,Revenue,CCHD,Younger MH non-res purchasing,Private & Voluntary Day Care,The Brandon Trust,2107.79, 25-Jul-2013
1734,Revenue,CCHD,Supported Living - South,Private & Voluntary Home Care,The Brandon Trust,1481.98, 25-Jul-2013
1735,Revenue,CCHD,Purchase of Non-Res Care - North,Private & Voluntary Day Care,The Brandon Trust,13215.29, 26-Jul-2013
1736,Revenue,CCHD,Purchase of Non-Res Care - South,Private & Voluntary Day Care,The Brandon Trust,24897.96, 17-Jul-2013
1737,Revenue,CCHD,Supported Living - North,Private & Voluntary Home Care,The Brandon Trust,9091.5, 15-Jul-2013
1738,Revenue,CCHD,Learning Difficulties Development Fund,Other Supplies & Services,The Carers` Support Centre,25301.08, 25-Jul-2013
1739,Revenue,CCHD,MH Purchasing - Younger,Residential Homes,The Cidermill,8390.86, 09-Jul-2013
1740,Revenue,CCHD,Bed purchasing - Elderly MH - North,Residential Homes,The Cidermill,1414, 09-Jul-2013
1741,Revenue,CCHD,Bed purchasing - Elderly MH - North,Residential Homes,The Cidermill,991.36, 09-Jul-2013
1742,Revenue,CCHD,Bed purchasing - Elderly MH - North,Nursing Homes,The Cidermill,1208.28, 09-Jul-2013
1743,Revenue,CCHD,Bed Purchasing - Southmead Hospital,Residential Homes,The Cidermill,932.24, 09-Jul-2013
1744,Revenue,CCHD,Bed Purchasing - Southmead Hospital,Residential Homes,The Gables Residential Home,1366.68, 09-Jul-2013
1745,Revenue,CCHD,Bed purchasing - Elderly S117 - South,Residential Homes,The Gables Residential Home,2214.12, 09-Jul-2013
1746,Revenue,CCHD,Bed Purchasing - Elderly - South,Residential Homes,The Gables Residential Home,3537.6, 09-Jul-2013
1747,Revenue,CCHD,Bed Purchasing - Elderly - South,Residential Homes,The Gables Residential Home,1286.4, 09-Jul-2013
1748,Revenue,CCHD,Bed Purchasing - Elderly - South,Residential Homes,The Garden House,752.96, 09-Jul-2013
1749,Revenue,CCHD,Bed Purchasing - Elderly - North,Residential Homes,The Garden House,26619.38, 09-Jul-2013
1750,Revenue,CCHD,Bed Purchasing - Elderly - North,Residential Homes,The Garden House,3338.57, 09-Jul-2013
1751,Revenue,CCHD,Bed Purchasing - Frenchay Hospital,Residential Homes,The Garden House,1229.72, 09-Jul-2013
1752,Revenue,CCHD,Bed purchasing - Elderly MH - North,Residential Homes,The Garden House,1651.76, 09-Jul-2013
1753,Revenue,CCHD,Bed Purchasing - Elderly - South,Residential Homes,The Garden House,1612.56, 09-Jul-2013
1754,Revenue,CCHD,Bed Purchasing - Elderly - North,Residential Homes,The Garden House,1657.14, 09-Jul-2013
1755,Revenue,CCHD,Bed Purchasing - Elderly - South,Residential Homes,The Garden House,1492.8, 09-Jul-2013
1756,Revenue,CCHD,Bed Purchasing - Elderly - North,Residential Homes,The Garden House,1000, 09-Jul-2013
1757,Revenue,CCHD,Bed Purchasing - Elderly S117- North,Residential Homes,The Garden House,1900, 09-Jul-2013
1758,Revenue,CCHD,Bed Purchasing - Southmead Hospital,Residential Homes,The Garden House,4445, 09-Jul-2013
1759,Revenue,CCHD,Bed Purchasing - Southmead Hospital,Residential Homes,The Garden House,2540, 09-Jul-2013
1760,Revenue,CCHD,Bed Purchasing - Elderly - North,Residential Homes,The Garden House,1244.04, 09-Jul-2013
1761,Revenue,CCHD,Bed Purchasing - Southmead Hospital,Residential Homes,The Garden House,1171.8, 09-Jul-2013
1762,Revenue,CCHD,Bed Purchasing - Frenchay Hospital,Residential Homes,The Garden House,1414, 09-Jul-2013
1763,Revenue,CCHD,Bed Purchasing - Elderly MH - South,Residential Homes,The Garden House,1213.16, 09-Jul-2013
1764,Revenue,CCHD,Bed Purchasing - Elderly - South,Residential Homes,The Garden House,1147.08, 09-Jul-2013
1765,Revenue,CCHD,Bed purchasing - Elderly MH - North,Residential Homes,The Grove,1049.24, 09-Jul-2013
1766,Revenue,CCHD,Bed Purchasing - Elderly - North,Residential Homes,The Grove,1414, 09-Jul-2013
1767,Revenue,CCHD,Bed purchasing - Elderly MH - North,Residential Homes,The Grove,732.49, 09-Jul-2013
1768,Revenue,CCHD,Bed Purchasing - Elderly S117- North,Residential Homes,The Grove,2094.2, 09-Jul-2013
1769,Revenue,CCHD,Bed purchasing - Elderly S117 - South,Residential Homes,The Grove,2322.08, 09-Jul-2013
1770,Revenue,CCHD,Bed purchasing - Elderly MH - North,Residential Homes,The Grove,1619.32, 09-Jul-2013
1771,Revenue,CCHD,Bed Purchasing - Frenchay Hospital,Residential Homes,The Grove,1287.5, 09-Jul-2013
1772,Revenue,CCHD,Bed Purchasing - Southmead Hospital,Residential Homes,The Grove,501.84, 09-Jul-2013
1773,Revenue,CCHD,Bed purchasing - Elderly S117 - South,Residential Homes,The Grove,2322.08, 09-Jul-2013
1774,Revenue,CCHD,Bed purchasing - Elderly MH - North,Residential Homes,The Grove,1500.32, 09-Jul-2013
1775,Revenue,CCHD,Bed Purchasing - Southmead Hospital,Residential Homes,The Grove,1267.6, 09-Jul-2013
1776,Revenue,CCHD,Bed purchasing - Elderly MH - North,Residential Homes,The Grove,1491.76, 09-Jul-2013
1777,Revenue,CCHD,Supporting People Programme,Grants to Voluntary Bodies,The Hatch Camphill Community,3064.55, 01-Jul-2013
1778,Revenue,CCHD,Supporting People Programme,Grants to Voluntary Bodies,The Hatch Camphill Community,672.97, 29-Jul-2013
1779,Revenue,CCHD,Bed Purchasing - Elderly - South,Nursing Homes,The Heathers,706.04, 09-Jul-2013
1780,Revenue,CCHD,Bed Purchasing - Frenchay Hospital,Nursing Homes,The Heathers,1310, 09-Jul-2013
1781,Revenue,CCHD,Bed Purchasing - Frenchay Hospital,Nursing Homes,The Heathers,1246.52, 09-Jul-2013
1782,Revenue,CCHD,Bed Purchasing - Frenchay Hospital,Nursing Homes,The Heathers,680.64, 09-Jul-2013
1783,Revenue,CCHD,Bed Purchasing - Southmead Hospital,Nursing Homes,The Heathers,1275.52, 09-Jul-2013
1784,Revenue,CCHD,Bed Purchasing - Frenchay Hospital,Nursing Homes,The Heathers,1189.28, 09-Jul-2013
1785,Revenue,CCHD,Bed Purchasing - Frenchay Hospital,Nursing Homes,The Heathers,1302, 09-Jul-2013
1786,Revenue,CCHD,Bed Purchasing - Elderly - North,Nursing Homes,The Heathers,1302.72, 09-Jul-2013
1787,Revenue,CCHD,Bed Purchasing - Elderly - North,Nursing Homes,The Heathers,2528.94, 09-Jul-2013
1788,Revenue,CCHD,Bed Purchasing - Elderly - North,Nursing Homes,The Heathers,1061.56, 09-Jul-2013
1789,Revenue,CCHD,Bed Purchasing - Frenchay Hospital,Nursing Homes,The Heathers,985.2, 09-Jul-2013
1790,Revenue,CCHD,Bed Purchasing - Frenchay Hospital,Nursing Homes,The Heathers,1235.4, 09-Jul-2013
1791,Revenue,CCHD,Bed Purchasing - Frenchay Hospital,Nursing Homes,The Heathers,1219.92, 09-Jul-2013
1792,Revenue,CCHD,Bed Purchasing - Southmead Hospital,Nursing Homes,The Heathers,726.16, 09-Jul-2013
1793,Revenue,CCHD,Bed Purchasing - Southmead Hospital,Nursing Homes,The Heathers,1156.48, 09-Jul-2013
1794,Revenue,CCHD,Bed Purchasing - Frenchay Hospital,Nursing Homes,The Heathers,1266.36, 09-Jul-2013
1795,Revenue,CCHD,Bed purchasing - Elderly MH - North,Residential Homes,The Hollies,1289.76, 09-Jul-2013
1796,Revenue,CCHD,Bed Purchasing - Elderly - North,Nursing Homes,The Hollies Nursing Home,1776.6, 09-Jul-2013
1797,Revenue,CCHD,Bed Purchasing - Under 65s PWLD - South,Residential Homes,The Manor House,3033.48, 09-Jul-2013
1798,Revenue,CCHD,Bed Purchasing - Under 65s PWLD - South,Residential Homes,The Manor House,4894.16, 09-Jul-2013
1799,Revenue,CCHD,Bed Purchasing - Under 65s PWLD - South,Residential Homes,The Manor House,3476.08, 09-Jul-2013
1800,Revenue,CCHD,Bed Purchasing - Under 65s PWLD - South,Residential Homes,The Manor House,2674.68, 09-Jul-2013
1801,Revenue,CCHD,Bed purchasing - Under 65s PWLD - North,Residential Homes,The Manor House,3372.68, 09-Jul-2013
1802,Revenue,CCHD,Bed Purchasing - Under 65s PWLD - South,Residential Homes,The Manor House,3249.2, 09-Jul-2013
1803,Revenue,CCHD,Bed purchasing - Under 65s PWLD - North,Residential Homes,The Manor House,2816.2, 09-Jul-2013
1804,Revenue,CCHD,Bed Purchasing - Under 65s PWLD - South,Residential Homes,The Manor House,2674.68, 09-Jul-2013
1805,Revenue,CCHD,Bed Purchasing - Under 65s PWLD - South,Residential Homes,The Manor House,3323.4, 09-Jul-2013
1806,Revenue,CCHD,Bed Purchasing - Under 65s PWLD - South,Residential Homes,The Manor House,5993.68, 09-Jul-2013
1807,Revenue,CCHD,Bed purchasing - S28A Under 65 - South,Residential Homes,The Manor House,4836.72, 09-Jul-2013
1808,Revenue,CCHD,Bed Purchasing - Under 65s PWLD - South,Residential Homes,The Manor House,2713.84, 09-Jul-2013
1809,Revenue,CCHD,Bed purchasing - Elderly PWLD - South,Residential Homes,The Manor House,3383.84, 09-Jul-2013
1810,Revenue,CCHD,Bed Purchasing - Under 65s PWLD - South,Residential Homes,The Manor House,2973.6, 09-Jul-2013
1811,Revenue,CCHD,Bed Purchasing - Under 65s PWLD - South,Residential Homes,The Manor House,5181.16, 09-Jul-2013
1812,Revenue,CCHD,Bed Purchasing - Under 65s PWLD - South,Residential Homes,The Manor House,4914.44, 09-Jul-2013
1813,Revenue,CCHD,Bed Purchasing - Under 65s PWLD - South,Residential Homes,The Manor House,3218.4, 09-Jul-2013
1814,Revenue,CCHD,Bed Purchasing - Under 65s PWLD - South,Residential Homes,The Manor House,2892.68, 09-Jul-2013
1815,Revenue,CCHD,Bed Purchasing - Under 65s PWLD - South,Residential Homes,The Manor House,4424.76, 09-Jul-2013
